Workbook

Sheet Sommaire
B2: Introduction, révision
B3: Références absolues, rechercheV | C3: Introduction
B5: Liste de données, création | C5: Application | E5: Ci-contre, vous pouvez utiliser les liens hypertextes de façon à atteindre une application selon le thème précisé en colonne B.
C6: Divers | E6: Sur chaque feuille est présenté l'exercice à réaliser. Un bouton 'Help' permet d'afficher la feuille contenant le corrigé.
E7: Avant de commencer, masquer tous les corrigés en utilisant le bouton de la barre d'outils 'Employés'
B8: Trier les données | C8: Tri1
C9: Tri2
B11: Filtres automatiques | C11: Filtre1
C12: Filtre1 (2)
C13: Filtre2
C14: Filtre3
C15: Filtre4
C16: Filtre5
B18: Filtres élaborés | C18: FiltreElab1
C19: FiltreElab2
C20: FiltreElab3
C21: FiltreElab4
C22: FiltreElab5
C23: FiltreElab6
B25: Fonctions classiques | C25: Fonctions classiques
C26: Fonctions classiques avec tableau de données
B28: Sous-totaux | C28: Sous-totaux1
C29: Sous-totaux2
C30: Sous-totaux3
C31: Sous-totaux4
B33: Tableaux croisés dynamiques | C33: TCD1
C34: TCD2
C35: TCD3
C36: TCD4
C37: TCD5
C38: TCD6

Sheet Introduction
A1: Titre | B1: Référence de l'auteur | C1: Prix | D1: Prix avec réduction | E1: Nom de l'auteur | F1: Prénom de l'auteur | M1: Retour sommaire | P1: Titre | Q1: Prix | R1: Prix avec réduction
A2: Cartes sur table | B2: 13 | C2: 10 | H2: 1) Calculez le prix avec réduction (= prix - taux * prix ). Utilisez le taux se trouvant dans la cellule ci-dessous | P2: Cartes sur table | Q2: 10
A3: Drame en trois actes | B3: 13 | C3: 12 | H3: 2) Recommencez la même chose en utilisant la "propagation" des formules (CF Colonne P) | P3: Drame en trois actes | Q3: 12
A4: Contes | B4: 2 | C4: 12 | H4: 3) Recommencez la même chose en utilisant les tableaux de données (CF ci-dessous) | P4: Contes | Q4: 12
A5: Dix petits nègres | B5: 13 | C5: 15 | P5: Dix petits nègres | Q5: 15
A6: Café turc | B6: 5 | C6: 12 | H6: Taux : | I6: 0.1 | P6: Café turc | Q6: 12
A7: Poétique | B7: 4 | C7: 18 | P7: Poétique | Q7: 18
A8: La Main froide | B8: 12 | C8: 12 | H8: 2) A partir de la liste ci-dessous, complétez les noms et prénoms des auteurs | P8: La Main froide | Q8: 12
A9: Cinq petits cochons | B9: 13 | C9: 12 | H9: 2Bis) Recommencez la même chose en utilisant les tableaux de données (CF ci-dessous) | P9: Cinq petits cochons | Q9: 12
A10: Conan Lord | B10: 12 | C10: 17 | P10: Conan Lord | Q10: 17
A11: La mort l'aime chaud | B11: 11 | C11: 12 | I11: Id_Auteur | J11: Nom | K11: Prénom | P11: La mort l'aime chaud | Q11: 12
A12: Le Spleen de Paris | B12: 8 | C12: 15 | I12: 1 | J12: Alain-Fournier | P12: Le Spleen de Paris | Q12: 15
A13: La Case de l'oncle Tom | B13: 9 | C13: 10 | I13: 2 | J13: Andersen | K13: Hans Christian | P13: La Case de l'oncle Tom | Q13: 10
A14: Jeux de glaces | B14: 13 | C14: 15 | I14: 4 | J14: Aristote | P14: Jeux de glaces | Q14: 15
A15: Rhétorique | B15: 4 | C15: 18 | I15: 5 | J15: Arjouni | K15: Jakob | P15: Rhétorique | Q15: 18
A16: L'étameur des morts | B16: 6 | C16: 12 | I16: 6 | J16: Arnaud | K16: Georges J. | P16: L'étameur des morts | Q16: 12
A17: A.B.C. contre Poirot | B17: 13 | C17: 12 | I17: 7 | J17: Balzac (de) | K17: Honoré | P17: A.B.C. contre Poirot | Q17: 12
A18: le mystérieux Mr Quinn | B18: 13 | C18: 15 | I18: 8 | J18: Baudelaire | K18: Charles | P18: le mystérieux Mr Quinn | Q18: 15
A19: L'heure zéro | B19: 13 | C19: 15 | I19: 9 | J19: Beecher-Stowe | K19: Harriet | P19: L'heure zéro | Q19: 15
A20: La Fille de la nuit | B20: 12 | C20: 10 | I20: 10 | J20: Boccace | K20: Giovanni | P20: La Fille de la nuit | Q20: 10
I21: 11 | J21: Box | K21: Edgar
I22: 12 | J22: Brussolo | K22: Serge
I23: 13 | J23: Christie | K23: Agatha
A28: Titre | B28: Référence de l'auteur | C28: Prix | D28: Prix avec réduction | E28: Nom de l'auteur | F28: Prénom de l'auteur | H28: 3) Recommencez la même chose en utilisant les tableaux de données
A29: Cartes sur table | B29: 13 | C29: 10
A30: Drame en trois actes | B30: 13 | C30: 12
A31: Contes | B31: 2 | C31: 12 | H31: Taux : | I31: 0.1
A32: Dix petits nègres | B32: 13 | C32: 15
A33: Café turc | B33: 5 | C33: 12 | H33: 2Bis) Recommencez la même chose en utilisant les tableaux de données
A34: Poétique | B34: 4 | C34: 18
A35: La Main froide | B35: 12 | C35: 12 | I35: Id_Auteur | J35: Nom | K35: Prénom
A36: Cinq petits cochons | B36: 13 | C36: 12 | I36: 1 | J36: Alain-Fournier
A37: Conan Lord | B37: 12 | C37: 17 | I37: 2 | J37: Andersen | K37: Hans Christian
A38: La mort l'aime chaud | B38: 11 | C38: 12 | I38: 4 | J38: Aristote
A39: Le Spleen de Paris | B39: 8 | C39: 15 | I39: 5 | J39: Arjouni | K39: Jakob
A40: La Case de l'oncle Tom | B40: 9 | C40: 10 | I40: 6 | J40: Arnaud | K40: Georges J.
A41: Jeux de glaces | B41: 13 | C41: 15 | I41: 7 | J41: Balzac (de) | K41: Honoré
A42: Rhétorique | B42: 4 | C42: 18 | I42: 8 | J42: Baudelaire | K42: Charles
A43: L'étameur des morts | B43: 6 | C43: 12 | I43: 9 | J43: Beecher-Stowe | K43: Harriet
A44: A.B.C. contre Poirot | B44: 13 | C44: 12 | I44: 10 | J44: Boccace | K44: Giovanni
A45: le mystérieux Mr Quinn | B45: 13 | C45: 15 | I45: 11 | J45: Box | K45: Edgar
A46: L'heure zéro | B46: 13 | C46: 15 | I46: 12 | J46: Brussolo | K46: Serge
A47: La Fille de la nuit | B47: 12 | C47: 10 | I47: 13 | J47: Christie | K47: Agatha

Sheet Introduction_corrigé (hidden)
A1: Titre | B1: Référence de l'auteur | C1: Prix | D1: Prix avec réduction | E1: Nom de l'auteur | F1: Prénom de l'auteur | P1: Titre | Q1: Prix | R1: Prix avec Réduction
A2: Cartes sur table | B2: 13 | C2: 10 | D2: =C2-$I$6*C2 -> 9 | E2: =VLOOKUP(B2,$I$12:$K$23,2) -> Christie | F2: =_xlfn.XLOOKUP(B2,$I$12:$I$23,$J$12:$J$23,,0) -> Christie | H2: 1) Calculez le prix avec réduction (= prix - taux * prix ). Utilisez le taux se trouvant dans la cellule ci-dessous | P2: Cartes sur table | Q2: 10 | R2: =Q2:Q20-$I$6*Q2:Q20 -> 9
A3: Drame en trois actes | B3: 13 | C3: 12 | D3: 10.8 | E3: =VLOOKUP(B3,$I$12:$K$23,2) -> Christie | F3: Christie | H3: 2) Recommencez la même chose en utilisant la "propagation" des formules (CF Colonne P) | P3: Drame en trois actes | Q3: 12 | R3: 10.8
A4: Contes | B4: 2 | C4: 12 | D4: 10.8 | E4: Andersen | F4: Andersen | H4: 3) Recommencez la même chose en utilisant les tableaux de données | P4: Contes | Q4: 12 | R4: 10.8
A5: Dix petits nègres | B5: 13 | C5: 15 | D5: 13.5 | E5: Christie | F5: Christie | P5: Dix petits nègres | Q5: 15 | R5: 13.5
A6: Café turc | B6: 5 | C6: 12 | D6: 10.8 | E6: Arjouni | F6: Arjouni | H6: Taux : | I6: 0.1 | P6: Café turc | Q6: 12 | R6: 10.8
A7: Poétique | B7: 4 | C7: 18 | D7: 16.2 | E7: Aristote | F7: Aristote | P7: Poétique | Q7: 18 | R7: 16.2
A8: La Main froide | B8: 12 | C8: 12 | D8: 10.8 | E8: Brussolo | F8: Brussolo | H8: 2) A partir de la liste ci-dessous, complétez les noms et prénoms des auteurs | P8: La Main froide | Q8: 12 | R8: 10.8
A9: Cinq petits cochons | B9: 13 | C9: 12 | D9: 10.8 | E9: Christie | F9: Christie | H9: 2Bis) Dans les colonnes 'Nom 2' et 'Prénom 2',recommencez la même chose en utilisant les tableaux de données | P9: Cinq petits cochons | Q9: 12 | R9: 10.8
A10: Conan Lord | B10: 12 | C10: 17 | D10: 15.3 | E10: Brussolo | F10: Brussolo | P10: Conan Lord | Q10: 17 | R10: 15.3
A11: La mort l'aime chaud | B11: 11 | C11: 12 | D11: 10.8 | E11: Box | F11: Box | I11: Id_Auteur | J11: Nom | K11: Prénom | P11: La mort l'aime chaud | Q11: 12 | R11: 10.8
A12: Le Spleen de Paris | B12: 8 | C12: 15 | D12: 13.5 | E12: Baudelaire | F12: Baudelaire | I12: 1 | J12: Alain-Fournier | P12: Le Spleen de Paris | Q12: 15 | R12: 13.5
A13: La Case de l'oncle Tom | B13: 9 | C13: 10 | D13: 9 | E13: Beecher-Stowe | F13: Beecher-Stowe | I13: 2 | J13: Andersen | K13: Hans Christian | P13: La Case de l'oncle Tom | Q13: 10 | R13: 9
A14: Jeux de glaces | B14: 13 | C14: 15 | D14: 13.5 | E14: Christie | F14: Christie | I14: 4 | J14: Aristote | P14: Jeux de glaces | Q14: 15 | R14: 13.5
A15: Rhétorique | B15: 4 | C15: 18 | D15: 16.2 | E15: Aristote | F15: Aristote | I15: 5 | J15: Arjouni | K15: Jakob | P15: Rhétorique | Q15: 18 | R15: 16.2
A16: L'étameur des morts | B16: 6 | C16: 12 | D16: 10.8 | E16: Arnaud | F16: Arnaud | I16: 6 | J16: Arnaud | K16: Georges J. | P16: L'étameur des morts | Q16: 12 | R16: 10.8
A17: A.B.C. contre Poirot | B17: 13 | C17: 12 | D17: 10.8 | E17: Christie | F17: Christie | I17: 7 | J17: Balzac (de) | K17: Honoré | P17: A.B.C. contre Poirot | Q17: 12 | R17: 10.8
A18: le mystérieux Mr Quinn | B18: 13 | C18: 15 | D18: 13.5 | E18: Christie | F18: Christie | I18: 8 | J18: Baudelaire | K18: Charles | P18: le mystérieux Mr Quinn | Q18: 15 | R18: 13.5
A19: L'heure zéro | B19: 13 | C19: 15 | D19: 13.5 | E19: Christie | F19: Christie | I19: 9 | J19: Beecher-Stowe | K19: Harriet | P19: L'heure zéro | Q19: 15 | R19: 13.5
A20: La Fille de la nuit | B20: 12 | C20: 10 | D20: 9 | E20: Brussolo | F20: Brussolo | I20: 10 | J20: Boccace | K20: Giovanni | P20: La Fille de la nuit | Q20: 10 | R20: 9
I21: 11 | J21: Box | K21: Edgar | P21: Test | Q21: 25
I22: 12 | J22: Brussolo | K22: Serge
I23: 13 | J23: Christie | K23: Agatha
A28: Titre | B28: Référence de l'auteur | C28: Prix | D28: Prix avec réduction | E28: Nom de l'auteur | F28: Prénom de l'auteur | H28: 3) Recommencez la même chose en utilisant les tableaux de données
A29: Cartes sur table | B29: 13 | C29: 10 | D29: =Tableau3[[#This Row],[Prix]]-Tableau4[Colonne1]*Tableau3[[#This Row],[Prix]] -> 9 | E29: =VLOOKUP(Tableau3[[#This Row],[Référence de l''auteur]],Tableau5[],2,FALSE) -> Christie | F29: =_xlfn.XLOOKUP(Tableau3[[#This Row],[Référence de l''auteur]],Tableau5[Id_Auteur],Tableau5[Prénom],,0) -> Agatha
A30: Drame en trois actes | B30: 13 | C30: 12 | D30: =Tableau3[[#This Row],[Prix]]-Tableau4[Colonne1]*Tableau3[[#This Row],[Prix]] -> 10.8 | E30: =VLOOKUP(Tableau3[[#This Row],[Référence de l''auteur]],Tableau5[],2,FALSE) -> Christie | F30: =_xlfn.XLOOKUP(Tableau3[[#This Row],[Référence de l''auteur]],Tableau5[Id_Auteur],Tableau5[Prénom],,0) -> Agatha | I30: Colonne1
A31: Contes | B31: 2 | C31: 12 | D31: =Tableau3[[#This Row],[Prix]]-Tableau4[Colonne1]*Tableau3[[#This Row],[Prix]] -> 10.8 | E31: =VLOOKUP(Tableau3[[#This Row],[Référence de l''auteur]],Tableau5[],2,FALSE) -> Andersen | F31: =_xlfn.XLOOKUP(Tableau3[[#This Row],[Référence de l''auteur]],Tableau5[Id_Auteur],Tableau5[Prénom],,0) -> Hans Christian | H31: Taux : | I31: 0.1
A32: Dix petits nègres | B32: 13 | C32: 15 | D32: =Tableau3[[#This Row],[Prix]]-Tableau4[Colonne1]*Tableau3[[#This Row],[Prix]] -> 13.5 | E32: =VLOOKUP(Tableau3[[#This Row],[Référence de l''auteur]],Tableau5[],2,FALSE) -> Christie | F32: =_xlfn.XLOOKUP(Tableau3[[#This Row],[Référence de l''auteur]],Tableau5[Id_Auteur],Tableau5[Prénom],,0) -> Agatha
A33: Café turc | B33: 5 | C33: 12 | D33: =Tableau3[[#This Row],[Prix]]-Tableau4[Colonne1]*Tableau3[[#This Row],[Prix]] -> 10.8 | E33: =VLOOKUP(Tableau3[[#This Row],[Référence de l''auteur]],Tableau5[],2,FALSE) -> Arjouni | F33: =_xlfn.XLOOKUP(Tableau3[[#This Row],[Référence de l''auteur]],Tableau5[Id_Auteur],Tableau5[Prénom],,0) -> Jakob | H33: 2Bis) Recommencez la même chose en utilisant les tableaux de données
A34: Poétique | B34: 4 | C34: 18 | D34: =Tableau3[[#This Row],[Prix]]-Tableau4[Colonne1]*Tableau3[[#This Row],[Prix]] -> 16.2 | E34: =VLOOKUP(Tableau3[[#This Row],[Référence de l''auteur]],Tableau5[],2,FALSE) -> Aristote | F34: =_xlfn.XLOOKUP(Tableau3[[#This Row],[Référence de l''auteur]],Tableau5[Id_Auteur],Tableau5[Prénom],,0) -> 
A35: La Main froide | B35: 12 | C35: 12 | D35: =Tableau3[[#This Row],[Prix]]-Tableau4[Colonne1]*Tableau3[[#This Row],[Prix]] -> 10.8 | E35: =VLOOKUP(Tableau3[[#This Row],[Référence de l''auteur]],Tableau5[],2,FALSE) -> Brussolo | F35: =_xlfn.XLOOKUP(Tableau3[[#This Row],[Référence de l''auteur]],Tableau5[Id_Auteur],Tableau5[Prénom],,0) -> Serge | I35: Id_Auteur | J35: Nom | K35: Prénom
A36: Cinq petits cochons | B36: 13 | C36: 12 | D36: =Tableau3[[#This Row],[Prix]]-Tableau4[Colonne1]*Tableau3[[#This Row],[Prix]] -> 10.8 | E36: =VLOOKUP(Tableau3[[#This Row],[Référence de l''auteur]],Tableau5[],2,FALSE) -> Christie | F36: =_xlfn.XLOOKUP(Tableau3[[#This Row],[Référence de l''auteur]],Tableau5[Id_Auteur],Tableau5[Prénom],,0) -> Agatha | I36: 1 | J36: Alain-Fournier
A37: Conan Lord | B37: 12 | C37: 17 | D37: =Tableau3[[#This Row],[Prix]]-Tableau4[Colonne1]*Tableau3[[#This Row],[Prix]] -> 15.3 | E37: =VLOOKUP(Tableau3[[#This Row],[Référence de l''auteur]],Tableau5[],2,FALSE) -> Brussolo | F37: =_xlfn.XLOOKUP(Tableau3[[#This Row],[Référence de l''auteur]],Tableau5[Id_Auteur],Tableau5[Prénom],,0) -> Serge | I37: 2 | J37: Andersen | K37: Hans Christian
A38: La mort l'aime chaud | B38: 11 | C38: 12 | D38: =Tableau3[[#This Row],[Prix]]-Tableau4[Colonne1]*Tableau3[[#This Row],[Prix]] -> 10.8 | E38: =VLOOKUP(Tableau3[[#This Row],[Référence de l''auteur]],Tableau5[],2,FALSE) -> Box | F38: =_xlfn.XLOOKUP(Tableau3[[#This Row],[Référence de l''auteur]],Tableau5[Id_Auteur],Tableau5[Prénom],,0) -> Edgar | I38: 4 | J38: Aristote
A39: Le Spleen de Paris | B39: 8 | C39: 15 | D39: =Tableau3[[#This Row],[Prix]]-Tableau4[Colonne1]*Tableau3[[#This Row],[Prix]] -> 13.5 | E39: =VLOOKUP(Tableau3[[#This Row],[Référence de l''auteur]],Tableau5[],2,FALSE) -> Baudelaire | F39: =_xlfn.XLOOKUP(Tableau3[[#This Row],[Référence de l''auteur]],Tableau5[Id_Auteur],Tableau5[Prénom],,0) -> Charles | I39: 5 | J39: Arjouni | K39: Jakob
A40: La Case de l'oncle Tom | B40: 9 | C40: 10 | D40: =Tableau3[[#This Row],[Prix]]-Tableau4[Colonne1]*Tableau3[[#This Row],[Prix]] -> 9 | E40: =VLOOKUP(Tableau3[[#This Row],[Référence de l''auteur]],Tableau5[],2,FALSE) -> Beecher-Stowe | F40: =_xlfn.XLOOKUP(Tableau3[[#This Row],[Référence de l''auteur]],Tableau5[Id_Auteur],Tableau5[Prénom],,0) -> Harriet | I40: 6 | J40: Arnaud | K40: Georges J.
A41: Jeux de glaces | B41: 13 | C41: 15 | D41: =Tableau3[[#This Row],[Prix]]-Tableau4[Colonne1]*Tableau3[[#This Row],[Prix]] -> 13.5 | E41: =VLOOKUP(Tableau3[[#This Row],[Référence de l''auteur]],Tableau5[],2,FALSE) -> Christie | F41: =_xlfn.XLOOKUP(Tableau3[[#This Row],[Référence de l''auteur]],Tableau5[Id_Auteur],Tableau5[Prénom],,0) -> Agatha | I41: 7 | J41: Balzac (de) | K41: Honoré
A42: Rhétorique | B42: 4 | C42: 18 | D42: =Tableau3[[#This Row],[Prix]]-Tableau4[Colonne1]*Tableau3[[#This Row],[Prix]] -> 16.2 | E42: =VLOOKUP(Tableau3[[#This Row],[Référence de l''auteur]],Tableau5[],2,FALSE) -> Aristote | F42: =_xlfn.XLOOKUP(Tableau3[[#This Row],[Référence de l''auteur]],Tableau5[Id_Auteur],Tableau5[Prénom],,0) ->  | I42: 8 | J42: Baudelaire | K42: Charles
A43: L'étameur des morts | B43: 6 | C43: 12 | D43: =Tableau3[[#This Row],[Prix]]-Tableau4[Colonne1]*Tableau3[[#This Row],[Prix]] -> 10.8 | E43: =VLOOKUP(Tableau3[[#This Row],[Référence de l''auteur]],Tableau5[],2,FALSE) -> Arnaud | F43: =_xlfn.XLOOKUP(Tableau3[[#This Row],[Référence de l''auteur]],Tableau5[Id_Auteur],Tableau5[Prénom],,0) -> Georges J. | I43: 9 | J43: Beecher-Stowe | K43: Harriet
A44: A.B.C. contre Poirot | B44: 13 | C44: 12 | D44: =Tableau3[[#This Row],[Prix]]-Tableau4[Colonne1]*Tableau3[[#This Row],[Prix]] -> 10.8 | E44: =VLOOKUP(Tableau3[[#This Row],[Référence de l''auteur]],Tableau5[],2,FALSE) -> Christie | F44: =_xlfn.XLOOKUP(Tableau3[[#This Row],[Référence de l''auteur]],Tableau5[Id_Auteur],Tableau5[Prénom],,0) -> Agatha | I44: 10 | J44: Boccace | K44: Giovanni
A45: le mystérieux Mr Quinn | B45: 13 | C45: 15 | D45: =Tableau3[[#This Row],[Prix]]-Tableau4[Colonne1]*Tableau3[[#This Row],[Prix]] -> 13.5 | E45: =VLOOKUP(Tableau3[[#This Row],[Référence de l''auteur]],Tableau5[],2,FALSE) -> Christie | F45: =_xlfn.XLOOKUP(Tableau3[[#This Row],[Référence de l''auteur]],Tableau5[Id_Auteur],Tableau5[Prénom],,0) -> Agatha | I45: 11 | J45: Box | K45: Edgar
A46: L'heure zéro | B46: 13 | C46: 15 | D46: =Tableau3[[#This Row],[Prix]]-Tableau4[Colonne1]*Tableau3[[#This Row],[Prix]] -> 13.5 | E46: =VLOOKUP(Tableau3[[#This Row],[Référence de l''auteur]],Tableau5[],2,FALSE) -> Christie | F46: =_xlfn.XLOOKUP(Tableau3[[#This Row],[Référence de l''auteur]],Tableau5[Id_Auteur],Tableau5[Prénom],,0) -> Agatha | I46: 12 | J46: Brussolo | K46: Serge
A47: La Fille de la nuit | B47: 12 | C47: 10 | D47: =Tableau3[[#This Row],[Prix]]-Tableau4[Colonne1]*Tableau3[[#This Row],[Prix]] -> 9 | E47: =VLOOKUP(Tableau3[[#This Row],[Référence de l''auteur]],Tableau5[],2,FALSE) -> Brussolo | F47: =_xlfn.XLOOKUP(Tableau3[[#This Row],[Référence de l''auteur]],Tableau5[Id_Auteur],Tableau5[Prénom],,0) -> Serge | I47: 13 | J47: Christie | K47: Agatha

Sheet Bdd1_consignes
M1: Retour sommaire
B3: 1) Utilisez des listes afin d'obliger l'utilisateur à choisir un des éléments prévus ci-dessous de façon à compléter la colonnes des services
B5: NB1 : ceci a déjà été réalisé pour la colonne 'Etat civil'
B7: NB2 : les éléments des listes sont les suivants. Services 1 sera utilisé pour les éléments de la colonne J (Services 1) et 'Services 2' pour les éléments de la colonne J (Services 2). Services 3 est utilisé dans le corrigé
C9: Etat civil | E9: Services 1 | G9: Services 2 | I9: Services 3 | K9: NB : | L9: 1- Créez un tableau des services
C10: Marié(e) | E10: Secrétariat | G10: Secrétariat | I10: Secrétariat | L10: 2- Nommez la plage (G10:G13) qui reprend les services
C11: Célibataire | E11: Direction | G11: Direction | I11: Direction | L11: 3- Indiquez le nom de la plage nommée en tant que source de la liste
C12: Divorcé(e) | E12: Personnel | G12: Personnel | I12: Personnel
E13: Informatique | G13: Informatique | I13: Informatique
I14: RH
B17: 2) Utilisez le tableau suivant de façon à obtenir la ville qui correspond au code postal de la personne
B18: Le premier tableau sera utilisé pour une 'Recherche' classique, le second pour une recherche dans un tableau de données, le 3ème est utilisé pour le corrigé
C21: CP | D21: Ville | F21: CP | G21: Ville | I21: CP | J21: Ville
C22: 1030 | D22: Schaerbeek | F22: 1030 | G22: Schaerbeek | I22: 1030 | J22: Schaerbeek
C23: 1000 | D23: Bruxelles | F23: 1000 | G23: Bruxelles | I23: 1000 | J23: Bruxelles
C24: 1070 | D24: Anderlecht | F24: 1070 | G24: Anderlecht | I24: 1070 | J24: Anderlecht
C25: 1050 | D25: Ixelles | F25: 1050 | G25: Ixelles | I25: 1050 | J25: Ixelles
C26: 1060 | D26: Saint-Gilles | F26: 1060 | G26: Saint-Gilles | I26: 1060 | J26: Saint-Gilles
C27: 1040 | D27: Etterbeek | F27: 1040 | G27: Etterbeek | I27: 1040 | J27: Etterbeek
B29: 3) Calculez les âges des employés
B31: 4) Calculez la tranche d'ancienneté en fonction de l'âge
B33: NB : les tranches sont calculées selon ceci
C35: Age | D35: Tranches
C36: <25 | D36: 0
C37: >=25 et <35 | D37: 1
C38: >=35 et <45 | D38: 2
C39: >=45 et <55 | D39: 3
C40: >=55 | D40: 4
B43: 5) Calculez le salaire : salaire minimum + 5% * tranche * salaire minimum
B45: NB : Le salaire minimum est obtenu selon ce tableau en utilisant une recherche dans un tableau de données avec RechercheX
B46: NB2 : Le second tableau est utilisé dans le corrigé
C49: Services | D49: Salaire minimum | G49: Services | H49: Salaire minimum
C50: Direction | D50: 2500 | G50: Direction | H50: 2500
C51: Informatique | D51: 1900 | G51: Informatique | H51: 1900
C52: Secrétariat | D52: 1700 | G52: Secrétariat | H52: 1700
C53: Personnel | D53: 1600 | G53: Personnel | H53: 1600
C54: RH | D54: 2600 | G54: RH | H54: 2600
B57: 6) Enlevez l'erreur des lignes pour lesquelles aucun service n'est encore choisi

Sheet Bdd1
A1: Nom | B1: Prénom | C1: Sexe | D1: Etat civil | E1: CP | F1: Ville 1 | G1: Ville 2 | H1: Date de naissance | I1: Age | J1: Tranches | K1: Services 1 | L1: Services 2 | M1: Salaires Min | N1: Salaires | Q1: Retour sommaire
A2: Bistrot | B2: Alonso | C2: m | D2: Marié(e) | E2: 1030 | H2: 1966-01-17
A3: Bijoba | B3: Jo | C3: m | D3: Marié(e) | E3: 1000 | H3: 1980-03-15
A4: Covert | B4: Harry | C4: m | D4: Divorcé(e) | E4: 1000 | H4: 1942-02-10
A5: Culaire | B5: Laury | C5: m | D5: Marié(e) | E5: 1030 | H5: 1965-05-05
A6: Deuf | B6: John | C6: m | D6: Célibataire | E6: 1070 | H6: 1963-09-08
A7: Foupasune | B7: Jean | C7: m | D7: Célibataire | E7: 1070 | H7: 1975-08-07
A8: Lairbon | B8: Oussama | C8: m | D8: Marié(e) | E8: 1030 | H8: 1983-02-08
A9: Menvussa | B9: Gérard | C9: m | D9: Célibataire | E9: 1050 | H9: 1970-12-04
A10: Lalalalalalala | B10: Starsky | C10: m | D10: Célibataire | E10: 1060 | H10: 1955-07-08
A11: Lalalalalalala | B11: Hutch | C11: m | D11: Divorcé(e) | E11: 1050 | H11: 1952-10-07
A12: Cléssoulaporte | B12: Djamila | C12: f | D12: Marié(e) | E12: 1050 | H12: 1959-09-07
A13: Noux | B13: Marion | C13: f | D13: Divorcé(e) | E13: 1050 | H13: 1978-12-30
A14: Ouzi | B14: Jacques | C14: m | D14: Célibataire | E14: 1000 | H14: 1969-02-28
A15: Stiké | B15: Sophie | C15: f | D15: Divorcé(e) | E15: 1070 | H15: 1959-04-04
A16: Tare | B16: Guy | C16: m | D16: Divorcé(e) | E16: 1070 | H16: 1960-08-07
A17: Vaisselle | B17: Aude | C17: f | D17: Marié(e) | E17: 1070 | H17: 1966-06-06
A18: Zetofrais | B18: Mélanie | C18: f | E18: 1070 | H18: 1978-11-25
A19: Touille | B19: Sasha | C19: m | E19: 1070 | H19: 1982-10-30
A20: Proviste | B20: Alain | C20: m | E20: 1030 | H20: 1959-09-09
A21: Peulaporte | B21: Firmin | C21: m | E21: 1040 | H21: 1965-07-01
A22: Unetitlaine | B22: Jérémy | C22: m | E22: 1030 | H22: 1983-06-09
A26: NB1 : les consignes sont précisées sur la feuille précédente.
A27: NB2 : Les calculs seront réalisés après avoir créé un tableau de données (Sélection .. Mettre sous forme de tableau)

Sheet Bdd1_corrigé (hidden)
A1: Nom | B1: Prénom | C1: Sexe | D1: Etat civil | E1: CP | F1: Ville 1 | G1: Ville 2 | H1: Date de naissance | I1: Age | J1: Tranches | K1: Services | L1: Services 3 | M1: Salaires Min | N1: Salaires
A2: Bistrot | B2: Alonso | C2: m | D2: Marié(e) | E2: 1030 | F2: =VLOOKUP(Tableau8[[#This Row],[CP]],Bdd1_consignes!$C$22:$D$27,2,FALSE) -> Schaerbeek | G2: =VLOOKUP(Tableau8[[#This Row],[CP]],Tableau10[],2,FALSE) -> Schaerbeek | H2: 1966-01-17 | I2: =DATEDIF(Tableau8[[#This Row],[Date de naissance]],TODAY(),"y") -> 57 | J2: =IF(Tableau8[[#This Row],[Age]]<25,0,IF(Tableau8[[#This Row],[Age]]<35,1,IF(Tableau8[[#This Row],[Age]]<45,2,IF(Tableau8[[#This Row],[Age]]<55,3,4)))) -> 4 | K2: Informatique | L2: Informatique | M2: =_xlfn.XLOOKUP(Tableau8[[#This Row],[Services]],Tableau7[Services],Tableau7[Salaire minimum],"",0) -> 1900 | N2: =IF(Tableau8[[#This Row],[Salaires Min]]="","",Tableau8[[#This Row],[Salaires Min]]+5%*Tableau8[[#This Row],[Tranches]]*Tableau8[[#This Row],[Salaires Min]]) -> 2280
A3: Bijoba | B3: Jo | C3: m | D3: Marié(e) | E3: 1000 | F3: =VLOOKUP(Tableau8[[#This Row],[CP]],Bdd1_consignes!$C$22:$D$27,2,FALSE) -> Bruxelles | G3: =VLOOKUP(Tableau8[[#This Row],[CP]],Tableau10[],2,FALSE) -> Bruxelles | H3: 1980-03-15 | I3: =DATEDIF(Tableau8[[#This Row],[Date de naissance]],TODAY(),"y") -> 43 | J3: =IF(Tableau8[[#This Row],[Age]]<25,0,IF(Tableau8[[#This Row],[Age]]<35,1,IF(Tableau8[[#This Row],[Age]]<45,2,IF(Tableau8[[#This Row],[Age]]<55,3,4)))) -> 2 | K3: Direction | L3: Direction | M3: =_xlfn.XLOOKUP(Tableau8[[#This Row],[Services]],Tableau7[Services],Tableau7[Salaire minimum],"",0) -> 2500 | N3: =IF(Tableau8[[#This Row],[Salaires Min]]="","",Tableau8[[#This Row],[Salaires Min]]+5%*Tableau8[[#This Row],[Tranches]]*Tableau8[[#This Row],[Salaires Min]]) -> 2750
A4: Covert | B4: Harry | C4: m | D4: Divorcé(e) | E4: 1000 | F4: =VLOOKUP(Tableau8[[#This Row],[CP]],Bdd1_consignes!$C$22:$D$27,2,FALSE) -> Bruxelles | G4: =VLOOKUP(Tableau8[[#This Row],[CP]],Tableau10[],2,FALSE) -> Bruxelles | H4: 1942-02-10 | I4: =DATEDIF(Tableau8[[#This Row],[Date de naissance]],TODAY(),"y") -> 81 | J4: =IF(Tableau8[[#This Row],[Age]]<25,0,IF(Tableau8[[#This Row],[Age]]<35,1,IF(Tableau8[[#This Row],[Age]]<45,2,IF(Tableau8[[#This Row],[Age]]<55,3,4)))) -> 4 | K4: Personnel | L4: Personnel | M4: =_xlfn.XLOOKUP(Tableau8[[#This Row],[Services]],Tableau7[Services],Tableau7[Salaire minimum],"",0) -> 1600 | N4: =IF(Tableau8[[#This Row],[Salaires Min]]="","",Tableau8[[#This Row],[Salaires Min]]+5%*Tableau8[[#This Row],[Tranches]]*Tableau8[[#This Row],[Salaires Min]]) -> 1920
A5: Culaire | B5: Laury | C5: m | D5: Marié(e) | E5: 1030 | F5: =VLOOKUP(Tableau8[[#This Row],[CP]],Bdd1_consignes!$C$22:$D$27,2,FALSE) -> Schaerbeek | G5: =VLOOKUP(Tableau8[[#This Row],[CP]],Tableau10[],2,FALSE) -> Schaerbeek | H5: 1965-05-05 | I5: =DATEDIF(Tableau8[[#This Row],[Date de naissance]],TODAY(),"y") -> 58 | J5: =IF(Tableau8[[#This Row],[Age]]<25,0,IF(Tableau8[[#This Row],[Age]]<35,1,IF(Tableau8[[#This Row],[Age]]<45,2,IF(Tableau8[[#This Row],[Age]]<55,3,4)))) -> 4 | K5: Personnel | L5: Personnel | M5: =_xlfn.XLOOKUP(Tableau8[[#This Row],[Services]],Tableau7[Services],Tableau7[Salaire minimum],"",0) -> 1600 | N5: =IF(Tableau8[[#This Row],[Salaires Min]]="","",Tableau8[[#This Row],[Salaires Min]]+5%*Tableau8[[#This Row],[Tranches]]*Tableau8[[#This Row],[Salaires Min]]) -> 1920
A6: Deuf | B6: John | C6: m | D6: Célibataire | E6: 1070 | F6: =VLOOKUP(Tableau8[[#This Row],[CP]],Bdd1_consignes!$C$22:$D$27,2,FALSE) -> Anderlecht | G6: =VLOOKUP(Tableau8[[#This Row],[CP]],Tableau10[],2,FALSE) -> Anderlecht | H6: 1963-09-08 | I6: =DATEDIF(Tableau8[[#This Row],[Date de naissance]],TODAY(),"y") -> 60 | J6: =IF(Tableau8[[#This Row],[Age]]<25,0,IF(Tableau8[[#This Row],[Age]]<35,1,IF(Tableau8[[#This Row],[Age]]<45,2,IF(Tableau8[[#This Row],[Age]]<55,3,4)))) -> 4 | K6: Informatique | L6: Informatique | M6: =_xlfn.XLOOKUP(Tableau8[[#This Row],[Services]],Tableau7[Services],Tableau7[Salaire minimum],"",0) -> 1900 | N6: =IF(Tableau8[[#This Row],[Salaires Min]]="","",Tableau8[[#This Row],[Salaires Min]]+5%*Tableau8[[#This Row],[Tranches]]*Tableau8[[#This Row],[Salaires Min]]) -> 2280
A7: Foupasune | B7: Jean | C7: m | D7: Célibataire | E7: 1070 | F7: =VLOOKUP(Tableau8[[#This Row],[CP]],Bdd1_consignes!$C$22:$D$27,2,FALSE) -> Anderlecht | G7: =VLOOKUP(Tableau8[[#This Row],[CP]],Tableau10[],2,FALSE) -> Anderlecht | H7: 1975-08-07 | I7: =DATEDIF(Tableau8[[#This Row],[Date de naissance]],TODAY(),"y") -> 48 | J7: =IF(Tableau8[[#This Row],[Age]]<25,0,IF(Tableau8[[#This Row],[Age]]<35,1,IF(Tableau8[[#This Row],[Age]]<45,2,IF(Tableau8[[#This Row],[Age]]<55,3,4)))) -> 3 | K7: Personnel | L7: Personnel | M7: =_xlfn.XLOOKUP(Tableau8[[#This Row],[Services]],Tableau7[Services],Tableau7[Salaire minimum],"",0) -> 1600 | N7: =IF(Tableau8[[#This Row],[Salaires Min]]="","",Tableau8[[#This Row],[Salaires Min]]+5%*Tableau8[[#This Row],[Tranches]]*Tableau8[[#This Row],[Salaires Min]]) -> 1840
A8: Lairbon | B8: Oussama | C8: m | D8: Marié(e) | E8: 1030 | F8: =VLOOKUP(Tableau8[[#This Row],[CP]],Bdd1_consignes!$C$22:$D$27,2,FALSE) -> Schaerbeek | G8: =VLOOKUP(Tableau8[[#This Row],[CP]],Tableau10[],2,FALSE) -> Schaerbeek | H8: 1983-02-08 | I8: =DATEDIF(Tableau8[[#This Row],[Date de naissance]],TODAY(),"y") -> 40 | J8: =IF(Tableau8[[#This Row],[Age]]<25,0,IF(Tableau8[[#This Row],[Age]]<35,1,IF(Tableau8[[#This Row],[Age]]<45,2,IF(Tableau8[[#This Row],[Age]]<55,3,4)))) -> 2 | K8: Personnel | L8: Personnel | M8: =_xlfn.XLOOKUP(Tableau8[[#This Row],[Services]],Tableau7[Services],Tableau7[Salaire minimum],"",0) -> 1600 | N8: =IF(Tableau8[[#This Row],[Salaires Min]]="","",Tableau8[[#This Row],[Salaires Min]]+5%*Tableau8[[#This Row],[Tranches]]*Tableau8[[#This Row],[Salaires Min]]) -> 1760
A9: Menvussa | B9: Gérard | C9: m | D9: Célibataire | E9: 1050 | F9: =VLOOKUP(Tableau8[[#This Row],[CP]],Bdd1_consignes!$C$22:$D$27,2,FALSE) -> Ixelles | G9: =VLOOKUP(Tableau8[[#This Row],[CP]],Tableau10[],2,FALSE) -> Ixelles | H9: 1970-12-04 | I9: =DATEDIF(Tableau8[[#This Row],[Date de naissance]],TODAY(),"y") -> 52 | J9: =IF(Tableau8[[#This Row],[Age]]<25,0,IF(Tableau8[[#This Row],[Age]]<35,1,IF(Tableau8[[#This Row],[Age]]<45,2,IF(Tableau8[[#This Row],[Age]]<55,3,4)))) -> 3 | K9: Informatique | L9: Informatique | M9: =_xlfn.XLOOKUP(Tableau8[[#This Row],[Services]],Tableau7[Services],Tableau7[Salaire minimum],"",0) -> 1900 | N9: =IF(Tableau8[[#This Row],[Salaires Min]]="","",Tableau8[[#This Row],[Salaires Min]]+5%*Tableau8[[#This Row],[Tranches]]*Tableau8[[#This Row],[Salaires Min]]) -> 2185
A10: Lalalalalalala | B10: Starsky | C10: m | D10: Célibataire | E10: 1060 | F10: =VLOOKUP(Tableau8[[#This Row],[CP]],Bdd1_consignes!$C$22:$D$27,2,FALSE) -> Saint-Gilles | G10: =VLOOKUP(Tableau8[[#This Row],[CP]],Tableau10[],2,FALSE) -> Saint-Gilles | H10: 1955-07-08 | I10: =DATEDIF(Tableau8[[#This Row],[Date de naissance]],TODAY(),"y") -> 68 | J10: =IF(Tableau8[[#This Row],[Age]]<25,0,IF(Tableau8[[#This Row],[Age]]<35,1,IF(Tableau8[[#This Row],[Age]]<45,2,IF(Tableau8[[#This Row],[Age]]<55,3,4)))) -> 4 | K10: Personnel | L10: Personnel | M10: =_xlfn.XLOOKUP(Tableau8[[#This Row],[Services]],Tableau7[Services],Tableau7[Salaire minimum],"",0) -> 1600 | N10: =IF(Tableau8[[#This Row],[Salaires Min]]="","",Tableau8[[#This Row],[Salaires Min]]+5%*Tableau8[[#This Row],[Tranches]]*Tableau8[[#This Row],[Salaires Min]]) -> 1920
A11: Lalalalalalala | B11: Hutch | C11: m | D11: Divorcé(e) | E11: 1050 | F11: =VLOOKUP(Tableau8[[#This Row],[CP]],Bdd1_consignes!$C$22:$D$27,2,FALSE) -> Ixelles | G11: =VLOOKUP(Tableau8[[#This Row],[CP]],Tableau10[],2,FALSE) -> Ixelles | H11: 1952-10-07 | I11: =DATEDIF(Tableau8[[#This Row],[Date de naissance]],TODAY(),"y") -> 71 | J11: =IF(Tableau8[[#This Row],[Age]]<25,0,IF(Tableau8[[#This Row],[Age]]<35,1,IF(Tableau8[[#This Row],[Age]]<45,2,IF(Tableau8[[#This Row],[Age]]<55,3,4)))) -> 4 | K11: Direction | L11: Direction | M11: =_xlfn.XLOOKUP(Tableau8[[#This Row],[Services]],Tableau7[Services],Tableau7[Salaire minimum],"",0) -> 2500 | N11: =IF(Tableau8[[#This Row],[Salaires Min]]="","",Tableau8[[#This Row],[Salaires Min]]+5%*Tableau8[[#This Row],[Tranches]]*Tableau8[[#This Row],[Salaires Min]]) -> 3000
A12: Cléssoulaporte | B12: Djamila | C12: f | D12: Marié(e) | E12: 1050 | F12: =VLOOKUP(Tableau8[[#This Row],[CP]],Bdd1_consignes!$C$22:$D$27,2,FALSE) -> Ixelles | G12: =VLOOKUP(Tableau8[[#This Row],[CP]],Tableau10[],2,FALSE) -> Ixelles | H12: 1959-09-07 | I12: =DATEDIF(Tableau8[[#This Row],[Date de naissance]],TODAY(),"y") -> 64 | J12: =IF(Tableau8[[#This Row],[Age]]<25,0,IF(Tableau8[[#This Row],[Age]]<35,1,IF(Tableau8[[#This Row],[Age]]<45,2,IF(Tableau8[[#This Row],[Age]]<55,3,4)))) -> 4 | M12: =_xlfn.XLOOKUP(Tableau8[[#This Row],[Services]],Tableau7[Services],Tableau7[Salaire minimum],"",0) ->  | N12: =IF(Tableau8[[#This Row],[Salaires Min]]="","",Tableau8[[#This Row],[Salaires Min]]+5%*Tableau8[[#This Row],[Tranches]]*Tableau8[[#This Row],[Salaires Min]]) -> 
A13: Noux | B13: Marion | C13: f | D13: Divorcé(e) | E13: 1050 | F13: =VLOOKUP(Tableau8[[#This Row],[CP]],Bdd1_consignes!$C$22:$D$27,2,FALSE) -> Ixelles | G13: =VLOOKUP(Tableau8[[#This Row],[CP]],Tableau10[],2,FALSE) -> Ixelles | H13: 1978-12-30 | I13: =DATEDIF(Tableau8[[#This Row],[Date de naissance]],TODAY(),"y") -> 44 | J13: =IF(Tableau8[[#This Row],[Age]]<25,0,IF(Tableau8[[#This Row],[Age]]<35,1,IF(Tableau8[[#This Row],[Age]]<45,2,IF(Tableau8[[#This Row],[Age]]<55,3,4)))) -> 2 | M13: =_xlfn.XLOOKUP(Tableau8[[#This Row],[Services]],Tableau7[Services],Tableau7[Salaire minimum],"",0) ->  | N13: =IF(Tableau8[[#This Row],[Salaires Min]]="","",Tableau8[[#This Row],[Salaires Min]]+5%*Tableau8[[#This Row],[Tranches]]*Tableau8[[#This Row],[Salaires Min]]) -> 
A14: Ouzi | B14: Jacques | C14: m | D14: Célibataire | E14: 1000 | F14: =VLOOKUP(Tableau8[[#This Row],[CP]],Bdd1_consignes!$C$22:$D$27,2,FALSE) -> Bruxelles | G14: =VLOOKUP(Tableau8[[#This Row],[CP]],Tableau10[],2,FALSE) -> Bruxelles | H14: 1969-02-28 | I14: =DATEDIF(Tableau8[[#This Row],[Date de naissance]],TODAY(),"y") -> 54 | J14: =IF(Tableau8[[#This Row],[Age]]<25,0,IF(Tableau8[[#This Row],[Age]]<35,1,IF(Tableau8[[#This Row],[Age]]<45,2,IF(Tableau8[[#This Row],[Age]]<55,3,4)))) -> 3 | M14: =_xlfn.XLOOKUP(Tableau8[[#This Row],[Services]],Tableau7[Services],Tableau7[Salaire minimum],"",0) ->  | N14: =IF(Tableau8[[#This Row],[Salaires Min]]="","",Tableau8[[#This Row],[Salaires Min]]+5%*Tableau8[[#This Row],[Tranches]]*Tableau8[[#This Row],[Salaires Min]]) -> 
A15: Stiké | B15: Sophie | C15: f | D15: Divorcé(e) | E15: 1070 | F15: =VLOOKUP(Tableau8[[#This Row],[CP]],Bdd1_consignes!$C$22:$D$27,2,FALSE) -> Anderlecht | G15: =VLOOKUP(Tableau8[[#This Row],[CP]],Tableau10[],2,FALSE) -> Anderlecht | H15: 1959-04-04 | I15: =DATEDIF(Tableau8[[#This Row],[Date de naissance]],TODAY(),"y") -> 64 | J15: =IF(Tableau8[[#This Row],[Age]]<25,0,IF(Tableau8[[#This Row],[Age]]<35,1,IF(Tableau8[[#This Row],[Age]]<45,2,IF(Tableau8[[#This Row],[Age]]<55,3,4)))) -> 4 | M15: =_xlfn.XLOOKUP(Tableau8[[#This Row],[Services]],Tableau7[Services],Tableau7[Salaire minimum],"",0) ->  | N15: =IF(Tableau8[[#This Row],[Salaires Min]]="","",Tableau8[[#This Row],[Salaires Min]]+5%*Tableau8[[#This Row],[Tranches]]*Tableau8[[#This Row],[Salaires Min]]) -> 
A16: Tare | B16: Guy | C16: m | D16: Divorcé(e) | E16: 1070 | F16: =VLOOKUP(Tableau8[[#This Row],[CP]],Bdd1_consignes!$C$22:$D$27,2,FALSE) -> Anderlecht | G16: =VLOOKUP(Tableau8[[#This Row],[CP]],Tableau10[],2,FALSE) -> Anderlecht | H16: 1960-08-07 | I16: =DATEDIF(Tableau8[[#This Row],[Date de naissance]],TODAY(),"y") -> 63 | J16: =IF(Tableau8[[#This Row],[Age]]<25,0,IF(Tableau8[[#This Row],[Age]]<35,1,IF(Tableau8[[#This Row],[Age]]<45,2,IF(Tableau8[[#This Row],[Age]]<55,3,4)))) -> 4 | M16: =_xlfn.XLOOKUP(Tableau8[[#This Row],[Services]],Tableau7[Services],Tableau7[Salaire minimum],"",0) ->  | N16: =IF(Tableau8[[#This Row],[Salaires Min]]="","",Tableau8[[#This Row],[Salaires Min]]+5%*Tableau8[[#This Row],[Tranches]]*Tableau8[[#This Row],[Salaires Min]]) -> 
A17: Vaisselle | B17: Aude | C17: f | D17: Marié(e) | E17: 1070 | F17: =VLOOKUP(Tableau8[[#This Row],[CP]],Bdd1_consignes!$C$22:$D$27,2,FALSE) -> Anderlecht | G17: =VLOOKUP(Tableau8[[#This Row],[CP]],Tableau10[],2,FALSE) -> Anderlecht | H17: 1966-06-06 | I17: =DATEDIF(Tableau8[[#This Row],[Date de naissance]],TODAY(),"y") -> 57 | J17: =IF(Tableau8[[#This Row],[Age]]<25,0,IF(Tableau8[[#This Row],[Age]]<35,1,IF(Tableau8[[#This Row],[Age]]<45,2,IF(Tableau8[[#This Row],[Age]]<55,3,4)))) -> 4 | M17: =_xlfn.XLOOKUP(Tableau8[[#This Row],[Services]],Tableau7[Services],Tableau7[Salaire minimum],"",0) ->  | N17: =IF(Tableau8[[#This Row],[Salaires Min]]="","",Tableau8[[#This Row],[Salaires Min]]+5%*Tableau8[[#This Row],[Tranches]]*Tableau8[[#This Row],[Salaires Min]]) -> 
A18: Zetofrais | B18: Mélanie | C18: f | D18: Célibataire | E18: 1070 | F18: =VLOOKUP(Tableau8[[#This Row],[CP]],Bdd1_consignes!$C$22:$D$27,2,FALSE) -> Anderlecht | G18: =VLOOKUP(Tableau8[[#This Row],[CP]],Tableau10[],2,FALSE) -> Anderlecht | H18: 1978-11-25 | I18: =DATEDIF(Tableau8[[#This Row],[Date de naissance]],TODAY(),"y") -> 44 | J18: =IF(Tableau8[[#This Row],[Age]]<25,0,IF(Tableau8[[#This Row],[Age]]<35,1,IF(Tableau8[[#This Row],[Age]]<45,2,IF(Tableau8[[#This Row],[Age]]<55,3,4)))) -> 2 | M18: =_xlfn.XLOOKUP(Tableau8[[#This Row],[Services]],Tableau7[Services],Tableau7[Salaire minimum],"",0) ->  | N18: =IF(Tableau8[[#This Row],[Salaires Min]]="","",Tableau8[[#This Row],[Salaires Min]]+5%*Tableau8[[#This Row],[Tranches]]*Tableau8[[#This Row],[Salaires Min]]) -> 
A19: Touille | B19: Sasha | C19: m | D19: Célibataire | E19: 1070 | F19: =VLOOKUP(Tableau8[[#This Row],[CP]],Bdd1_consignes!$C$22:$D$27,2,FALSE) -> Anderlecht | G19: =VLOOKUP(Tableau8[[#This Row],[CP]],Tableau10[],2,FALSE) -> Anderlecht | H19: 1982-10-30 | I19: =DATEDIF(Tableau8[[#This Row],[Date de naissance]],TODAY(),"y") -> 40 | J19: =IF(Tableau8[[#This Row],[Age]]<25,0,IF(Tableau8[[#This Row],[Age]]<35,1,IF(Tableau8[[#This Row],[Age]]<45,2,IF(Tableau8[[#This Row],[Age]]<55,3,4)))) -> 2 | M19: =_xlfn.XLOOKUP(Tableau8[[#This Row],[Services]],Tableau7[Services],Tableau7[Salaire minimum],"",0) ->  | N19: =IF(Tableau8[[#This Row],[Salaires Min]]="","",Tableau8[[#This Row],[Salaires Min]]+5%*Tableau8[[#This Row],[Tranches]]*Tableau8[[#This Row],[Salaires Min]]) -> 
A20: Proviste | B20: Alain | C20: m | D20: Marié(e) | E20: 1030 | F20: =VLOOKUP(Tableau8[[#This Row],[CP]],Bdd1_consignes!$C$22:$D$27,2,FALSE) -> Schaerbeek | G20: =VLOOKUP(Tableau8[[#This Row],[CP]],Tableau10[],2,FALSE) -> Schaerbeek | H20: 1959-09-09 | I20: =DATEDIF(Tableau8[[#This Row],[Date de naissance]],TODAY(),"y") -> 64 | J20: =IF(Tableau8[[#This Row],[Age]]<25,0,IF(Tableau8[[#This Row],[Age]]<35,1,IF(Tableau8[[#This Row],[Age]]<45,2,IF(Tableau8[[#This Row],[Age]]<55,3,4)))) -> 4 | M20: =_xlfn.XLOOKUP(Tableau8[[#This Row],[Services]],Tableau7[Services],Tableau7[Salaire minimum],"",0) ->  | N20: =IF(Tableau8[[#This Row],[Salaires Min]]="","",Tableau8[[#This Row],[Salaires Min]]+5%*Tableau8[[#This Row],[Tranches]]*Tableau8[[#This Row],[Salaires Min]]) -> 
A21: Peulaporte | B21: Firmin | C21: m | D21: Divorcé(e) | E21: 1040 | F21: =VLOOKUP(Tableau8[[#This Row],[CP]],Bdd1_consignes!$C$22:$D$27,2,FALSE) -> Etterbeek | G21: =VLOOKUP(Tableau8[[#This Row],[CP]],Tableau10[],2,FALSE) -> Etterbeek | H21: 1965-07-01 | I21: =DATEDIF(Tableau8[[#This Row],[Date de naissance]],TODAY(),"y") -> 58 | J21: =IF(Tableau8[[#This Row],[Age]]<25,0,IF(Tableau8[[#This Row],[Age]]<35,1,IF(Tableau8[[#This Row],[Age]]<45,2,IF(Tableau8[[#This Row],[Age]]<55,3,4)))) -> 4 | M21: =_xlfn.XLOOKUP(Tableau8[[#This Row],[Services]],Tableau7[Services],Tableau7[Salaire minimum],"",0) ->  | N21: =IF(Tableau8[[#This Row],[Salaires Min]]="","",Tableau8[[#This Row],[Salaires Min]]+5%*Tableau8[[#This Row],[Tranches]]*Tableau8[[#This Row],[Salaires Min]]) -> 
A22: Unetitlaine | B22: Jérémy | C22: m | D22: Marié(e) | E22: 1030 | F22: =VLOOKUP(Tableau8[[#This Row],[CP]],Bdd1_consignes!$C$22:$D$27,2,FALSE) -> Schaerbeek | G22: =VLOOKUP(Tableau8[[#This Row],[CP]],Tableau10[],2,FALSE) -> Schaerbeek | H22: 1983-06-09 | I22: =DATEDIF(Tableau8[[#This Row],[Date de naissance]],TODAY(),"y") -> 40 | J22: =IF(Tableau8[[#This Row],[Age]]<25,0,IF(Tableau8[[#This Row],[Age]]<35,1,IF(Tableau8[[#This Row],[Age]]<45,2,IF(Tableau8[[#This Row],[Age]]<55,3,4)))) -> 2 | M22: =_xlfn.XLOOKUP(Tableau8[[#This Row],[Services]],Tableau7[Services],Tableau7[Salaire minimum],"",0) ->  | N22: =IF(Tableau8[[#This Row],[Salaires Min]]="","",Tableau8[[#This Row],[Salaires Min]]+5%*Tableau8[[#This Row],[Tranches]]*Tableau8[[#This Row],[Salaires Min]]) -> 

Sheet Tranches
M1: Retour sommaire
B3: Lors de l'utilisation des 'SI' imbriqués, nous ne disposons que de 8 'SI'. Si les tranches été différentes (cf. ci-dessous), le problème n'aurait pas pu être résolu avec des 'SI'
B4: Ce genre de problème peut être solutionné par l'utilisation d'une 'RechercheV' (RechercheX) par valeur proche.
B6: Méthode "classique" | K6: Avec des tableaux de données
B8: Ages | D8: Tranches | F8: Age | G8: Tranches (RechercheV) (VLookUp) | H8: Tranches (RechercheX) (XLookUp) | L8: Tranches | N8: Age | O8: Tranches (RechercheX) (XLookUp)
B9: <25 | C9: 0 | D9: 0 | F9: 42 | K9: 0 | L9: 0 | N9: 42
B10: >=25 et <30 | C10: 25 | D10: 1 | F10: 28 | K10: 25 | L10: 1 | N10: 28
B11: >=30 et <35 | C11: 30 | D11: 2 | F11: 66 | K11: 30 | L11: 2 | N11: 66
B12: >=35 et <40 | C12: 35 | D12: 3 | F12: 42 | K12: 35 | L12: 3 | N12: 42
B13: >=40 et <45 | C13: 40 | D13: 4 | F13: 44 | K13: 40 | L13: 4 | N13: 44
B14: >=45 et <50 | C14: 45 | D14: 5 | F14: 32 | K14: 45 | L14: 5 | N14: 32
B15: >=50 et <55 | C15: 50 | D15: 6 | F15: 25 | K15: 50 | L15: 6 | N15: 25
B16: >=55 et <60 | C16: 55 | D16: 7 | F16: 37 | K16: 55 | L16: 7 | N16: 37
B17: >=60 et <65 | C17: 60 | D17: 8 | F17: 52 | K17: 60 | L17: 8 | N17: 52
B18: >=65 et <70 | C18: 65 | D18: 9 | F18: 55 | K18: 65 | L18: 9 | N18: 55
B19: >=70 | C19: 70 | D19: 10 | F19: 48 | K19: 70 | L19: 10 | N19: 48
F20: 29 | N20: 29
F21: 39 | N21: 39
F22: 49 | N22: 49
F23: 47 | N23: 47
F24: 41 | N24: 41
F25: 29 | N25: 29
F26: 25 | N26: 25
F27: 48 | N27: 48
F28: 42 | N28: 42
F29: 24 | N29: 24

Sheet Tranches_corrigé (hidden)
B3: Lors de l'utilisation des 'SI' imbriqués, nous ne disposons que de 8 'SI'. Si les tranches été différentes (cf. ci-dessous), le problème n'aurait pas pu être résolu avec des 'SI'
B4: Ce genre de problème peut être solutionné par l'utilisation d'une 'RechercheV' par valeur proche.
K5: Avec les tableaux de données
B7: Ages | D7: Tranches | F7: Age | G7: Tranches (RechercheV) (VLookUp) | H7: Tranches (RechercheV) (XLookUp) | K7: Age | L7: Tranches | N7: Age | O7: Tranches (RechercheV) (XLookUp)
B8: <25 | C8: 0 | D8: 0 | F8: 42 | G8: =VLOOKUP(F8,$C$8:$D$18,2,TRUE) -> 4 | H8: =_xlfn.XLOOKUP(F8,$C$8:$C$18,$D$8:$D$18,,-1) -> 4 | K8: 0 | L8: 0 | N8: 42 | O8: =_xlfn.XLOOKUP(Tableau12[[#This Row],[Age]],Tableau13[Age],Tableau13[Tranches],,-1) -> 4
B9: >=25 et <30 | C9: 25 | D9: 1 | F9: 28 | G9: 1 | H9: 1 | K9: 25 | L9: 1 | N9: 28 | O9: =_xlfn.XLOOKUP(Tableau12[[#This Row],[Age]],Tableau13[Age],Tableau13[Tranches],,-1) -> 1
B10: >=30 et <35 | C10: 30 | D10: 2 | F10: 66 | G10: 9 | H10: 9 | K10: 30 | L10: 2 | N10: 66 | O10: =_xlfn.XLOOKUP(Tableau12[[#This Row],[Age]],Tableau13[Age],Tableau13[Tranches],,-1) -> 9
B11: >=35 et <40 | C11: 35 | D11: 3 | F11: 42 | G11: 4 | H11: 4 | K11: 35 | L11: 3 | N11: 42 | O11: =_xlfn.XLOOKUP(Tableau12[[#This Row],[Age]],Tableau13[Age],Tableau13[Tranches],,-1) -> 4
B12: >=40 et <45 | C12: 40 | D12: 4 | F12: 44 | G12: 4 | H12: 4 | K12: 40 | L12: 4 | N12: 44 | O12: =_xlfn.XLOOKUP(Tableau12[[#This Row],[Age]],Tableau13[Age],Tableau13[Tranches],,-1) -> 4
B13: >=45 et <50 | C13: 45 | D13: 5 | F13: 32 | G13: 2 | H13: 2 | K13: 45 | L13: 5 | N13: 32 | O13: =_xlfn.XLOOKUP(Tableau12[[#This Row],[Age]],Tableau13[Age],Tableau13[Tranches],,-1) -> 2
B14: >=50 et <55 | C14: 50 | D14: 6 | F14: 25 | G14: 1 | H14: 1 | K14: 50 | L14: 6 | N14: 25 | O14: =_xlfn.XLOOKUP(Tableau12[[#This Row],[Age]],Tableau13[Age],Tableau13[Tranches],,-1) -> 1
B15: >=55 et <60 | C15: 55 | D15: 7 | F15: 37 | G15: 3 | H15: 3 | K15: 55 | L15: 7 | N15: 37 | O15: =_xlfn.XLOOKUP(Tableau12[[#This Row],[Age]],Tableau13[Age],Tableau13[Tranches],,-1) -> 3
B16: >=60 et <65 | C16: 60 | D16: 8 | F16: 52 | G16: 6 | H16: 6 | K16: 60 | L16: 8 | N16: 52 | O16: =_xlfn.XLOOKUP(Tableau12[[#This Row],[Age]],Tableau13[Age],Tableau13[Tranches],,-1) -> 6
B17: >=65 et <70 | C17: 65 | D17: 9 | F17: 55 | G17: 7 | H17: 7 | K17: 65 | L17: 9 | N17: 55 | O17: =_xlfn.XLOOKUP(Tableau12[[#This Row],[Age]],Tableau13[Age],Tableau13[Tranches],,-1) -> 7
B18: >=70 | C18: 70 | D18: 10 | F18: 48 | G18: 5 | H18: 5 | K18: 70 | L18: 10 | N18: 48 | O18: =_xlfn.XLOOKUP(Tableau12[[#This Row],[Age]],Tableau13[Age],Tableau13[Tranches],,-1) -> 5
F19: 29 | G19: 1 | H19: 1 | N19: 29 | O19: =_xlfn.XLOOKUP(Tableau12[[#This Row],[Age]],Tableau13[Age],Tableau13[Tranches],,-1) -> 1
F20: 39 | G20: 3 | H20: 3 | N20: 39 | O20: =_xlfn.XLOOKUP(Tableau12[[#This Row],[Age]],Tableau13[Age],Tableau13[Tranches],,-1) -> 3
F21: 49 | G21: 5 | H21: 5 | N21: 49 | O21: =_xlfn.XLOOKUP(Tableau12[[#This Row],[Age]],Tableau13[Age],Tableau13[Tranches],,-1) -> 5
F22: 47 | G22: 5 | H22: 5 | N22: 47 | O22: =_xlfn.XLOOKUP(Tableau12[[#This Row],[Age]],Tableau13[Age],Tableau13[Tranches],,-1) -> 5
F23: 41 | G23: 4 | H23: 4 | N23: 41 | O23: =_xlfn.XLOOKUP(Tableau12[[#This Row],[Age]],Tableau13[Age],Tableau13[Tranches],,-1) -> 4
F24: 29 | G24: 1 | H24: 1 | N24: 29 | O24: =_xlfn.XLOOKUP(Tableau12[[#This Row],[Age]],Tableau13[Age],Tableau13[Tranches],,-1) -> 1
F25: 25 | G25: 1 | H25: 1 | N25: 25 | O25: =_xlfn.XLOOKUP(Tableau12[[#This Row],[Age]],Tableau13[Age],Tableau13[Tranches],,-1) -> 1
F26: 48 | G26: 5 | H26: 5 | N26: 48 | O26: =_xlfn.XLOOKUP(Tableau12[[#This Row],[Age]],Tableau13[Age],Tableau13[Tranches],,-1) -> 5
F27: 42 | G27: 4 | H27: 4 | N27: 42 | O27: =_xlfn.XLOOKUP(Tableau12[[#This Row],[Age]],Tableau13[Age],Tableau13[Tranches],,-1) -> 4
F28: 24 | G28: 0 | H28: 0 | N28: 24 | O28: =_xlfn.XLOOKUP(Tableau12[[#This Row],[Age]],Tableau13[Age],Tableau13[Tranches],,-1) -> 0

Sheet Tri1
A1: Tri des données | M1: Retour sommaire
A3: Trier les données par ordre alphabétique sur le nom
A4: Réaliser ce tri utilisant un tableau de données
A6: Nom | B6: Prénom | C6: Sexe | D6: Etat civil | E6: Date de naissance | F6: Age | G6: Tranches | H6: Services | I6: Salaires Minimum | J6: Salaires
A7: Bistrot | B7: Alonso | C7: m | D7: Marié(e) | E7: 1966-01-17 | F7: =DATEDIF(E7,TODAY(),"y") -> 57 | G7: =IF(F7<25,0,IF(F7<35,1,IF(F7<45,2,IF(F7<55,3,4)))) -> 4 | H7: Informatique | I7: =VLOOKUP(H7,Bdd1_consignes!$C$50:$D$54,2,FALSE) -> 1900 | J7: =I7+5%*G7*I7 -> 2280
A8: Bijoba | B8: Jo | C8: m | D8: Marié(e) | E8: 1980-03-15 | F8: =DATEDIF(E8,TODAY(),"y") -> 43 | G8: =IF(F8<25,0,IF(F8<35,1,IF(F8<45,2,IF(F8<55,3,4)))) -> 2 | H8: Direction | I8: =VLOOKUP(H8,Bdd1_consignes!$C$50:$D$54,2,FALSE) -> 2500 | J8: =I8+5%*G8*I8 -> 2750
A9: Covert | B9: Harry | C9: m | D9: Divorcé(e) | E9: 1942-02-10 | F9: 81 | G9: 4 | H9: Personnel | I9: =VLOOKUP(H9,Bdd1_consignes!$C$50:$D$54,2,FALSE) -> 1600 | J9: 1920
A10: Culaire | B10: Laury | C10: m | D10: Marié(e) | E10: 1965-05-05 | F10: 58 | G10: 4 | H10: Personnel | I10: =VLOOKUP(H10,Bdd1_consignes!$C$50:$D$54,2,FALSE) -> 1600 | J10: 1920
A11: Deuf | B11: John | C11: m | D11: Célibataire | E11: 1963-09-08 | F11: 60 | G11: 4 | H11: Informatique | I11: =VLOOKUP(H11,Bdd1_consignes!$C$50:$D$54,2,FALSE) -> 1900 | J11: 2280
A12: Foupasune | B12: Jean | C12: m | D12: Célibataire | E12: 1975-08-07 | F12: 48 | G12: 3 | H12: Personnel | I12: =VLOOKUP(H12,Bdd1_consignes!$C$50:$D$54,2,FALSE) -> 1600 | J12: 1840
A13: Lairbon | B13: Oussama | C13: m | D13: Marié(e) | E13: 1983-02-08 | F13: 40 | G13: 2 | H13: Personnel | I13: =VLOOKUP(H13,Bdd1_consignes!$C$50:$D$54,2,FALSE) -> 1600 | J13: 1760
A14: Menvussa | B14: Gérard | C14: m | D14: Célibataire | E14: 1970-12-04 | F14: 52 | G14: 3 | H14: Informatique | I14: =VLOOKUP(H14,Bdd1_consignes!$C$50:$D$54,2,FALSE) -> 1900 | J14: 2185
A15: Lalalalalalala | B15: Starsky | C15: m | D15: Célibataire | E15: 1955-07-08 | F15: 68 | G15: 4 | H15: Personnel | I15: =VLOOKUP(H15,Bdd1_consignes!$C$50:$D$54,2,FALSE) -> 1600 | J15: 1920
A16: Lalalalalalala | B16: Hutch | C16: m | D16: Divorcé(e) | E16: 1952-10-07 | F16: 71 | G16: 4 | H16: Direction | I16: =VLOOKUP(H16,Bdd1_consignes!$C$50:$D$54,2,FALSE) -> 2500 | J16: 3000
A17: Cléssoulaporte | B17: Djamila | C17: f | D17: Marié(e) | E17: 1959-09-07 | F17: 64 | G17: 4 | H17: Personnel | I17: =VLOOKUP(H17,Bdd1_consignes!$C$50:$D$54,2,FALSE) -> 1600 | J17: 1920
A18: Noux | B18: Marion | C18: f | D18: Divorcé(e) | E18: 1978-12-30 | F18: 44 | G18: 2 | H18: Secrétariat | I18: =VLOOKUP(H18,Bdd1_consignes!$C$50:$D$54,2,FALSE) -> 1700 | J18: 1870
A19: Ouzi | B19: Jacques | C19: m | D19: Célibataire | E19: 1969-02-28 | F19: 54 | G19: 3 | H19: Personnel | I19: =VLOOKUP(H19,Bdd1_consignes!$C$50:$D$54,2,FALSE) -> 1600 | J19: 1840
A20: Stiké | B20: Sophie | C20: f | D20: Divorcé(e) | E20: 1959-04-04 | F20: 64 | G20: 4 | H20: Secrétariat | I20: =VLOOKUP(H20,Bdd1_consignes!$C$50:$D$54,2,FALSE) -> 1700 | J20: 2040
A21: Tare | B21: Guy | C21: m | D21: Divorcé(e) | E21: 1960-08-07 | F21: 63 | G21: 4 | H21: Informatique | I21: =VLOOKUP(H21,Bdd1_consignes!$C$50:$D$54,2,FALSE) -> 1900 | J21: 2280
A22: Vaisselle | B22: Aude | C22: f | D22: Marié(e) | E22: 1966-06-06 | F22: 57 | G22: 4 | H22: Secrétariat | I22: =VLOOKUP(H22,Bdd1_consignes!$C$50:$D$54,2,FALSE) -> 1700 | J22: 2040
A23: Zetofrais | B23: Mélanie | C23: f | D23: Célibataire | E23: 1978-11-25 | F23: 44 | G23: 2 | H23: Direction | I23: =VLOOKUP(H23,Bdd1_consignes!$C$50:$D$54,2,FALSE) -> 2500 | J23: 2750
A24: Touille | B24: Sasha | C24: m | D24: Célibataire | E24: 1982-10-30 | F24: 40 | G24: 2 | H24: Personnel | I24: =VLOOKUP(H24,Bdd1_consignes!$C$50:$D$54,2,FALSE) -> 1600 | J24: 1760
A25: Proviste | B25: Alain | C25: m | D25: Marié(e) | E25: 1959-09-09 | F25: 64 | G25: 4 | H25: Personnel | I25: =VLOOKUP(H25,Bdd1_consignes!$C$50:$D$54,2,FALSE) -> 1600 | J25: 1920
A26: Peulaporte | B26: Firmin | C26: m | D26: Divorcé(e) | E26: 1965-07-01 | F26: 58 | G26: 4 | H26: Informatique | I26: =VLOOKUP(H26,Bdd1_consignes!$C$50:$D$54,2,FALSE) -> 1900 | J26: 2280
A27: Unetitlaine | B27: Jérémy | C27: m | D27: Marié(e) | E27: 1983-06-09 | F27: 40 | G27: 2 | H27: Informatique | I27: =VLOOKUP(H27,Bdd1_consignes!$C$50:$D$54,2,FALSE) -> 1900 | J27: 2090

Sheet Tri1_corrigé (hidden)
A1: Tri des données | M1: Retour sommaire
A3: Trier les données par ordre alphabétique sur le nom
A4: Réaliser ce tri utilisant un tableau de données
A6: Nom | B6: Prénom | C6: Sexe | D6: Etat civil | E6: Date de naissance | F6: Age | G6: Tranches | H6: Services | I6: Salaires Minimum | J6: Salaires
A7: Bijoba | B7: Jo | C7: m | D7: Marié(e) | E7: 1980-03-15 | F7: =DATEDIF(E7,TODAY(),"y") -> 43 | G7: =IF(F7<25,0,IF(F7<35,1,IF(F7<45,2,IF(F7<55,3,4)))) -> 2 | H7: Direction | I7: =VLOOKUP(H7,Bdd1_consignes!$C$50:$D$54,2,FALSE) -> 2500 | J7: =I7+5%*G7*I7 -> 2750
A8: Bistrot | B8: Alonso | C8: m | D8: Marié(e) | E8: 1966-01-17 | F8: 57 | G8: 4 | H8: Informatique | I8: =VLOOKUP(H8,Bdd1_consignes!$C$50:$D$54,2,FALSE) -> 1900 | J8: 2280
A9: Cléssoulaporte | B9: Djamila | C9: f | D9: Marié(e) | E9: 1959-09-07 | F9: 64 | G9: 4 | H9: Personnel | I9: =VLOOKUP(H9,Bdd1_consignes!$C$50:$D$54,2,FALSE) -> 1600 | J9: 1920
A10: Covert | B10: Harry | C10: m | D10: Divorcé(e) | E10: 1942-02-10 | F10: 81 | G10: 4 | H10: Personnel | I10: =VLOOKUP(H10,Bdd1_consignes!$C$50:$D$54,2,FALSE) -> 1600 | J10: 1920
A11: Culaire | B11: Laury | C11: m | D11: Marié(e) | E11: 1965-05-05 | F11: 58 | G11: 4 | H11: Personnel | I11: =VLOOKUP(H11,Bdd1_consignes!$C$50:$D$54,2,FALSE) -> 1600 | J11: 1920
A12: Deuf | B12: John | C12: m | D12: Célibataire | E12: 1963-09-08 | F12: 60 | G12: 4 | H12: Informatique | I12: =VLOOKUP(H12,Bdd1_consignes!$C$50:$D$54,2,FALSE) -> 1900 | J12: 2280
A13: Foupasune | B13: Jean | C13: m | D13: Célibataire | E13: 1975-08-07 | F13: 48 | G13: 3 | H13: Personnel | I13: =VLOOKUP(H13,Bdd1_consignes!$C$50:$D$54,2,FALSE) -> 1600 | J13: 1840
A14: Lairbon | B14: Oussama | C14: m | D14: Marié(e) | E14: 1983-02-08 | F14: 40 | G14: 2 | H14: Personnel | I14: =VLOOKUP(H14,Bdd1_consignes!$C$50:$D$54,2,FALSE) -> 1600 | J14: 1760
A15: Lalalalalalala | B15: Starsky | C15: m | D15: Célibataire | E15: 1955-07-08 | F15: 68 | G15: 4 | H15: Personnel | I15: =VLOOKUP(H15,Bdd1_consignes!$C$50:$D$54,2,FALSE) -> 1600 | J15: 1920
A16: Lalalalalalala | B16: Hutch | C16: m | D16: Divorcé(e) | E16: 1952-10-07 | F16: 71 | G16: 4 | H16: Direction | I16: =VLOOKUP(H16,Bdd1_consignes!$C$50:$D$54,2,FALSE) -> 2500 | J16: 3000
A17: Menvussa | B17: Gérard | C17: m | D17: Célibataire | E17: 1970-12-04 | F17: 52 | G17: 3 | H17: Informatique | I17: =VLOOKUP(H17,Bdd1_consignes!$C$50:$D$54,2,FALSE) -> 1900 | J17: 2185
A18: Noux | B18: Marion | C18: f | D18: Divorcé(e) | E18: 1978-12-30 | F18: 44 | G18: 2 | H18: Secrétariat | I18: =VLOOKUP(H18,Bdd1_consignes!$C$50:$D$54,2,FALSE) -> 1700 | J18: 1870
A19: Ouzi | B19: Jacques | C19: m | D19: Célibataire | E19: 1969-02-28 | F19: 54 | G19: 3 | H19: Personnel | I19: =VLOOKUP(H19,Bdd1_consignes!$C$50:$D$54,2,FALSE) -> 1600 | J19: 1840
A20: Peulaporte | B20: Firmin | C20: m | D20: Divorcé(e) | E20: 1965-07-01 | F20: 58 | G20: 4 | H20: Informatique | I20: =VLOOKUP(H20,Bdd1_consignes!$C$50:$D$54,2,FALSE) -> 1900 | J20: 2280
A21: Proviste | B21: Alain | C21: m | D21: Marié(e) | E21: 1959-09-09 | F21: 64 | G21: 4 | H21: Personnel | I21: =VLOOKUP(H21,Bdd1_consignes!$C$50:$D$54,2,FALSE) -> 1600 | J21: 1920
A22: Stiké | B22: Sophie | C22: f | D22: Divorcé(e) | E22: 1959-04-04 | F22: 64 | G22: 4 | H22: Secrétariat | I22: =VLOOKUP(H22,Bdd1_consignes!$C$50:$D$54,2,FALSE) -> 1700 | J22: 2040
A23: Tare | B23: Guy | C23: m | D23: Divorcé(e) | E23: 1960-08-07 | F23: 63 | G23: 4 | H23: Informatique | I23: =VLOOKUP(H23,Bdd1_consignes!$C$50:$D$54,2,FALSE) -> 1900 | J23: 2280
A24: Touille | B24: Sasha | C24: m | D24: Célibataire | E24: 1982-10-30 | F24: 40 | G24: 2 | H24: Personnel | I24: =VLOOKUP(H24,Bdd1_consignes!$C$50:$D$54,2,FALSE) -> 1600 | J24: 1760
A25: Unetitlaine | B25: Jérémy | C25: m | D25: Marié(e) | E25: 1983-06-09 | F25: 40 | G25: 2 | H25: Informatique | I25: =VLOOKUP(H25,Bdd1_consignes!$C$50:$D$54,2,FALSE) -> 1900 | J25: 2090
A26: Vaisselle | B26: Aude | C26: f | D26: Marié(e) | E26: 1966-06-06 | F26: 57 | G26: 4 | H26: Secrétariat | I26: =VLOOKUP(H26,Bdd1_consignes!$C$50:$D$54,2,FALSE) -> 1700 | J26: 2040
A27: Zetofrais | B27: Mélanie | C27: f | D27: Célibataire | E27: 1978-11-25 | F27: 44 | G27: 2 | H27: Direction | I27: =VLOOKUP(H27,Bdd1_consignes!$C$50:$D$54,2,FALSE) -> 2500 | J27: 2750

Sheet Tri2
A1: Tri des données | M1: Retour sommaire
A3: Organisez les données en tableau de données et triez-les par ordre alphabétique sur le service puis sur le nom
A4: Lorsque c'est fait, réaliser la même opération en utilisant un tableau de données
A6: Nom | B6: Prénom | C6: Sexe | D6: Etat civil | E6: Date de naissance | F6: Age | G6: Tranches | H6: Services | I6: Salaires Minimum | J6: Salaires
A7: Bijoba | B7: Jo | C7: m | D7: Marié(e) | E7: 1980-03-15 | F7: =DATEDIF(E7,TODAY(),"y") -> 43 | G7: =IF(F7<25,0,IF(F7<35,1,IF(F7<45,2,IF(F7<55,3,4)))) -> 2 | H7: Direction | I7: =VLOOKUP(H7,Bdd1_consignes!$C$50:$D$54,2,FALSE) -> 2500 | J7: =I7+5%*G7*I7 -> 2750 | L7: => 'Ruban Données .. Trier'
A8: Lalalalalalala | B8: Hutch | C8: m | D8: Divorcé(e) | E8: 1952-10-07 | F8: 71 | G8: 4 | H8: Direction | I8: =VLOOKUP(H8,Bdd1_consignes!$C$50:$D$54,2,FALSE) -> 2500 | J8: 3000
A9: Zetofrais | B9: Mélanie | C9: f | D9: Célibataire | E9: 1978-11-25 | F9: 44 | G9: 2 | H9: Direction | I9: =VLOOKUP(H9,Bdd1_consignes!$C$50:$D$54,2,FALSE) -> 2500 | J9: 2750
A10: Bistrot | B10: Alonso | C10: m | D10: Marié(e) | E10: 1966-01-17 | F10: 57 | G10: 4 | H10: Informatique | I10: =VLOOKUP(H10,Bdd1_consignes!$C$50:$D$54,2,FALSE) -> 1900 | J10: 2280
A11: Deuf | B11: John | C11: m | D11: Célibataire | E11: 1963-09-08 | F11: 60 | G11: 4 | H11: Informatique | I11: =VLOOKUP(H11,Bdd1_consignes!$C$50:$D$54,2,FALSE) -> 1900 | J11: 2280
A12: Menvussa | B12: Gérard | C12: m | D12: Célibataire | E12: 1970-12-04 | F12: 52 | G12: 3 | H12: Informatique | I12: =VLOOKUP(H12,Bdd1_consignes!$C$50:$D$54,2,FALSE) -> 1900 | J12: 2185
A13: Peulaporte | B13: Firmin | C13: m | D13: Divorcé(e) | E13: 1965-07-01 | F13: 58 | G13: 4 | H13: Informatique | I13: =VLOOKUP(H13,Bdd1_consignes!$C$50:$D$54,2,FALSE) -> 1900 | J13: 2280
A14: Tare | B14: Guy | C14: m | D14: Divorcé(e) | E14: 1960-08-07 | F14: 63 | G14: 4 | H14: Informatique | I14: =VLOOKUP(H14,Bdd1_consignes!$C$50:$D$54,2,FALSE) -> 1900 | J14: 2280
A15: Unetitlaine | B15: Jérémy | C15: m | D15: Marié(e) | E15: 1983-06-09 | F15: 40 | G15: 2 | H15: Informatique | I15: =VLOOKUP(H15,Bdd1_consignes!$C$50:$D$54,2,FALSE) -> 1900 | J15: 2090
A16: Cléssoulaporte | B16: Djamila | C16: f | D16: Marié(e) | E16: 1959-09-07 | F16: 64 | G16: 4 | H16: Personnel | I16: =VLOOKUP(H16,Bdd1_consignes!$C$50:$D$54,2,FALSE) -> 1600 | J16: 1920
A17: Covert | B17: Harry | C17: m | D17: Divorcé(e) | E17: 1942-02-10 | F17: 81 | G17: 4 | H17: Personnel | I17: =VLOOKUP(H17,Bdd1_consignes!$C$50:$D$54,2,FALSE) -> 1600 | J17: 1920
A18: Culaire | B18: Laury | C18: m | D18: Marié(e) | E18: 1965-05-05 | F18: 58 | G18: 4 | H18: Personnel | I18: =VLOOKUP(H18,Bdd1_consignes!$C$50:$D$54,2,FALSE) -> 1600 | J18: 1920
A19: Foupasune | B19: Jean | C19: m | D19: Célibataire | E19: 1975-08-07 | F19: 48 | G19: 3 | H19: Personnel | I19: =VLOOKUP(H19,Bdd1_consignes!$C$50:$D$54,2,FALSE) -> 1600 | J19: 1840
A20: Lairbon | B20: Oussama | C20: m | D20: Marié(e) | E20: 1983-02-08 | F20: 40 | G20: 2 | H20: Personnel | I20: =VLOOKUP(H20,Bdd1_consignes!$C$50:$D$54,2,FALSE) -> 1600 | J20: 1760
A21: Lalalalalalala | B21: Starsky | C21: m | D21: Célibataire | E21: 1955-07-08 | F21: 68 | G21: 4 | H21: Personnel | I21: =VLOOKUP(H21,Bdd1_consignes!$C$50:$D$54,2,FALSE) -> 1600 | J21: 1920
A22: Ouzi | B22: Jacques | C22: m | D22: Célibataire | E22: 1969-02-28 | F22: 54 | G22: 3 | H22: Personnel | I22: =VLOOKUP(H22,Bdd1_consignes!$C$50:$D$54,2,FALSE) -> 1600 | J22: 1840
A23: Proviste | B23: Alain | C23: m | D23: Marié(e) | E23: 1959-09-09 | F23: 64 | G23: 4 | H23: Personnel | I23: =VLOOKUP(H23,Bdd1_consignes!$C$50:$D$54,2,FALSE) -> 1600 | J23: 1920
A24: Touille | B24: Sasha | C24: m | D24: Célibataire | E24: 1982-10-30 | F24: 40 | G24: 2 | H24: Personnel | I24: =VLOOKUP(H24,Bdd1_consignes!$C$50:$D$54,2,FALSE) -> 1600 | J24: 1760
A25: Noux | B25: Marion | C25: f | D25: Divorcé(e) | E25: 1978-12-30 | F25: 44 | G25: 2 | H25: Secrétariat | I25: =VLOOKUP(H25,Bdd1_consignes!$C$50:$D$54,2,FALSE) -> 1700 | J25: 1870
A26: Stiké | B26: Sophie | C26: f | D26: Divorcé(e) | E26: 1959-04-04 | F26: 64 | G26: 4 | H26: Secrétariat | I26: =VLOOKUP(H26,Bdd1_consignes!$C$50:$D$54,2,FALSE) -> 1700 | J26: 2040
A27: Vaisselle | B27: Aude | C27: f | D27: Marié(e) | E27: 1966-06-06 | F27: 57 | G27: 4 | H27: Secrétariat | I27: =VLOOKUP(H27,Bdd1_consignes!$C$50:$D$54,2,FALSE) -> 1700 | J27: 2040

Sheet Tri2_corrigé (hidden)
A1: Tri des données | M1: Retour sommaire
A3: Trier les données par ordre alphabétique sur le service puis sur le nom
A4: Lorsque c'est fait, réaliser la même opération en utilisant un tableau de données
A6: Nom | B6: Prénom | C6: Sexe | D6: Etat civil | E6: Date de naissance | F6: Age | G6: Tranches | H6: Services | I6: Salaires Minimum | J6: Salaires
A7: Bijoba | B7: Jo | C7: m | D7: Marié(e) | E7: 1980-03-15 | F7: =DATEDIF(E7,TODAY(),"y") -> 43 | G7: =IF(F7<25,0,IF(F7<35,1,IF(F7<45,2,IF(F7<55,3,4)))) -> 2 | H7: Direction | I7: =VLOOKUP(H7,Bdd1_consignes!$C$50:$D$54,2,FALSE) -> 2500 | J7: =I7+5%*G7*I7 -> 2750 | L7: => 'Données .. Trier'
A8: Lalalalalalala | B8: Hutch | C8: m | D8: Divorcé(e) | E8: 1952-10-07 | F8: 71 | G8: 4 | H8: Direction | I8: =VLOOKUP(H8,Bdd1_consignes!$C$50:$D$54,2,FALSE) -> 2500 | J8: 3000
A9: Zetofrais | B9: Mélanie | C9: f | D9: Célibataire | E9: 1978-11-25 | F9: 44 | G9: 2 | H9: Direction | I9: =VLOOKUP(H9,Bdd1_consignes!$C$50:$D$54,2,FALSE) -> 2500 | J9: 2750
A10: Bistrot | B10: Alonso | C10: m | D10: Marié(e) | E10: 1966-01-17 | F10: 57 | G10: 4 | H10: Informatique | I10: =VLOOKUP(H10,Bdd1_consignes!$C$50:$D$54,2,FALSE) -> 1900 | J10: 2280
A11: Deuf | B11: John | C11: m | D11: Célibataire | E11: 1963-09-08 | F11: 60 | G11: 4 | H11: Informatique | I11: =VLOOKUP(H11,Bdd1_consignes!$C$50:$D$54,2,FALSE) -> 1900 | J11: 2280
A12: Menvussa | B12: Gérard | C12: m | D12: Célibataire | E12: 1970-12-04 | F12: 52 | G12: 3 | H12: Informatique | I12: =VLOOKUP(H12,Bdd1_consignes!$C$50:$D$54,2,FALSE) -> 1900 | J12: 2185
A13: Peulaporte | B13: Firmin | C13: m | D13: Divorcé(e) | E13: 1965-07-01 | F13: 58 | G13: 4 | H13: Informatique | I13: =VLOOKUP(H13,Bdd1_consignes!$C$50:$D$54,2,FALSE) -> 1900 | J13: 2280
A14: Tare | B14: Guy | C14: m | D14: Divorcé(e) | E14: 1960-08-07 | F14: 63 | G14: 4 | H14: Informatique | I14: =VLOOKUP(H14,Bdd1_consignes!$C$50:$D$54,2,FALSE) -> 1900 | J14: 2280
A15: Unetitlaine | B15: Jérémy | C15: m | D15: Marié(e) | E15: 1983-06-09 | F15: 40 | G15: 2 | H15: Informatique | I15: =VLOOKUP(H15,Bdd1_consignes!$C$50:$D$54,2,FALSE) -> 1900 | J15: 2090
A16: Cléssoulaporte | B16: Djamila | C16: f | D16: Marié(e) | E16: 1959-09-07 | F16: 64 | G16: 4 | H16: Personnel | I16: =VLOOKUP(H16,Bdd1_consignes!$C$50:$D$54,2,FALSE) -> 1600 | J16: 1920
A17: Covert | B17: Harry | C17: m | D17: Divorcé(e) | E17: 1942-02-10 | F17: 81 | G17: 4 | H17: Personnel | I17: =VLOOKUP(H17,Bdd1_consignes!$C$50:$D$54,2,FALSE) -> 1600 | J17: 1920
A18: Culaire | B18: Laury | C18: m | D18: Marié(e) | E18: 1965-05-05 | F18: 58 | G18: 4 | H18: Personnel | I18: =VLOOKUP(H18,Bdd1_consignes!$C$50:$D$54,2,FALSE) -> 1600 | J18: 1920
A19: Foupasune | B19: Jean | C19: m | D19: Célibataire | E19: 1975-08-07 | F19: 48 | G19: 3 | H19: Personnel | I19: =VLOOKUP(H19,Bdd1_consignes!$C$50:$D$54,2,FALSE) -> 1600 | J19: 1840
A20: Lairbon | B20: Oussama | C20: m | D20: Marié(e) | E20: 1983-02-08 | F20: 40 | G20: 2 | H20: Personnel | I20: =VLOOKUP(H20,Bdd1_consignes!$C$50:$D$54,2,FALSE) -> 1600 | J20: 1760
A21: Lalalalalalala | B21: Starsky | C21: m | D21: Célibataire | E21: 1955-07-08 | F21: 68 | G21: 4 | H21: Personnel | I21: =VLOOKUP(H21,Bdd1_consignes!$C$50:$D$54,2,FALSE) -> 1600 | J21: 1920
A22: Ouzi | B22: Jacques | C22: m | D22: Célibataire | E22: 1969-02-28 | F22: 54 | G22: 3 | H22: Personnel | I22: =VLOOKUP(H22,Bdd1_consignes!$C$50:$D$54,2,FALSE) -> 1600 | J22: 1840
A23: Proviste | B23: Alain | C23: m | D23: Marié(e) | E23: 1959-09-09 | F23: 64 | G23: 4 | H23: Personnel | I23: =VLOOKUP(H23,Bdd1_consignes!$C$50:$D$54,2,FALSE) -> 1600 | J23: 1920
A24: Touille | B24: Sasha | C24: m | D24: Célibataire | E24: 1982-10-30 | F24: 40 | G24: 2 | H24: Personnel | I24: =VLOOKUP(H24,Bdd1_consignes!$C$50:$D$54,2,FALSE) -> 1600 | J24: 1760
A25: Noux | B25: Marion | C25: f | D25: Divorcé(e) | E25: 1978-12-30 | F25: 44 | G25: 2 | H25: Secrétariat | I25: =VLOOKUP(H25,Bdd1_consignes!$C$50:$D$54,2,FALSE) -> 1700 | J25: 1870
A26: Stiké | B26: Sophie | C26: f | D26: Divorcé(e) | E26: 1959-04-04 | F26: 64 | G26: 4 | H26: Secrétariat | I26: =VLOOKUP(H26,Bdd1_consignes!$C$50:$D$54,2,FALSE) -> 1700 | J26: 2040
A27: Vaisselle | B27: Aude | C27: f | D27: Marié(e) | E27: 1966-06-06 | F27: 57 | G27: 4 | H27: Secrétariat | I27: =VLOOKUP(H27,Bdd1_consignes!$C$50:$D$54,2,FALSE) -> 1700 | J27: 2040

Sheet Filtre1
A1: Filtres automatiques | M1: Retour sommaire
A3: Affichez les employés dont le nom commence par un 'p'
A6: Nom | B6: Prénom | C6: Sexe | D6: Etat civil | E6: Date de naissance | F6: Age | G6: Tranches | H6: Services | I6: Salaires Minimum | J6: Salaires
A7: Bistrot | B7: Alonso | C7: m | D7: Marié(e) | E7: 1966-01-17 | F7: =DATEDIF(E7,TODAY(),"y") -> 57 | G7: =IF(F7<25,0,IF(F7<35,1,IF(F7<45,2,IF(F7<55,3,4)))) -> 4 | H7: Informatique | I7: =VLOOKUP(H7,Bdd1_consignes!$C$50:$D$54,2,FALSE) -> 1900 | J7: =I7+5%*G7*I7 -> 2280
A8: Bijoba | B8: Jo | C8: m | D8: Marié(e) | E8: 1980-03-15 | F8: =DATEDIF(E8,TODAY(),"y") -> 43 | G8: =IF(F8<25,0,IF(F8<35,1,IF(F8<45,2,IF(F8<55,3,4)))) -> 2 | H8: Direction | I8: =VLOOKUP(H8,Bdd1_consignes!$C$50:$D$54,2,FALSE) -> 2500 | J8: =I8+5%*G8*I8 -> 2750
A9: Covert | B9: Harry | C9: m | D9: Divorcé(e) | E9: 1942-02-10 | F9: 81 | G9: 4 | H9: Personnel | I9: =VLOOKUP(H9,Bdd1_consignes!$C$50:$D$54,2,FALSE) -> 1600 | J9: 1920
A10: Culaire | B10: Laury | C10: m | D10: Marié(e) | E10: 1965-05-05 | F10: 58 | G10: 4 | H10: Personnel | I10: =VLOOKUP(H10,Bdd1_consignes!$C$50:$D$54,2,FALSE) -> 1600 | J10: 1920
A11: Deuf | B11: John | C11: m | D11: Célibataire | E11: 1963-09-08 | F11: 60 | G11: 4 | H11: Informatique | I11: =VLOOKUP(H11,Bdd1_consignes!$C$50:$D$54,2,FALSE) -> 1900 | J11: 2280
A12: Foupasune | B12: Jean | C12: m | D12: Célibataire | E12: 1975-08-07 | F12: 48 | G12: 3 | H12: Personnel | I12: =VLOOKUP(H12,Bdd1_consignes!$C$50:$D$54,2,FALSE) -> 1600 | J12: 1840
A13: Lairbon | B13: Oussama | C13: m | D13: Marié(e) | E13: 1983-02-08 | F13: 40 | G13: 2 | H13: Personnel | I13: =VLOOKUP(H13,Bdd1_consignes!$C$50:$D$54,2,FALSE) -> 1600 | J13: 1760
A14: Menvussa | B14: Gérard | C14: m | D14: Célibataire | E14: 1970-12-04 | F14: 52 | G14: 3 | H14: Informatique | I14: =VLOOKUP(H14,Bdd1_consignes!$C$50:$D$54,2,FALSE) -> 1900 | J14: 2185
A15: Lalalalalalala | B15: Starsky | C15: m | D15: Célibataire | E15: 1955-07-08 | F15: 68 | G15: 4 | H15: Personnel | I15: =VLOOKUP(H15,Bdd1_consignes!$C$50:$D$54,2,FALSE) -> 1600 | J15: 1920
A16: Lalalalalalala | B16: Hutch | C16: m | D16: Divorcé(e) | E16: 1952-10-07 | F16: 71 | G16: 4 | H16: Direction | I16: =VLOOKUP(H16,Bdd1_consignes!$C$50:$D$54,2,FALSE) -> 2500 | J16: 3000
A17: Cléssoulaporte | B17: Djamila | C17: f | D17: Marié(e) | E17: 1959-09-07 | F17: 64 | G17: 4 | H17: Personnel | I17: =VLOOKUP(H17,Bdd1_consignes!$C$50:$D$54,2,FALSE) -> 1600 | J17: 1920
A18: Noux | B18: Marion | C18: f | D18: Divorcé(e) | E18: 1978-12-30 | F18: 44 | G18: 2 | H18: Secrétariat | I18: =VLOOKUP(H18,Bdd1_consignes!$C$50:$D$54,2,FALSE) -> 1700 | J18: 1870
A19: Ouzi | B19: Jacques | C19: m | D19: Célibataire | E19: 1969-02-28 | F19: 54 | G19: 3 | H19: Personnel | I19: =VLOOKUP(H19,Bdd1_consignes!$C$50:$D$54,2,FALSE) -> 1600 | J19: 1840
A20: Stiké | B20: Sophie | C20: f | D20: Divorcé(e) | E20: 1959-04-04 | F20: 64 | G20: 4 | H20: Secrétariat | I20: =VLOOKUP(H20,Bdd1_consignes!$C$50:$D$54,2,FALSE) -> 1700 | J20: 2040
A21: Tare | B21: Guy | C21: m | D21: Divorcé(e) | E21: 1960-08-07 | F21: 63 | G21: 4 | H21: Informatique | I21: =VLOOKUP(H21,Bdd1_consignes!$C$50:$D$54,2,FALSE) -> 1900 | J21: 2280
A22: Vaisselle | B22: Aude | C22: f | D22: Marié(e) | E22: 1966-06-06 | F22: 57 | G22: 4 | H22: Secrétariat | I22: =VLOOKUP(H22,Bdd1_consignes!$C$50:$D$54,2,FALSE) -> 1700 | J22: 2040
A23: Zetofrais | B23: Mélanie | C23: f | D23: Célibataire | E23: 1978-11-25 | F23: 44 | G23: 2 | H23: Direction | I23: =VLOOKUP(H23,Bdd1_consignes!$C$50:$D$54,2,FALSE) -> 2500 | J23: 2750
A24: Touille | B24: Sasha | C24: m | D24: Célibataire | E24: 1982-10-30 | F24: 40 | G24: 2 | H24: Personnel | I24: =VLOOKUP(H24,Bdd1_consignes!$C$50:$D$54,2,FALSE) -> 1600 | J24: 1760
A25: Proviste | B25: Alain | C25: m | D25: Marié(e) | E25: 1959-09-09 | F25: 64 | G25: 4 | H25: Personnel | I25: =VLOOKUP(H25,Bdd1_consignes!$C$50:$D$54,2,FALSE) -> 1600 | J25: 1920
A26: Peulaporte | B26: Firmin | C26: m | D26: Divorcé(e) | E26: 1965-07-01 | F26: 58 | G26: 4 | H26: Informatique | I26: =VLOOKUP(H26,Bdd1_consignes!$C$50:$D$54,2,FALSE) -> 1900 | J26: 2280
A27: Unetitlaine | B27: Jérémy | C27: m | D27: Marié(e) | E27: 1983-06-09 | F27: 40 | G27: 2 | H27: Informatique | I27: =VLOOKUP(H27,Bdd1_consignes!$C$50:$D$54,2,FALSE) -> 1900 | J27: 2090
A32: NB : Lorsque c'est fait ajouter 2 personnes à la la liste de données, Yvon Parici et Sara Lenti, tous les 2 célibataires et nés le 2/8/75 et le 6/8/88
A33: => Les validations de données de la colonne 'Etat civil' ne "suivent" pas, les formules de calculs non plus

Sheet Filtre1_corrigé (hidden)
A1: Filtres automatiques
A3: Affichez les employés dont le nom commence par un 'p'
A6: Nom | B6: Prénom | C6: Sexe | D6: Etat civil | E6: Date de naissance | F6: Age | G6: Tranches | H6: Services | I6: Salaires Minimum | J6: Salaires
A7: Bistrot | B7: Alonso | C7: m | D7: Marié(e) | E7: 24124 | F7: =DATEDIF(E7,TODAY(),"y") -> 57 | G7: =IF(F7<25,0,IF(F7<35,1,IF(F7<45,2,IF(F7<55,3,4)))) -> 4 | H7: Informatique | I7: =VLOOKUP(H7,Bdd1_consignes!$C$50:$D$54,2,FALSE) -> 1900 | J7: =I7+5%*G7*I7 -> 2280
A8: Bijoba | B8: Jo | C8: m | D8: Marié(e) | E8: 29295 | F8: 43 | G8: 2 | H8: Direction | I8: =VLOOKUP(H8,Bdd1_consignes!$C$50:$D$54,2,FALSE) -> 2500 | J8: 2750
A9: Covert | B9: Harry | C9: m | D9: Divorcé(e) | E9: 15382 | F9: 81 | G9: 4 | H9: Personnel | I9: =VLOOKUP(H9,Bdd1_consignes!$C$50:$D$54,2,FALSE) -> 1600 | J9: 1920
A10: Culaire | B10: Laury | C10: m | D10: Marié(e) | E10: 23867 | F10: 58 | G10: 4 | H10: Personnel | I10: =VLOOKUP(H10,Bdd1_consignes!$C$50:$D$54,2,FALSE) -> 1600 | J10: 1920
A11: Deuf | B11: John | C11: m | D11: Célibataire | E11: 23262 | F11: 60 | G11: 4 | H11: Informatique | I11: =VLOOKUP(H11,Bdd1_consignes!$C$50:$D$54,2,FALSE) -> 1900 | J11: 2280
A12: Foupasune | B12: Jean | C12: m | D12: Célibataire | E12: 27613 | F12: 48 | G12: 3 | H12: Personnel | I12: =VLOOKUP(H12,Bdd1_consignes!$C$50:$D$54,2,FALSE) -> 1600 | J12: 1840
A13: Lairbon | B13: Oussama | C13: m | D13: Marié(e) | E13: 30355 | F13: 40 | G13: 2 | H13: Personnel | I13: =VLOOKUP(H13,Bdd1_consignes!$C$50:$D$54,2,FALSE) -> 1600 | J13: 1760
A14: Menvussa | B14: Gérard | C14: m | D14: Célibataire | E14: 25906 | F14: 52 | G14: 3 | H14: Informatique | I14: =VLOOKUP(H14,Bdd1_consignes!$C$50:$D$54,2,FALSE) -> 1900 | J14: 2185
A15: Lalalalalalala | B15: Starsky | C15: m | D15: Célibataire | E15: 20278 | F15: 68 | G15: 4 | H15: Personnel | I15: =VLOOKUP(H15,Bdd1_consignes!$C$50:$D$54,2,FALSE) -> 1600 | J15: 1920
A16: Lalalalalalala | B16: Hutch | C16: m | D16: Divorcé(e) | E16: 19274 | F16: 71 | G16: 4 | H16: Direction | I16: =VLOOKUP(H16,Bdd1_consignes!$C$50:$D$54,2,FALSE) -> 2500 | J16: 3000
A17: Cléssoulaporte | B17: Djamila | C17: f | D17: Marié(e) | E17: 21800 | F17: 64 | G17: 4 | H17: Personnel | I17: =VLOOKUP(H17,Bdd1_consignes!$C$50:$D$54,2,FALSE) -> 1600 | J17: 1920
A18: Noux | B18: Marion | C18: f | D18: Divorcé(e) | E18: 28854 | F18: 44 | G18: 2 | H18: Secrétariat | I18: =VLOOKUP(H18,Bdd1_consignes!$C$50:$D$54,2,FALSE) -> 1700 | J18: 1870
A19: Ouzi | B19: Jacques | C19: m | D19: Célibataire | E19: 25262 | F19: 54 | G19: 3 | H19: Personnel | I19: =VLOOKUP(H19,Bdd1_consignes!$C$50:$D$54,2,FALSE) -> 1600 | J19: 1840
A20: Stiké | B20: Sophie | C20: f | D20: Divorcé(e) | E20: 21644 | F20: 64 | G20: 4 | H20: Secrétariat | I20: =VLOOKUP(H20,Bdd1_consignes!$C$50:$D$54,2,FALSE) -> 1700 | J20: 2040
A21: Tare | B21: Guy | C21: m | D21: Divorcé(e) | E21: 22135 | F21: 63 | G21: 4 | H21: Informatique | I21: =VLOOKUP(H21,Bdd1_consignes!$C$50:$D$54,2,FALSE) -> 1900 | J21: 2280
A22: Vaisselle | B22: Aude | C22: f | D22: Marié(e) | E22: 24264 | F22: 57 | G22: 4 | H22: Secrétariat | I22: =VLOOKUP(H22,Bdd1_consignes!$C$50:$D$54,2,FALSE) -> 1700 | J22: 2040
A23: Zetofrais | B23: Mélanie | C23: f | D23: Célibataire | E23: 28819 | F23: 44 | G23: 2 | H23: Direction | I23: =VLOOKUP(H23,Bdd1_consignes!$C$50:$D$54,2,FALSE) -> 2500 | J23: 2750
A24: Touille | B24: Sasha | C24: m | D24: Célibataire | E24: 30254 | F24: 40 | G24: 2 | H24: Personnel | I24: =VLOOKUP(H24,Bdd1_consignes!$C$50:$D$54,2,FALSE) -> 1600 | J24: 1760
A25: Proviste | B25: Alain | C25: m | D25: Marié(e) | E25: 1959-09-09 | F25: 64 | G25: 4 | H25: Personnel | I25: =VLOOKUP(H25,Bdd1_consignes!$C$50:$D$54,2,FALSE) -> 1600 | J25: 1920
A26: Peulaporte | B26: Firmin | C26: m | D26: Divorcé(e) | E26: 1965-07-01 | F26: 58 | G26: 4 | H26: Informatique | I26: =VLOOKUP(H26,Bdd1_consignes!$C$50:$D$54,2,FALSE) -> 1900 | J26: 2280
A27: Unetitlaine | B27: Jérémy | C27: m | D27: Marié(e) | E27: 30476 | F27: 40 | G27: 2 | H27: Informatique | I27: =VLOOKUP(H27,Bdd1_consignes!$C$50:$D$54,2,FALSE) -> 1900 | J27: 2090
A28: Parici | B28: Yvon | C28: m | E28: 1975-08-02
A29: Lenti | B29: Sara | C29: f | E29: 1988-08-06
A31: NB : Lorsque c'est fait ajouter 2 personnes à la la liste de données, Yvon Parici et Sara Lenti, tous les 2 célibataires et nés le 2/8/75 et le 6/8/88
A32: => Il suffit de réappliquer le filtre pour actualiser l'affichage
A33: => Les validations de données de la colonne 'Etat civil' ne "suivent" pas, les formules de calculs non plus

Sheet Filtre1 (2)
A1: Filtres automatiques | M1: Retour sommaire
A3: Transformez la plage de données ci-dessous en 1 tableau de données et recommencez les manipulations de la feuille précédente
A4: A l'aide des filtres automatiques, afficher les employés dont le nom commence par un 'p'
A6: Nom | B6: Prénom | C6: Sexe | D6: Etat civil | E6: Date de naissance | F6: Age | G6: Tranches | H6: Services | I6: Salaires Minimum | J6: Salaires | N6: Services
A7: Bistrot | B7: Alonso | C7: m | D7: Marié(e) | E7: 1966-01-17 | F7: =DATEDIF(E7,TODAY(),"y") -> 57 | G7: =IF(F7<25,0,IF(F7<35,1,IF(F7<45,2,IF(F7<55,3,4)))) -> 4 | H7: Informatique | I7: =VLOOKUP(H7,Bdd1_consignes!$C$50:$D$54,2,FALSE) -> 1900 | J7: =I7+5%*G7*I7 -> 2280
A8: Bijoba | B8: Jo | C8: m | D8: Marié(e) | E8: 1980-03-15 | F8: =DATEDIF(E8,TODAY(),"y") -> 43 | G8: =IF(F8<25,0,IF(F8<35,1,IF(F8<45,2,IF(F8<55,3,4)))) -> 2 | H8: Direction | I8: =VLOOKUP(H8,Bdd1_consignes!$C$50:$D$54,2,FALSE) -> 2500 | J8: =I8+5%*G8*I8 -> 2750
A9: Covert | B9: Harry | C9: m | D9: Divorcé(e) | E9: 1942-02-10 | F9: 81 | G9: 4 | H9: Personnel | I9: =VLOOKUP(H9,Bdd1_consignes!$C$50:$D$54,2,FALSE) -> 1600 | J9: 1920
A10: Culaire | B10: Laury | C10: m | D10: Marié(e) | E10: 1965-05-05 | F10: 58 | G10: 4 | H10: Personnel | I10: =VLOOKUP(H10,Bdd1_consignes!$C$50:$D$54,2,FALSE) -> 1600 | J10: 1920
A11: Deuf | B11: John | C11: m | D11: Célibataire | E11: 1963-09-08 | F11: 60 | G11: 4 | H11: Informatique | I11: =VLOOKUP(H11,Bdd1_consignes!$C$50:$D$54,2,FALSE) -> 1900 | J11: 2280
A12: Foupasune | B12: Jean | C12: m | D12: Célibataire | E12: 1975-08-07 | F12: 48 | G12: 3 | H12: Personnel | I12: =VLOOKUP(H12,Bdd1_consignes!$C$50:$D$54,2,FALSE) -> 1600 | J12: 1840
A13: Lairbon | B13: Oussama | C13: m | D13: Marié(e) | E13: 1983-02-08 | F13: 40 | G13: 2 | H13: Personnel | I13: =VLOOKUP(H13,Bdd1_consignes!$C$50:$D$54,2,FALSE) -> 1600 | J13: 1760
A14: Menvussa | B14: Gérard | C14: m | D14: Célibataire | E14: 1970-12-04 | F14: 52 | G14: 3 | H14: Informatique | I14: =VLOOKUP(H14,Bdd1_consignes!$C$50:$D$54,2,FALSE) -> 1900 | J14: 2185
A15: Lalalalalalala | B15: Starsky | C15: m | D15: Célibataire | E15: 1955-07-08 | F15: 68 | G15: 4 | H15: Personnel | I15: =VLOOKUP(H15,Bdd1_consignes!$C$50:$D$54,2,FALSE) -> 1600 | J15: 1920
A16: Lalalalalalala | B16: Hutch | C16: m | D16: Divorcé(e) | E16: 1952-10-07 | F16: 71 | G16: 4 | H16: Direction | I16: =VLOOKUP(H16,Bdd1_consignes!$C$50:$D$54,2,FALSE) -> 2500 | J16: 3000
A17: Cléssoulaporte | B17: Djamila | C17: f | D17: Marié(e) | E17: 1959-09-07 | F17: 64 | G17: 4 | H17: Personnel | I17: =VLOOKUP(H17,Bdd1_consignes!$C$50:$D$54,2,FALSE) -> 1600 | J17: 1920
A18: Noux | B18: Marion | C18: f | D18: Divorcé(e) | E18: 1978-12-30 | F18: 44 | G18: 2 | H18: Secrétariat | I18: =VLOOKUP(H18,Bdd1_consignes!$C$50:$D$54,2,FALSE) -> 1700 | J18: 1870
A19: Ouzi | B19: Jacques | C19: m | D19: Célibataire | E19: 1969-02-28 | F19: 54 | G19: 3 | H19: Personnel | I19: =VLOOKUP(H19,Bdd1_consignes!$C$50:$D$54,2,FALSE) -> 1600 | J19: 1840
A20: Stiké | B20: Sophie | C20: f | D20: Divorcé(e) | E20: 1959-04-04 | F20: 64 | G20: 4 | H20: Secrétariat | I20: =VLOOKUP(H20,Bdd1_consignes!$C$50:$D$54,2,FALSE) -> 1700 | J20: 2040
A21: Tare | B21: Guy | C21: m | D21: Divorcé(e) | E21: 1960-08-07 | F21: 63 | G21: 4 | H21: Informatique | I21: =VLOOKUP(H21,Bdd1_consignes!$C$50:$D$54,2,FALSE) -> 1900 | J21: 2280
A22: Vaisselle | B22: Aude | C22: f | D22: Marié(e) | E22: 1966-06-06 | F22: 57 | G22: 4 | H22: Secrétariat | I22: =VLOOKUP(H22,Bdd1_consignes!$C$50:$D$54,2,FALSE) -> 1700 | J22: 2040
A23: Zetofrais | B23: Mélanie | C23: f | D23: Célibataire | E23: 1978-11-25 | F23: 44 | G23: 2 | H23: Direction | I23: =VLOOKUP(H23,Bdd1_consignes!$C$50:$D$54,2,FALSE) -> 2500 | J23: 2750
A24: Touille | B24: Sasha | C24: m | D24: Célibataire | E24: 1982-10-30 | F24: 40 | G24: 2 | H24: Personnel | I24: =VLOOKUP(H24,Bdd1_consignes!$C$50:$D$54,2,FALSE) -> 1600 | J24: 1760
A25: Proviste | B25: Alain | C25: m | D25: Marié(e) | E25: 1959-09-09 | F25: 64 | G25: 4 | H25: Personnel | I25: =VLOOKUP(H25,Bdd1_consignes!$C$50:$D$54,2,FALSE) -> 1600 | J25: 1920
A26: Peulaporte | B26: Firmin | C26: m | D26: Divorcé(e) | E26: 1965-07-01 | F26: 58 | G26: 4 | H26: Informatique | I26: =VLOOKUP(H26,Bdd1_consignes!$C$50:$D$54,2,FALSE) -> 1900 | J26: 2280
A27: Unetitlaine | B27: Jérémy | C27: m | D27: Marié(e) | E27: 1983-06-09 | F27: 40 | G27: 2 | H27: Informatique | I27: =VLOOKUP(H27,Bdd1_consignes!$C$50:$D$54,2,FALSE) -> 1900 | J27: 2090
A31: NB : Lorsque c'est fait ajouter 2 personnes à la la liste de données, Yvon Parici et Sara Lenti, tous les 2 célibataires et nés le 2/8/75 et le 6/8/88
A32: => Les validations de données de la colonne 'Etat civil' et les formules se propagent aux nouvelles lignes
A34: NB2 : En colonne N, faites une extraction de chaque service et utilisez le résultat en tant que source de la liste des services (colonne H).
A35: Ajoutez la mention RH en tant que 5ème service
A36: => La source de la liste ne s'adapte pas, il faut la redéfinir ou utiliser une colonne complète
A37: Solution => Utiliser une zone nommée dans un tableau de données

Sheet Filtre1 (2)_corrigé (hidden)
A1: Filtres automatiques | M1: Retour sommaire
A3: Transformez la plage de données ci-dessous en 1 tableau de données et récommencez les manipulations de la feuille précédente
A4: A l'aide des filtres automatiques, afficher les employés dont le nom commence par un 'p'
A6: Nom | B6: Prénom | C6: Sexe | D6: Etat civil | E6: Date de naissance | F6: Age | G6: Tranches | H6: Services | I6: Salaires Minimum | J6: Salaires | N6: Services
A7: Bistrot | B7: Alonso | C7: m | D7: Marié(e) | E7: 1966-01-17 | F7: =DATEDIF(E7,TODAY(),"y") -> 57 | G7: =IF(F7<25,0,IF(F7<35,1,IF(F7<45,2,IF(F7<55,3,4)))) -> 4 | H7: Informatique | I7: =VLOOKUP(H7,Bdd1_consignes!$C$50:$D$54,2,FALSE) -> 1900 | J7: =I7+5%*G7*I7 -> 2280 | N7: Informatique
A8: Bijoba | B8: Jo | C8: m | D8: Marié(e) | E8: 1980-03-15 | F8: =DATEDIF(E8,TODAY(),"y") -> 43 | G8: =IF(F8<25,0,IF(F8<35,1,IF(F8<45,2,IF(F8<55,3,4)))) -> 2 | H8: Direction | I8: =VLOOKUP(H8,Bdd1_consignes!$C$50:$D$54,2,FALSE) -> 2500 | J8: =I8+5%*G8*I8 -> 2750 | N8: Direction
A9: Covert | B9: Harry | C9: m | D9: Divorcé(e) | E9: 1942-02-10 | F9: 81 | G9: 4 | H9: Personnel | I9: =VLOOKUP(H9,Bdd1_consignes!$C$50:$D$54,2,FALSE) -> 1600 | J9: 1920 | N9: Personnel
A10: Culaire | B10: Laury | C10: m | D10: Marié(e) | E10: 1965-05-05 | F10: 58 | G10: 4 | H10: Personnel | I10: =VLOOKUP(H10,Bdd1_consignes!$C$50:$D$54,2,FALSE) -> 1600 | J10: 1920 | N10: Secrétariat
A11: Deuf | B11: John | C11: m | D11: Célibataire | E11: 1963-09-08 | F11: 60 | G11: 4 | H11: Informatique | I11: =VLOOKUP(H11,Bdd1_consignes!$C$50:$D$54,2,FALSE) -> 1900 | J11: 2280 | N11: RH
A12: Foupasune | B12: Jean | C12: m | D12: Célibataire | E12: 1975-08-07 | F12: 48 | G12: 3 | H12: Personnel | I12: =VLOOKUP(H12,Bdd1_consignes!$C$50:$D$54,2,FALSE) -> 1600 | J12: 1840 | N12: Entretien
A13: Lairbon | B13: Oussama | C13: m | D13: Marié(e) | E13: 1983-02-08 | F13: 40 | G13: 2 | H13: Personnel | I13: =VLOOKUP(H13,Bdd1_consignes!$C$50:$D$54,2,FALSE) -> 1600 | J13: 1760
A14: Menvussa | B14: Gérard | C14: m | D14: Célibataire | E14: 1970-12-04 | F14: 52 | G14: 3 | H14: Informatique | I14: =VLOOKUP(H14,Bdd1_consignes!$C$50:$D$54,2,FALSE) -> 1900 | J14: 2185
A15: Lalalalalalala | B15: Starsky | C15: m | D15: Célibataire | E15: 1955-07-08 | F15: 68 | G15: 4 | H15: Personnel | I15: =VLOOKUP(H15,Bdd1_consignes!$C$50:$D$54,2,FALSE) -> 1600 | J15: 1920
A16: Lalalalalalala | B16: Hutch | C16: m | D16: Divorcé(e) | E16: 1952-10-07 | F16: 71 | G16: 4 | H16: Direction | I16: =VLOOKUP(H16,Bdd1_consignes!$C$50:$D$54,2,FALSE) -> 2500 | J16: 3000
A17: Cléssoulaporte | B17: Djamila | C17: f | D17: Marié(e) | E17: 1959-09-07 | F17: 64 | G17: 4 | H17: Personnel | I17: =VLOOKUP(H17,Bdd1_consignes!$C$50:$D$54,2,FALSE) -> 1600 | J17: 1920
A18: Noux | B18: Marion | C18: f | D18: Divorcé(e) | E18: 1978-12-30 | F18: 44 | G18: 2 | H18: Secrétariat | I18: =VLOOKUP(H18,Bdd1_consignes!$C$50:$D$54,2,FALSE) -> 1700 | J18: 1870
A19: Ouzi | B19: Jacques | C19: m | D19: Célibataire | E19: 1969-02-28 | F19: 54 | G19: 3 | H19: Personnel | I19: =VLOOKUP(H19,Bdd1_consignes!$C$50:$D$54,2,FALSE) -> 1600 | J19: 1840
A20: Stiké | B20: Sophie | C20: f | D20: Divorcé(e) | E20: 1959-04-04 | F20: 64 | G20: 4 | H20: Secrétariat | I20: =VLOOKUP(H20,Bdd1_consignes!$C$50:$D$54,2,FALSE) -> 1700 | J20: 2040
A21: Tare | B21: Guy | C21: m | D21: Divorcé(e) | E21: 1960-08-07 | F21: 63 | G21: 4 | H21: Informatique | I21: =VLOOKUP(H21,Bdd1_consignes!$C$50:$D$54,2,FALSE) -> 1900 | J21: 2280
A22: Vaisselle | B22: Aude | C22: f | D22: Marié(e) | E22: 1966-06-06 | F22: 57 | G22: 4 | H22: Secrétariat | I22: =VLOOKUP(H22,Bdd1_consignes!$C$50:$D$54,2,FALSE) -> 1700 | J22: 2040
A23: Zetofrais | B23: Mélanie | C23: f | D23: Célibataire | E23: 1978-11-25 | F23: 44 | G23: 2 | H23: Direction | I23: =VLOOKUP(H23,Bdd1_consignes!$C$50:$D$54,2,FALSE) -> 2500 | J23: 2750
A24: Touille | B24: Sasha | C24: m | D24: Célibataire | E24: 1982-10-30 | F24: 40 | G24: 2 | H24: Personnel | I24: =VLOOKUP(H24,Bdd1_consignes!$C$50:$D$54,2,FALSE) -> 1600 | J24: 1760
A25: Proviste | B25: Alain | C25: m | D25: Marié(e) | E25: 1959-09-09 | F25: 64 | G25: 4 | H25: Personnel | I25: =VLOOKUP(H25,Bdd1_consignes!$C$50:$D$54,2,FALSE) -> 1600 | J25: 1920
A26: Peulaporte | B26: Firmin | C26: m | D26: Divorcé(e) | E26: 1965-07-01 | F26: 58 | G26: 4 | H26: Informatique | I26: =VLOOKUP(H26,Bdd1_consignes!$C$50:$D$54,2,FALSE) -> 1900 | J26: 2280
A27: Unetitlaine | B27: Jérémy | C27: m | D27: Marié(e) | E27: 1983-06-09 | F27: 40 | G27: 2 | H27: Informatique | I27: =VLOOKUP(H27,Bdd1_consignes!$C$50:$D$54,2,FALSE) -> 1900 | J27: 2090
A28: Parici | B28: Yvon | C28: m | D28: Célibataire | E28: 1975-08-02 | F28: =DATEDIF(E28,TODAY(),"y") -> 48 | G28: =IF(F28<25,0,IF(F28<35,1,IF(F28<45,2,IF(F28<55,3,4)))) -> 3 | H28: Personnel | I28: =VLOOKUP(H28,Bdd1_consignes!$C$50:$D$54,2,FALSE) -> 1600 | J28: =I28+5%*G28*I28 -> 1840
A29: Lenti | B29: Sara | C29: f | D29: Célibataire | E29: 1988-08-06 | F29: =DATEDIF(E29,TODAY(),"y") -> 35 | G29: =IF(F29<25,0,IF(F29<35,1,IF(F29<45,2,IF(F29<55,3,4)))) -> 2 | H29: Personnel | I29: =VLOOKUP(H29,Bdd1_consignes!$C$50:$D$54,2,FALSE) -> 1600 | J29: =I29+5%*G29*I29 -> 1760
A31: NB : Lorsque c'est fait ajouter 2 personnes à la la liste de données, Yvon Parici et Sara Lenti, tous les 2 célibataires et nés le 2/8/75 et le 6/8/88
A32: => Les validations de données de la colonne 'Etat civil' et les formules se propagent aux nouvelles lignes
A34: NB2 : En colonne N, faites une extraction de chaque service et utilisez le résultat en tant que source de la liste des services (colonne H).
A35: Ajoutez la mention RH en tant que 5ème service
A36: => La source de la liste ne s'adapte pas, il faut la redéfinir ou utiliser une colonne complète
A37: Solution => Utiliser une zone nommée dans un tableau de données

Sheet Filtre2
A1: Filtres automatiques | M1: Retour sommaire
A3: Organisez les données en tableau et affichez les employés du secrétariat et de la direction
A6: Nom | B6: Prénom | C6: Sexe | D6: Etat civil | E6: Date de naissance | F6: Age | G6: Tranches | H6: Services | I6: Salaires Minimum | J6: Salaires
A7: Bistrot | B7: Alonso | C7: m | D7: Marié(e) | E7: 1966-01-17 | F7: =DATEDIF(E7,TODAY(),"y") -> 57 | G7: =IF(F7<25,0,IF(F7<35,1,IF(F7<45,2,IF(F7<55,3,4)))) -> 4 | H7: Informatique | I7: =VLOOKUP(H7,Bdd1_consignes!$C$50:$D$54,2,FALSE) -> 1900 | J7: =I7+5%*G7*I7 -> 2280
A8: Bijoba | B8: Jo | C8: m | D8: Marié(e) | E8: 1980-03-15 | F8: =DATEDIF(E8,TODAY(),"y") -> 43 | G8: =IF(F8<25,0,IF(F8<35,1,IF(F8<45,2,IF(F8<55,3,4)))) -> 2 | H8: Direction | I8: =VLOOKUP(H8,Bdd1_consignes!$C$50:$D$54,2,FALSE) -> 2500 | J8: =I8+5%*G8*I8 -> 2750
A9: Covert | B9: Harry | C9: m | D9: Divorcé(e) | E9: 1942-02-10 | F9: 81 | G9: 4 | H9: Personnel | I9: =VLOOKUP(H9,Bdd1_consignes!$C$50:$D$54,2,FALSE) -> 1600 | J9: 1920
A10: Culaire | B10: Laury | C10: m | D10: Marié(e) | E10: 1965-05-05 | F10: 58 | G10: 4 | H10: Personnel | I10: =VLOOKUP(H10,Bdd1_consignes!$C$50:$D$54,2,FALSE) -> 1600 | J10: 1920
A11: Deuf | B11: John | C11: m | D11: Célibataire | E11: 1963-09-08 | F11: 60 | G11: 4 | H11: Informatique | I11: =VLOOKUP(H11,Bdd1_consignes!$C$50:$D$54,2,FALSE) -> 1900 | J11: 2280
A12: Foupasune | B12: Jean | C12: m | D12: Célibataire | E12: 1975-08-07 | F12: 48 | G12: 3 | H12: Personnel | I12: =VLOOKUP(H12,Bdd1_consignes!$C$50:$D$54,2,FALSE) -> 1600 | J12: 1840
A13: Lairbon | B13: Oussama | C13: m | D13: Marié(e) | E13: 1983-02-08 | F13: 40 | G13: 2 | H13: Personnel | I13: =VLOOKUP(H13,Bdd1_consignes!$C$50:$D$54,2,FALSE) -> 1600 | J13: 1760
A14: Menvussa | B14: Gérard | C14: m | D14: Célibataire | E14: 1970-12-04 | F14: 52 | G14: 3 | H14: Informatique | I14: =VLOOKUP(H14,Bdd1_consignes!$C$50:$D$54,2,FALSE) -> 1900 | J14: 2185
A15: Lalalalalalala | B15: Starsky | C15: m | D15: Célibataire | E15: 1955-07-08 | F15: 68 | G15: 4 | H15: Personnel | I15: =VLOOKUP(H15,Bdd1_consignes!$C$50:$D$54,2,FALSE) -> 1600 | J15: 1920
A16: Lalalalalalala | B16: Hutch | C16: m | D16: Divorcé(e) | E16: 1952-10-07 | F16: 71 | G16: 4 | H16: Direction | I16: =VLOOKUP(H16,Bdd1_consignes!$C$50:$D$54,2,FALSE) -> 2500 | J16: 3000
A17: Cléssoulaporte | B17: Djamila | C17: f | D17: Marié(e) | E17: 1959-09-07 | F17: 64 | G17: 4 | H17: Personnel | I17: =VLOOKUP(H17,Bdd1_consignes!$C$50:$D$54,2,FALSE) -> 1600 | J17: 1920
A18: Noux | B18: Marion | C18: f | D18: Divorcé(e) | E18: 1978-12-30 | F18: 44 | G18: 2 | H18: Secrétariat | I18: =VLOOKUP(H18,Bdd1_consignes!$C$50:$D$54,2,FALSE) -> 1700 | J18: 1870
A19: Ouzi | B19: Jacques | C19: m | D19: Célibataire | E19: 1969-02-28 | F19: 54 | G19: 3 | H19: Personnel | I19: =VLOOKUP(H19,Bdd1_consignes!$C$50:$D$54,2,FALSE) -> 1600 | J19: 1840
A20: Stiké | B20: Sophie | C20: f | D20: Divorcé(e) | E20: 1959-04-04 | F20: 64 | G20: 4 | H20: Secrétariat | I20: =VLOOKUP(H20,Bdd1_consignes!$C$50:$D$54,2,FALSE) -> 1700 | J20: 2040
A21: Tare | B21: Guy | C21: m | D21: Divorcé(e) | E21: 1960-08-07 | F21: 63 | G21: 4 | H21: Informatique | I21: =VLOOKUP(H21,Bdd1_consignes!$C$50:$D$54,2,FALSE) -> 1900 | J21: 2280
A22: Vaisselle | B22: Aude | C22: f | D22: Marié(e) | E22: 1966-06-06 | F22: 57 | G22: 4 | H22: Secrétariat | I22: =VLOOKUP(H22,Bdd1_consignes!$C$50:$D$54,2,FALSE) -> 1700 | J22: 2040
A23: Zetofrais | B23: Mélanie | C23: f | D23: Célibataire | E23: 1978-11-25 | F23: 44 | G23: 2 | H23: Direction | I23: =VLOOKUP(H23,Bdd1_consignes!$C$50:$D$54,2,FALSE) -> 2500 | J23: 2750
A24: Touille | B24: Sasha | C24: m | D24: Célibataire | E24: 1982-10-30 | F24: 40 | G24: 2 | H24: Personnel | I24: =VLOOKUP(H24,Bdd1_consignes!$C$50:$D$54,2,FALSE) -> 1600 | J24: 1760
A25: Proviste | B25: Alain | C25: m | D25: Marié(e) | E25: 1959-09-09 | F25: 64 | G25: 4 | H25: Personnel | I25: =VLOOKUP(H25,Bdd1_consignes!$C$50:$D$54,2,FALSE) -> 1600 | J25: 1920
A26: Peulaporte | B26: Firmin | C26: m | D26: Divorcé(e) | E26: 1965-07-01 | F26: 58 | G26: 4 | H26: Informatique | I26: =VLOOKUP(H26,Bdd1_consignes!$C$50:$D$54,2,FALSE) -> 1900 | J26: 2280
A27: Unetitlaine | B27: Jérémy | C27: m | D27: Marié(e) | E27: 1983-06-09 | F27: 40 | G27: 2 | H27: Informatique | I27: =VLOOKUP(H27,Bdd1_consignes!$C$50:$D$54,2,FALSE) -> 1900 | J27: 2090

Sheet Filtre2_corrigé (hidden)
A1: Filtres automatiques
A3: Organisez les données en tableau et affichez les employés du secrétariat et de la direction
A6: Nom | B6: Prénom | C6: Sexe | D6: Etat civil | E6: Date de naissance | F6: Age | G6: Tranches | H6: Services | I6: Salaires Minimum | J6: Salaires
A7: Bistrot | B7: Alonso | C7: m | D7: Marié(e) | E7: 1966-01-17 | F7: =DATEDIF(E7,TODAY(),"y") -> 57 | G7: =IF(F7<25,0,IF(F7<35,1,IF(F7<45,2,IF(F7<55,3,4)))) -> 4 | H7: Informatique | I7: =VLOOKUP(H7,Bdd1_consignes!$C$50:$D$54,2,FALSE) -> 1900 | J7: =I7+5%*G7*I7 -> 2280
A8: Bijoba | B8: Jo | C8: m | D8: Marié(e) | E8: 1980-03-15 | F8: 43 | G8: 2 | H8: Direction | I8: =VLOOKUP(H8,Bdd1_consignes!$C$50:$D$54,2,FALSE) -> 2500 | J8: 2750
A9: Covert | B9: Harry | C9: m | D9: Divorcé(e) | E9: 1942-02-10 | F9: 81 | G9: 4 | H9: Personnel | I9: =VLOOKUP(H9,Bdd1_consignes!$C$50:$D$54,2,FALSE) -> 1600 | J9: 1920
A10: Culaire | B10: Laury | C10: m | D10: Marié(e) | E10: 1965-05-05 | F10: 58 | G10: 4 | H10: Personnel | I10: =VLOOKUP(H10,Bdd1_consignes!$C$50:$D$54,2,FALSE) -> 1600 | J10: 1920
A11: Deuf | B11: John | C11: m | D11: Célibataire | E11: 1963-09-08 | F11: 60 | G11: 4 | H11: Informatique | I11: =VLOOKUP(H11,Bdd1_consignes!$C$50:$D$54,2,FALSE) -> 1900 | J11: 2280
A12: Foupasune | B12: Jean | C12: m | D12: Célibataire | E12: 1975-08-07 | F12: 48 | G12: 3 | H12: Personnel | I12: =VLOOKUP(H12,Bdd1_consignes!$C$50:$D$54,2,FALSE) -> 1600 | J12: 1840
A13: Lairbon | B13: Oussama | C13: m | D13: Marié(e) | E13: 1983-02-08 | F13: 40 | G13: 2 | H13: Personnel | I13: =VLOOKUP(H13,Bdd1_consignes!$C$50:$D$54,2,FALSE) -> 1600 | J13: 1760
A14: Menvussa | B14: Gérard | C14: m | D14: Célibataire | E14: 1970-12-04 | F14: 52 | G14: 3 | H14: Informatique | I14: =VLOOKUP(H14,Bdd1_consignes!$C$50:$D$54,2,FALSE) -> 1900 | J14: 2185
A15: Lalalalalalala | B15: Starsky | C15: m | D15: Célibataire | E15: 1955-07-08 | F15: 68 | G15: 4 | H15: Personnel | I15: =VLOOKUP(H15,Bdd1_consignes!$C$50:$D$54,2,FALSE) -> 1600 | J15: 1920
A16: Lalalalalalala | B16: Hutch | C16: m | D16: Divorcé(e) | E16: 1952-10-07 | F16: 71 | G16: 4 | H16: Direction | I16: =VLOOKUP(H16,Bdd1_consignes!$C$50:$D$54,2,FALSE) -> 2500 | J16: 3000
A17: Cléssoulaporte | B17: Djamila | C17: f | D17: Marié(e) | E17: 1959-09-07 | F17: 64 | G17: 4 | H17: Personnel | I17: =VLOOKUP(H17,Bdd1_consignes!$C$50:$D$54,2,FALSE) -> 1600 | J17: 1920
A18: Noux | B18: Marion | C18: f | D18: Divorcé(e) | E18: 1978-12-30 | F18: 44 | G18: 2 | H18: Secrétariat | I18: =VLOOKUP(H18,Bdd1_consignes!$C$50:$D$54,2,FALSE) -> 1700 | J18: 1870
A19: Ouzi | B19: Jacques | C19: m | D19: Célibataire | E19: 1969-02-28 | F19: 54 | G19: 3 | H19: Personnel | I19: =VLOOKUP(H19,Bdd1_consignes!$C$50:$D$54,2,FALSE) -> 1600 | J19: 1840
A20: Stiké | B20: Sophie | C20: f | D20: Divorcé(e) | E20: 1959-04-04 | F20: 64 | G20: 4 | H20: Secrétariat | I20: =VLOOKUP(H20,Bdd1_consignes!$C$50:$D$54,2,FALSE) -> 1700 | J20: 2040
A21: Tare | B21: Guy | C21: m | D21: Divorcé(e) | E21: 1960-08-07 | F21: 63 | G21: 4 | H21: Informatique | I21: =VLOOKUP(H21,Bdd1_consignes!$C$50:$D$54,2,FALSE) -> 1900 | J21: 2280
A22: Vaisselle | B22: Aude | C22: f | D22: Marié(e) | E22: 1966-06-06 | F22: 57 | G22: 4 | H22: Secrétariat | I22: =VLOOKUP(H22,Bdd1_consignes!$C$50:$D$54,2,FALSE) -> 1700 | J22: 2040
A23: Zetofrais | B23: Mélanie | C23: f | D23: Célibataire | E23: 1978-11-25 | F23: 44 | G23: 2 | H23: Direction | I23: =VLOOKUP(H23,Bdd1_consignes!$C$50:$D$54,2,FALSE) -> 2500 | J23: 2750
A24: Touille | B24: Sasha | C24: m | D24: Célibataire | E24: 1982-10-30 | F24: 40 | G24: 2 | H24: Personnel | I24: =VLOOKUP(H24,Bdd1_consignes!$C$50:$D$54,2,FALSE) -> 1600 | J24: 1760
A25: Proviste | B25: Alain | C25: m | D25: Marié(e) | E25: 1959-09-09 | F25: 64 | G25: 4 | H25: Personnel | I25: =VLOOKUP(H25,Bdd1_consignes!$C$50:$D$54,2,FALSE) -> 1600 | J25: 1920
A26: Peulaporte | B26: Firmin | C26: m | D26: Divorcé(e) | E26: 1965-07-01 | F26: 58 | G26: 4 | H26: Informatique | I26: =VLOOKUP(H26,Bdd1_consignes!$C$50:$D$54,2,FALSE) -> 1900 | J26: 2280
A27: Unetitlaine | B27: Jérémy | C27: m | D27: Marié(e) | E27: 1983-06-09 | F27: 40 | G27: 2 | H27: Informatique | I27: =VLOOKUP(H27,Bdd1_consignes!$C$50:$D$54,2,FALSE) -> 1900 | J27: 2090

Sheet Filtre3
A1: Filtres automatiques | M1: Retour sommaire
A3: Organisez les données en tableau et affichez les employés nés entre 1965 et 1975
A6: Nom | B6: Prénom | C6: Sexe | D6: Etat civil | E6: Date de naissance | F6: Age | G6: Tranches | H6: Services | I6: Salaires Minimum | J6: Salaires
A7: Bistrot | B7: Alonso | C7: m | D7: Marié(e) | E7: 1966-01-17 | F7: =DATEDIF(E7,TODAY(),"y") -> 57 | G7: =IF(F7<25,0,IF(F7<35,1,IF(F7<45,2,IF(F7<55,3,4)))) -> 4 | H7: Informatique | I7: =VLOOKUP(H7,Bdd1_consignes!$C$50:$D$54,2,FALSE) -> 1900 | J7: =I7+5%*G7*I7 -> 2280
A8: Bijoba | B8: Jo | C8: m | D8: Marié(e) | E8: 1980-03-15 | F8: 43 | G8: 2 | H8: Direction | I8: =VLOOKUP(H8,Bdd1_consignes!$C$50:$D$54,2,FALSE) -> 2500 | J8: 2750
A9: Covert | B9: Harry | C9: m | D9: Divorcé(e) | E9: 1942-02-10 | F9: 81 | G9: 4 | H9: Personnel | I9: =VLOOKUP(H9,Bdd1_consignes!$C$50:$D$54,2,FALSE) -> 1600 | J9: 1920
A10: Culaire | B10: Laury | C10: m | D10: Marié(e) | E10: 1965-05-05 | F10: 58 | G10: 4 | H10: Personnel | I10: =VLOOKUP(H10,Bdd1_consignes!$C$50:$D$54,2,FALSE) -> 1600 | J10: 1920
A11: Deuf | B11: John | C11: m | D11: Célibataire | E11: 1963-09-08 | F11: 60 | G11: 4 | H11: Informatique | I11: =VLOOKUP(H11,Bdd1_consignes!$C$50:$D$54,2,FALSE) -> 1900 | J11: 2280
A12: Foupasune | B12: Jean | C12: m | D12: Célibataire | E12: 1975-08-07 | F12: 48 | G12: 3 | H12: Personnel | I12: =VLOOKUP(H12,Bdd1_consignes!$C$50:$D$54,2,FALSE) -> 1600 | J12: 1840
A13: Lairbon | B13: Oussama | C13: m | D13: Marié(e) | E13: 1983-02-08 | F13: 40 | G13: 2 | H13: Personnel | I13: =VLOOKUP(H13,Bdd1_consignes!$C$50:$D$54,2,FALSE) -> 1600 | J13: 1760
A14: Menvussa | B14: Gérard | C14: m | D14: Célibataire | E14: 1970-12-04 | F14: 52 | G14: 3 | H14: Informatique | I14: =VLOOKUP(H14,Bdd1_consignes!$C$50:$D$54,2,FALSE) -> 1900 | J14: 2185
A15: Lalalalalalala | B15: Starsky | C15: m | D15: Célibataire | E15: 1955-07-08 | F15: 68 | G15: 4 | H15: Personnel | I15: =VLOOKUP(H15,Bdd1_consignes!$C$50:$D$54,2,FALSE) -> 1600 | J15: 1920
A16: Lalalalalalala | B16: Hutch | C16: m | D16: Divorcé(e) | E16: 1952-10-07 | F16: 71 | G16: 4 | H16: Direction | I16: =VLOOKUP(H16,Bdd1_consignes!$C$50:$D$54,2,FALSE) -> 2500 | J16: 3000
A17: Cléssoulaporte | B17: Djamila | C17: f | D17: Marié(e) | E17: 1959-09-07 | F17: 64 | G17: 4 | H17: Personnel | I17: =VLOOKUP(H17,Bdd1_consignes!$C$50:$D$54,2,FALSE) -> 1600 | J17: 1920
A18: Noux | B18: Marion | C18: f | D18: Divorcé(e) | E18: 1978-12-30 | F18: 44 | G18: 2 | H18: Secrétariat | I18: =VLOOKUP(H18,Bdd1_consignes!$C$50:$D$54,2,FALSE) -> 1700 | J18: 1870
A19: Ouzi | B19: Jacques | C19: m | D19: Célibataire | E19: 1969-02-28 | F19: 54 | G19: 3 | H19: Personnel | I19: =VLOOKUP(H19,Bdd1_consignes!$C$50:$D$54,2,FALSE) -> 1600 | J19: 1840
A20: Stiké | B20: Sophie | C20: f | D20: Divorcé(e) | E20: 1959-04-04 | F20: 64 | G20: 4 | H20: Secrétariat | I20: =VLOOKUP(H20,Bdd1_consignes!$C$50:$D$54,2,FALSE) -> 1700 | J20: 2040
A21: Tare | B21: Guy | C21: m | D21: Divorcé(e) | E21: 1960-08-07 | F21: 63 | G21: 4 | H21: Informatique | I21: =VLOOKUP(H21,Bdd1_consignes!$C$50:$D$54,2,FALSE) -> 1900 | J21: 2280
A22: Vaisselle | B22: Aude | C22: f | D22: Marié(e) | E22: 1966-06-06 | F22: 57 | G22: 4 | H22: Secrétariat | I22: =VLOOKUP(H22,Bdd1_consignes!$C$50:$D$54,2,FALSE) -> 1700 | J22: 2040
A23: Zetofrais | B23: Mélanie | C23: f | D23: Célibataire | E23: 1978-11-25 | F23: 44 | G23: 2 | H23: Direction | I23: =VLOOKUP(H23,Bdd1_consignes!$C$50:$D$54,2,FALSE) -> 2500 | J23: 2750
A24: Touille | B24: Sasha | C24: m | D24: Célibataire | E24: 1982-10-30 | F24: 40 | G24: 2 | H24: Personnel | I24: =VLOOKUP(H24,Bdd1_consignes!$C$50:$D$54,2,FALSE) -> 1600 | J24: 1760
A25: Proviste | B25: Alain | C25: m | D25: Marié(e) | E25: 1959-09-09 | F25: 64 | G25: 4 | H25: Personnel | I25: =VLOOKUP(H25,Bdd1_consignes!$C$50:$D$54,2,FALSE) -> 1600 | J25: 1920
A26: Peulaporte | B26: Firmin | C26: m | D26: Divorcé(e) | E26: 1965-07-01 | F26: 58 | G26: 4 | H26: Informatique | I26: =VLOOKUP(H26,Bdd1_consignes!$C$50:$D$54,2,FALSE) -> 1900 | J26: 2280
A27: Unetitlaine | B27: Jérémy | C27: m | D27: Marié(e) | E27: 1983-06-09 | F27: 40 | G27: 2 | H27: Informatique | I27: =VLOOKUP(H27,Bdd1_consignes!$C$50:$D$54,2,FALSE) -> 1900 | J27: 2090

Sheet Filtre3_corrigé (hidden)
A1: Filtres automatiques
A3: Organisez les données en tableau et affichez les employés nés entre 1965 et 1975
A6: Nom | B6: Prénom | C6: Sexe | D6: Etat civil | E6: Date de naissance | F6: Age | G6: Tranches | H6: Services | I6: Salaires Minimum | J6: Salaires
A7: Bistrot | B7: Alonso | C7: m | D7: Marié(e) | E7: 1966-01-17 | F7: =DATEDIF(E7,TODAY(),"y") -> 57 | G7: =IF(F7<25,0,IF(F7<35,1,IF(F7<45,2,IF(F7<55,3,4)))) -> 4 | H7: Informatique | I7: =VLOOKUP(H7,Bdd1_consignes!$C$50:$D$54,2,FALSE) -> 1900 | J7: =I7+5%*G7*I7 -> 2280
A8: Bijoba | B8: Jo | C8: m | D8: Marié(e) | E8: 1980-03-15 | F8: 43 | G8: 2 | H8: Direction | I8: =VLOOKUP(H8,Bdd1_consignes!$C$50:$D$54,2,FALSE) -> 2500 | J8: 2750
A9: Covert | B9: Harry | C9: m | D9: Divorcé(e) | E9: 1942-02-10 | F9: 81 | G9: 4 | H9: Personnel | I9: =VLOOKUP(H9,Bdd1_consignes!$C$50:$D$54,2,FALSE) -> 1600 | J9: 1920
A10: Culaire | B10: Laury | C10: m | D10: Marié(e) | E10: 1965-05-05 | F10: 58 | G10: 4 | H10: Personnel | I10: =VLOOKUP(H10,Bdd1_consignes!$C$50:$D$54,2,FALSE) -> 1600 | J10: 1920
A11: Deuf | B11: John | C11: m | D11: Célibataire | E11: 1963-09-08 | F11: 60 | G11: 4 | H11: Informatique | I11: =VLOOKUP(H11,Bdd1_consignes!$C$50:$D$54,2,FALSE) -> 1900 | J11: 2280
A12: Foupasune | B12: Jean | C12: m | D12: Célibataire | E12: 1975-08-07 | F12: 48 | G12: 3 | H12: Personnel | I12: =VLOOKUP(H12,Bdd1_consignes!$C$50:$D$54,2,FALSE) -> 1600 | J12: 1840
A13: Lairbon | B13: Oussama | C13: m | D13: Marié(e) | E13: 1983-02-08 | F13: 40 | G13: 2 | H13: Personnel | I13: =VLOOKUP(H13,Bdd1_consignes!$C$50:$D$54,2,FALSE) -> 1600 | J13: 1760
A14: Menvussa | B14: Gérard | C14: m | D14: Célibataire | E14: 1970-12-04 | F14: 52 | G14: 3 | H14: Informatique | I14: =VLOOKUP(H14,Bdd1_consignes!$C$50:$D$54,2,FALSE) -> 1900 | J14: 2185
A15: Lalalalalalala | B15: Starsky | C15: m | D15: Célibataire | E15: 1955-07-08 | F15: 68 | G15: 4 | H15: Personnel | I15: =VLOOKUP(H15,Bdd1_consignes!$C$50:$D$54,2,FALSE) -> 1600 | J15: 1920
A16: Lalalalalalala | B16: Hutch | C16: m | D16: Divorcé(e) | E16: 1952-10-07 | F16: 71 | G16: 4 | H16: Direction | I16: =VLOOKUP(H16,Bdd1_consignes!$C$50:$D$54,2,FALSE) -> 2500 | J16: 3000
A17: Cléssoulaporte | B17: Djamila | C17: f | D17: Marié(e) | E17: 1959-09-07 | F17: 64 | G17: 4 | H17: Personnel | I17: =VLOOKUP(H17,Bdd1_consignes!$C$50:$D$54,2,FALSE) -> 1600 | J17: 1920
A18: Noux | B18: Marion | C18: f | D18: Divorcé(e) | E18: 1978-12-30 | F18: 44 | G18: 2 | H18: Secrétariat | I18: =VLOOKUP(H18,Bdd1_consignes!$C$50:$D$54,2,FALSE) -> 1700 | J18: 1870
A19: Ouzi | B19: Jacques | C19: m | D19: Célibataire | E19: 1969-02-28 | F19: 54 | G19: 3 | H19: Personnel | I19: =VLOOKUP(H19,Bdd1_consignes!$C$50:$D$54,2,FALSE) -> 1600 | J19: 1840
A20: Stiké | B20: Sophie | C20: f | D20: Divorcé(e) | E20: 1959-04-04 | F20: 64 | G20: 4 | H20: Secrétariat | I20: =VLOOKUP(H20,Bdd1_consignes!$C$50:$D$54,2,FALSE) -> 1700 | J20: 2040
A21: Tare | B21: Guy | C21: m | D21: Divorcé(e) | E21: 1960-08-07 | F21: 63 | G21: 4 | H21: Informatique | I21: =VLOOKUP(H21,Bdd1_consignes!$C$50:$D$54,2,FALSE) -> 1900 | J21: 2280
A22: Vaisselle | B22: Aude | C22: f | D22: Marié(e) | E22: 1966-06-06 | F22: 57 | G22: 4 | H22: Secrétariat | I22: =VLOOKUP(H22,Bdd1_consignes!$C$50:$D$54,2,FALSE) -> 1700 | J22: 2040
A23: Zetofrais | B23: Mélanie | C23: f | D23: Célibataire | E23: 1978-11-25 | F23: 44 | G23: 2 | H23: Direction | I23: =VLOOKUP(H23,Bdd1_consignes!$C$50:$D$54,2,FALSE) -> 2500 | J23: 2750
A24: Touille | B24: Sasha | C24: m | D24: Célibataire | E24: 1982-10-30 | F24: 40 | G24: 2 | H24: Personnel | I24: =VLOOKUP(H24,Bdd1_consignes!$C$50:$D$54,2,FALSE) -> 1600 | J24: 1760
A25: Proviste | B25: Alain | C25: m | D25: Marié(e) | E25: 1959-09-09 | F25: 64 | G25: 4 | H25: Personnel | I25: =VLOOKUP(H25,Bdd1_consignes!$C$50:$D$54,2,FALSE) -> 1600 | J25: 1920
A26: Peulaporte | B26: Firmin | C26: m | D26: Divorcé(e) | E26: 1965-07-01 | F26: 58 | G26: 4 | H26: Informatique | I26: =VLOOKUP(H26,Bdd1_consignes!$C$50:$D$54,2,FALSE) -> 1900 | J26: 2280
A27: Unetitlaine | B27: Jérémy | C27: m | D27: Marié(e) | E27: 1983-06-09 | F27: 40 | G27: 2 | H27: Informatique | I27: =VLOOKUP(H27,Bdd1_consignes!$C$50:$D$54,2,FALSE) -> 1900 | J27: 2090

Sheet Filtre4
A1: Filtres automatiques | M1: Retour sommaire
A3: Organisez les données en tableau et affichez les employés de l'informatique et de la direction nés entre 1965 et 1975
A6: Nom | B6: Prénom | C6: Sexe | D6: Etat civil | E6: Date de naissance | F6: Age | G6: Tranches | H6: Services | I6: Salaires Minimum | J6: Salaires
A7: Bistrot | B7: Alonso | C7: m | D7: Marié(e) | E7: 1966-01-17 | F7: =DATEDIF(E7,TODAY(),"y") -> 57 | G7: =IF(F7<25,0,IF(F7<35,1,IF(F7<45,2,IF(F7<55,3,4)))) -> 4 | H7: Informatique | I7: =VLOOKUP(H7,Bdd1_consignes!$C$50:$D$54,2,FALSE) -> 1900 | J7: =I7+5%*G7*I7 -> 2280
A8: Bijoba | B8: Jo | C8: m | D8: Marié(e) | E8: 1980-03-15 | F8: 43 | G8: 2 | H8: Direction | I8: =VLOOKUP(H8,Bdd1_consignes!$C$50:$D$54,2,FALSE) -> 2500 | J8: 2750
A9: Covert | B9: Harry | C9: m | D9: Divorcé(e) | E9: 1942-02-10 | F9: 81 | G9: 4 | H9: Personnel | I9: =VLOOKUP(H9,Bdd1_consignes!$C$50:$D$54,2,FALSE) -> 1600 | J9: 1920
A10: Culaire | B10: Laury | C10: m | D10: Marié(e) | E10: 1965-05-05 | F10: 58 | G10: 4 | H10: Personnel | I10: =VLOOKUP(H10,Bdd1_consignes!$C$50:$D$54,2,FALSE) -> 1600 | J10: 1920
A11: Deuf | B11: John | C11: m | D11: Célibataire | E11: 1963-09-08 | F11: 60 | G11: 4 | H11: Informatique | I11: =VLOOKUP(H11,Bdd1_consignes!$C$50:$D$54,2,FALSE) -> 1900 | J11: 2280
A12: Foupasune | B12: Jean | C12: m | D12: Célibataire | E12: 1975-08-07 | F12: 48 | G12: 3 | H12: Personnel | I12: =VLOOKUP(H12,Bdd1_consignes!$C$50:$D$54,2,FALSE) -> 1600 | J12: 1840
A13: Lairbon | B13: Oussama | C13: m | D13: Marié(e) | E13: 1983-02-08 | F13: 40 | G13: 2 | H13: Personnel | I13: =VLOOKUP(H13,Bdd1_consignes!$C$50:$D$54,2,FALSE) -> 1600 | J13: 1760
A14: Menvussa | B14: Gérard | C14: m | D14: Célibataire | E14: 1970-12-04 | F14: 52 | G14: 3 | H14: Informatique | I14: =VLOOKUP(H14,Bdd1_consignes!$C$50:$D$54,2,FALSE) -> 1900 | J14: 2185
A15: Lalalalalalala | B15: Starsky | C15: m | D15: Célibataire | E15: 1955-07-08 | F15: 68 | G15: 4 | H15: Personnel | I15: =VLOOKUP(H15,Bdd1_consignes!$C$50:$D$54,2,FALSE) -> 1600 | J15: 1920
A16: Lalalalalalala | B16: Hutch | C16: m | D16: Divorcé(e) | E16: 1952-10-07 | F16: 71 | G16: 4 | H16: Direction | I16: =VLOOKUP(H16,Bdd1_consignes!$C$50:$D$54,2,FALSE) -> 2500 | J16: 3000
A17: Cléssoulaporte | B17: Djamila | C17: f | D17: Marié(e) | E17: 1959-09-07 | F17: 64 | G17: 4 | H17: Personnel | I17: =VLOOKUP(H17,Bdd1_consignes!$C$50:$D$54,2,FALSE) -> 1600 | J17: 1920
A18: Noux | B18: Marion | C18: f | D18: Divorcé(e) | E18: 1978-12-30 | F18: 44 | G18: 2 | H18: Secrétariat | I18: =VLOOKUP(H18,Bdd1_consignes!$C$50:$D$54,2,FALSE) -> 1700 | J18: 1870
A19: Ouzi | B19: Jacques | C19: m | D19: Célibataire | E19: 1969-02-28 | F19: 54 | G19: 3 | H19: Personnel | I19: =VLOOKUP(H19,Bdd1_consignes!$C$50:$D$54,2,FALSE) -> 1600 | J19: 1840
A20: Stiké | B20: Sophie | C20: f | D20: Divorcé(e) | E20: 1959-04-04 | F20: 64 | G20: 4 | H20: Secrétariat | I20: =VLOOKUP(H20,Bdd1_consignes!$C$50:$D$54,2,FALSE) -> 1700 | J20: 2040
A21: Tare | B21: Guy | C21: m | D21: Divorcé(e) | E21: 1960-08-07 | F21: 63 | G21: 4 | H21: Informatique | I21: =VLOOKUP(H21,Bdd1_consignes!$C$50:$D$54,2,FALSE) -> 1900 | J21: 2280
A22: Vaisselle | B22: Aude | C22: f | D22: Marié(e) | E22: 1966-06-06 | F22: 57 | G22: 4 | H22: Secrétariat | I22: =VLOOKUP(H22,Bdd1_consignes!$C$50:$D$54,2,FALSE) -> 1700 | J22: 2040
A23: Zetofrais | B23: Mélanie | C23: f | D23: Célibataire | E23: 1978-11-25 | F23: 44 | G23: 2 | H23: Direction | I23: =VLOOKUP(H23,Bdd1_consignes!$C$50:$D$54,2,FALSE) -> 2500 | J23: 2750
A24: Touille | B24: Sasha | C24: m | D24: Célibataire | E24: 1982-10-30 | F24: 40 | G24: 2 | H24: Personnel | I24: =VLOOKUP(H24,Bdd1_consignes!$C$50:$D$54,2,FALSE) -> 1600 | J24: 1760
A25: Proviste | B25: Alain | C25: m | D25: Marié(e) | E25: 1959-09-09 | F25: 64 | G25: 4 | H25: Personnel | I25: =VLOOKUP(H25,Bdd1_consignes!$C$50:$D$54,2,FALSE) -> 1600 | J25: 1920
A26: Peulaporte | B26: Firmin | C26: m | D26: Divorcé(e) | E26: 1965-07-01 | F26: 58 | G26: 4 | H26: Informatique | I26: =VLOOKUP(H26,Bdd1_consignes!$C$50:$D$54,2,FALSE) -> 1900 | J26: 2280
A27: Unetitlaine | B27: Jérémy | C27: m | D27: Marié(e) | E27: 1983-06-09 | F27: 40 | G27: 2 | H27: Informatique | I27: =VLOOKUP(H27,Bdd1_consignes!$C$50:$D$54,2,FALSE) -> 1900 | J27: 2090

Sheet Filtre4_corrigé (hidden)
A1: Filtres automatiques
A3: Organisez les données en tableau et affichez les employés de l'informatique et de la direction nés entre 1965 et 1975
A6: Nom | B6: Prénom | C6: Sexe | D6: Etat civil | E6: Date de naissance | F6: Age | G6: Tranches | H6: Services | I6: Salaires Minimum | J6: Salaires
A7: Bistrot | B7: Alonso | C7: m | D7: Marié(e) | E7: 1966-01-17 | F7: =DATEDIF(E7,TODAY(),"y") -> 57 | G7: =IF(F7<25,0,IF(F7<35,1,IF(F7<45,2,IF(F7<55,3,4)))) -> 4 | H7: Informatique | I7: =VLOOKUP(H7,Bdd1_consignes!$C$50:$D$54,2,FALSE) -> 1900 | J7: =I7+5%*G7*I7 -> 2280
A8: Bijoba | B8: Jo | C8: m | D8: Marié(e) | E8: 1980-03-15 | F8: 43 | G8: 2 | H8: Direction | I8: =VLOOKUP(H8,Bdd1_consignes!$C$50:$D$54,2,FALSE) -> 2500 | J8: 2750
A9: Covert | B9: Harry | C9: m | D9: Divorcé(e) | E9: 1942-02-10 | F9: 81 | G9: 4 | H9: Personnel | I9: =VLOOKUP(H9,Bdd1_consignes!$C$50:$D$54,2,FALSE) -> 1600 | J9: 1920
A10: Culaire | B10: Laury | C10: m | D10: Marié(e) | E10: 1965-05-05 | F10: 58 | G10: 4 | H10: Personnel | I10: =VLOOKUP(H10,Bdd1_consignes!$C$50:$D$54,2,FALSE) -> 1600 | J10: 1920
A11: Deuf | B11: John | C11: m | D11: Célibataire | E11: 1963-09-08 | F11: 60 | G11: 4 | H11: Informatique | I11: =VLOOKUP(H11,Bdd1_consignes!$C$50:$D$54,2,FALSE) -> 1900 | J11: 2280
A12: Foupasune | B12: Jean | C12: m | D12: Célibataire | E12: 1975-08-07 | F12: 48 | G12: 3 | H12: Personnel | I12: =VLOOKUP(H12,Bdd1_consignes!$C$50:$D$54,2,FALSE) -> 1600 | J12: 1840
A13: Lairbon | B13: Oussama | C13: m | D13: Marié(e) | E13: 1983-02-08 | F13: 40 | G13: 2 | H13: Personnel | I13: =VLOOKUP(H13,Bdd1_consignes!$C$50:$D$54,2,FALSE) -> 1600 | J13: 1760
A14: Menvussa | B14: Gérard | C14: m | D14: Célibataire | E14: 1970-12-04 | F14: 52 | G14: 3 | H14: Informatique | I14: =VLOOKUP(H14,Bdd1_consignes!$C$50:$D$54,2,FALSE) -> 1900 | J14: 2185
A15: Lalalalalalala | B15: Starsky | C15: m | D15: Célibataire | E15: 1955-07-08 | F15: 68 | G15: 4 | H15: Personnel | I15: =VLOOKUP(H15,Bdd1_consignes!$C$50:$D$54,2,FALSE) -> 1600 | J15: 1920
A16: Lalalalalalala | B16: Hutch | C16: m | D16: Divorcé(e) | E16: 1952-10-07 | F16: 71 | G16: 4 | H16: Direction | I16: =VLOOKUP(H16,Bdd1_consignes!$C$50:$D$54,2,FALSE) -> 2500 | J16: 3000
A17: Cléssoulaporte | B17: Djamila | C17: f | D17: Marié(e) | E17: 1959-09-07 | F17: 64 | G17: 4 | H17: Personnel | I17: =VLOOKUP(H17,Bdd1_consignes!$C$50:$D$54,2,FALSE) -> 1600 | J17: 1920
A18: Noux | B18: Marion | C18: f | D18: Divorcé(e) | E18: 1978-12-30 | F18: 44 | G18: 2 | H18: Secrétariat | I18: =VLOOKUP(H18,Bdd1_consignes!$C$50:$D$54,2,FALSE) -> 1700 | J18: 1870
A19: Ouzi | B19: Jacques | C19: m | D19: Célibataire | E19: 1969-02-28 | F19: 54 | G19: 3 | H19: Personnel | I19: =VLOOKUP(H19,Bdd1_consignes!$C$50:$D$54,2,FALSE) -> 1600 | J19: 1840
A20: Stiké | B20: Sophie | C20: f | D20: Divorcé(e) | E20: 1959-04-04 | F20: 64 | G20: 4 | H20: Secrétariat | I20: =VLOOKUP(H20,Bdd1_consignes!$C$50:$D$54,2,FALSE) -> 1700 | J20: 2040
A21: Tare | B21: Guy | C21: m | D21: Divorcé(e) | E21: 1960-08-07 | F21: 63 | G21: 4 | H21: Informatique | I21: =VLOOKUP(H21,Bdd1_consignes!$C$50:$D$54,2,FALSE) -> 1900 | J21: 2280
A22: Vaisselle | B22: Aude | C22: f | D22: Marié(e) | E22: 1966-06-06 | F22: 57 | G22: 4 | H22: Secrétariat | I22: =VLOOKUP(H22,Bdd1_consignes!$C$50:$D$54,2,FALSE) -> 1700 | J22: 2040
A23: Zetofrais | B23: Mélanie | C23: f | D23: Célibataire | E23: 1978-11-25 | F23: 44 | G23: 2 | H23: Direction | I23: =VLOOKUP(H23,Bdd1_consignes!$C$50:$D$54,2,FALSE) -> 2500 | J23: 2750
A24: Touille | B24: Sasha | C24: m | D24: Célibataire | E24: 1982-10-30 | F24: 40 | G24: 2 | H24: Personnel | I24: =VLOOKUP(H24,Bdd1_consignes!$C$50:$D$54,2,FALSE) -> 1600 | J24: 1760
A25: Proviste | B25: Alain | C25: m | D25: Marié(e) | E25: 1959-09-09 | F25: 64 | G25: 4 | H25: Personnel | I25: =VLOOKUP(H25,Bdd1_consignes!$C$50:$D$54,2,FALSE) -> 1600 | J25: 1920
A26: Peulaporte | B26: Firmin | C26: m | D26: Divorcé(e) | E26: 1965-07-01 | F26: 58 | G26: 4 | H26: Informatique | I26: =VLOOKUP(H26,Bdd1_consignes!$C$50:$D$54,2,FALSE) -> 1900 | J26: 2280
A27: Unetitlaine | B27: Jérémy | C27: m | D27: Marié(e) | E27: 1983-06-09 | F27: 40 | G27: 2 | H27: Informatique | I27: =VLOOKUP(H27,Bdd1_consignes!$C$50:$D$54,2,FALSE) -> 1900 | J27: 2090

Sheet Filtre5
A1: Filtres automatiques | M1: Retour sommaire
A3: Organisez les données en tableau et utilisez les segments pour afficher les employés de l'informatique et de la direction nés entre 1965 et 1975
A6: Nom | B6: Prénom | C6: Sexe | D6: Etat civil | E6: Date de naissance | F6: Age | G6: Tranches | H6: Services | I6: Salaires Minimum | J6: Salaires
A7: Bistrot | B7: Alonso | C7: m | D7: Marié(e) | E7: 1966-01-17 | F7: =DATEDIF(E7,TODAY(),"y") -> 57 | G7: =IF(F7<25,0,IF(F7<35,1,IF(F7<45,2,IF(F7<55,3,4)))) -> 4 | H7: Informatique | I7: =VLOOKUP(H7,Bdd1_consignes!$C$50:$D$54,2,FALSE) -> 1900 | J7: =I7+5%*G7*I7 -> 2280
A8: Bijoba | B8: Jo | C8: m | D8: Marié(e) | E8: 1980-03-15 | F8: 43 | G8: 2 | H8: Direction | I8: =VLOOKUP(H8,Bdd1_consignes!$C$50:$D$54,2,FALSE) -> 2500 | J8: 2750
A9: Covert | B9: Harry | C9: m | D9: Divorcé(e) | E9: 1942-02-10 | F9: 81 | G9: 4 | H9: Personnel | I9: =VLOOKUP(H9,Bdd1_consignes!$C$50:$D$54,2,FALSE) -> 1600 | J9: 1920
A10: Culaire | B10: Laury | C10: m | D10: Marié(e) | E10: 1965-05-05 | F10: 58 | G10: 4 | H10: Personnel | I10: =VLOOKUP(H10,Bdd1_consignes!$C$50:$D$54,2,FALSE) -> 1600 | J10: 1920
A11: Deuf | B11: John | C11: m | D11: Célibataire | E11: 1963-09-08 | F11: 60 | G11: 4 | H11: Informatique | I11: =VLOOKUP(H11,Bdd1_consignes!$C$50:$D$54,2,FALSE) -> 1900 | J11: 2280
A12: Foupasune | B12: Jean | C12: m | D12: Célibataire | E12: 1975-08-07 | F12: 48 | G12: 3 | H12: Personnel | I12: =VLOOKUP(H12,Bdd1_consignes!$C$50:$D$54,2,FALSE) -> 1600 | J12: 1840
A13: Lairbon | B13: Oussama | C13: m | D13: Marié(e) | E13: 1983-02-08 | F13: 40 | G13: 2 | H13: Personnel | I13: =VLOOKUP(H13,Bdd1_consignes!$C$50:$D$54,2,FALSE) -> 1600 | J13: 1760
A14: Menvussa | B14: Gérard | C14: m | D14: Célibataire | E14: 1970-12-04 | F14: 52 | G14: 3 | H14: Informatique | I14: =VLOOKUP(H14,Bdd1_consignes!$C$50:$D$54,2,FALSE) -> 1900 | J14: 2185
A15: Lalalalalalala | B15: Starsky | C15: m | D15: Célibataire | E15: 1955-07-08 | F15: 68 | G15: 4 | H15: Personnel | I15: =VLOOKUP(H15,Bdd1_consignes!$C$50:$D$54,2,FALSE) -> 1600 | J15: 1920
A16: Lalalalalalala | B16: Hutch | C16: m | D16: Divorcé(e) | E16: 1952-10-07 | F16: 71 | G16: 4 | H16: Direction | I16: =VLOOKUP(H16,Bdd1_consignes!$C$50:$D$54,2,FALSE) -> 2500 | J16: 3000
A17: Cléssoulaporte | B17: Djamila | C17: f | D17: Marié(e) | E17: 1959-09-07 | F17: 64 | G17: 4 | H17: Personnel | I17: =VLOOKUP(H17,Bdd1_consignes!$C$50:$D$54,2,FALSE) -> 1600 | J17: 1920
A18: Noux | B18: Marion | C18: f | D18: Divorcé(e) | E18: 1978-12-30 | F18: 44 | G18: 2 | H18: Secrétariat | I18: =VLOOKUP(H18,Bdd1_consignes!$C$50:$D$54,2,FALSE) -> 1700 | J18: 1870
A19: Ouzi | B19: Jacques | C19: m | D19: Célibataire | E19: 1969-02-28 | F19: 54 | G19: 3 | H19: Personnel | I19: =VLOOKUP(H19,Bdd1_consignes!$C$50:$D$54,2,FALSE) -> 1600 | J19: 1840
A20: Stiké | B20: Sophie | C20: f | D20: Divorcé(e) | E20: 1959-04-04 | F20: 64 | G20: 4 | H20: Secrétariat | I20: =VLOOKUP(H20,Bdd1_consignes!$C$50:$D$54,2,FALSE) -> 1700 | J20: 2040
A21: Tare | B21: Guy | C21: m | D21: Divorcé(e) | E21: 1960-08-07 | F21: 63 | G21: 4 | H21: Informatique | I21: =VLOOKUP(H21,Bdd1_consignes!$C$50:$D$54,2,FALSE) -> 1900 | J21: 2280
A22: Vaisselle | B22: Aude | C22: f | D22: Marié(e) | E22: 1966-06-06 | F22: 57 | G22: 4 | H22: Secrétariat | I22: =VLOOKUP(H22,Bdd1_consignes!$C$50:$D$54,2,FALSE) -> 1700 | J22: 2040
A23: Zetofrais | B23: Mélanie | C23: f | D23: Célibataire | E23: 1978-11-25 | F23: 44 | G23: 2 | H23: Direction | I23: =VLOOKUP(H23,Bdd1_consignes!$C$50:$D$54,2,FALSE) -> 2500 | J23: 2750
A24: Touille | B24: Sasha | C24: m | D24: Célibataire | E24: 1982-10-30 | F24: 40 | G24: 2 | H24: Personnel | I24: =VLOOKUP(H24,Bdd1_consignes!$C$50:$D$54,2,FALSE) -> 1600 | J24: 1760
A25: Proviste | B25: Alain | C25: m | D25: Marié(e) | E25: 1959-09-09 | F25: 64 | G25: 4 | H25: Personnel | I25: =VLOOKUP(H25,Bdd1_consignes!$C$50:$D$54,2,FALSE) -> 1600 | J25: 1920
A26: Peulaporte | B26: Firmin | C26: m | D26: Divorcé(e) | E26: 1965-07-01 | F26: 58 | G26: 4 | H26: Informatique | I26: =VLOOKUP(H26,Bdd1_consignes!$C$50:$D$54,2,FALSE) -> 1900 | J26: 2280
A27: Unetitlaine | B27: Jérémy | C27: m | D27: Marié(e) | E27: 1983-06-09 | F27: 40 | G27: 2 | H27: Informatique | I27: =VLOOKUP(H27,Bdd1_consignes!$C$50:$D$54,2,FALSE) -> 1900 | J27: 2090

Sheet Filtre5_corrigé (hidden)
A1: Filtres automatiques | M1: Retour sommaire
A3: Organisez les données en tableau et utilisez les segments pour afficher les employés de l'informatique et de la direction nés entre 1965 et 1975
A6: Nom | B6: Prénom | C6: Sexe | D6: Etat civil | E6: Date de naissance | F6: Age | G6: Tranches | H6: Services | I6: Salaires Minimum | J6: Salaires
A7: Bistrot | B7: Alonso | C7: m | D7: Marié(e) | E7: 1966-01-17 | F7: =DATEDIF(E7,TODAY(),"y") -> 57 | G7: =IF(F7<25,0,IF(F7<35,1,IF(F7<45,2,IF(F7<55,3,4)))) -> 4 | H7: Informatique | I7: =VLOOKUP(H7,Bdd1_consignes!$C$50:$D$54,2,FALSE) -> 1900 | J7: =I7+5%*G7*I7 -> 2280
A8: Bijoba | B8: Jo | C8: m | D8: Marié(e) | E8: 1980-03-15 | F8: 43 | G8: 2 | H8: Direction | I8: =VLOOKUP(H8,Bdd1_consignes!$C$50:$D$54,2,FALSE) -> 2500 | J8: 2750
A9: Covert | B9: Harry | C9: m | D9: Divorcé(e) | E9: 1942-02-10 | F9: 81 | G9: 4 | H9: Personnel | I9: =VLOOKUP(H9,Bdd1_consignes!$C$50:$D$54,2,FALSE) -> 1600 | J9: 1920
A10: Culaire | B10: Laury | C10: m | D10: Marié(e) | E10: 1965-05-05 | F10: 58 | G10: 4 | H10: Personnel | I10: =VLOOKUP(H10,Bdd1_consignes!$C$50:$D$54,2,FALSE) -> 1600 | J10: 1920
A11: Deuf | B11: John | C11: m | D11: Célibataire | E11: 1963-09-08 | F11: 60 | G11: 4 | H11: Informatique | I11: =VLOOKUP(H11,Bdd1_consignes!$C$50:$D$54,2,FALSE) -> 1900 | J11: 2280
A12: Foupasune | B12: Jean | C12: m | D12: Célibataire | E12: 1975-08-07 | F12: 48 | G12: 3 | H12: Personnel | I12: =VLOOKUP(H12,Bdd1_consignes!$C$50:$D$54,2,FALSE) -> 1600 | J12: 1840
A13: Lairbon | B13: Oussama | C13: m | D13: Marié(e) | E13: 1983-02-08 | F13: 40 | G13: 2 | H13: Personnel | I13: =VLOOKUP(H13,Bdd1_consignes!$C$50:$D$54,2,FALSE) -> 1600 | J13: 1760
A14: Menvussa | B14: Gérard | C14: m | D14: Célibataire | E14: 1970-12-04 | F14: 52 | G14: 3 | H14: Informatique | I14: =VLOOKUP(H14,Bdd1_consignes!$C$50:$D$54,2,FALSE) -> 1900 | J14: 2185
A15: Lalalalalalala | B15: Starsky | C15: m | D15: Célibataire | E15: 1955-07-08 | F15: 68 | G15: 4 | H15: Personnel | I15: =VLOOKUP(H15,Bdd1_consignes!$C$50:$D$54,2,FALSE) -> 1600 | J15: 1920
A16: Lalalalalalala | B16: Hutch | C16: m | D16: Divorcé(e) | E16: 1952-10-07 | F16: 71 | G16: 4 | H16: Direction | I16: =VLOOKUP(H16,Bdd1_consignes!$C$50:$D$54,2,FALSE) -> 2500 | J16: 3000
A17: Cléssoulaporte | B17: Djamila | C17: f | D17: Marié(e) | E17: 1959-09-07 | F17: 64 | G17: 4 | H17: Personnel | I17: =VLOOKUP(H17,Bdd1_consignes!$C$50:$D$54,2,FALSE) -> 1600 | J17: 1920
A18: Noux | B18: Marion | C18: f | D18: Divorcé(e) | E18: 1978-12-30 | F18: 44 | G18: 2 | H18: Secrétariat | I18: =VLOOKUP(H18,Bdd1_consignes!$C$50:$D$54,2,FALSE) -> 1700 | J18: 1870
A19: Ouzi | B19: Jacques | C19: m | D19: Célibataire | E19: 1969-02-28 | F19: 54 | G19: 3 | H19: Personnel | I19: =VLOOKUP(H19,Bdd1_consignes!$C$50:$D$54,2,FALSE) -> 1600 | J19: 1840
A20: Stiké | B20: Sophie | C20: f | D20: Divorcé(e) | E20: 1959-04-04 | F20: 64 | G20: 4 | H20: Secrétariat | I20: =VLOOKUP(H20,Bdd1_consignes!$C$50:$D$54,2,FALSE) -> 1700 | J20: 2040
A21: Tare | B21: Guy | C21: m | D21: Divorcé(e) | E21: 1960-08-07 | F21: 63 | G21: 4 | H21: Informatique | I21: =VLOOKUP(H21,Bdd1_consignes!$C$50:$D$54,2,FALSE) -> 1900 | J21: 2280
A22: Vaisselle | B22: Aude | C22: f | D22: Marié(e) | E22: 1966-06-06 | F22: 57 | G22: 4 | H22: Secrétariat | I22: =VLOOKUP(H22,Bdd1_consignes!$C$50:$D$54,2,FALSE) -> 1700 | J22: 2040
A23: Zetofrais | B23: Mélanie | C23: f | D23: Célibataire | E23: 1978-11-25 | F23: 44 | G23: 2 | H23: Direction | I23: =VLOOKUP(H23,Bdd1_consignes!$C$50:$D$54,2,FALSE) -> 2500 | J23: 2750
A24: Touille | B24: Sasha | C24: m | D24: Célibataire | E24: 1982-10-30 | F24: 40 | G24: 2 | H24: Personnel | I24: =VLOOKUP(H24,Bdd1_consignes!$C$50:$D$54,2,FALSE) -> 1600 | J24: 1760
A25: Proviste | B25: Alain | C25: m | D25: Marié(e) | E25: 1959-09-09 | F25: 64 | G25: 4 | H25: Personnel | I25: =VLOOKUP(H25,Bdd1_consignes!$C$50:$D$54,2,FALSE) -> 1600 | J25: 1920
A26: Peulaporte | B26: Firmin | C26: m | D26: Divorcé(e) | E26: 1965-07-01 | F26: 58 | G26: 4 | H26: Informatique | I26: =VLOOKUP(H26,Bdd1_consignes!$C$50:$D$54,2,FALSE) -> 1900 | J26: 2280
A27: Unetitlaine | B27: Jérémy | C27: m | D27: Marié(e) | E27: 1983-06-09 | F27: 40 | G27: 2 | H27: Informatique | I27: =VLOOKUP(H27,Bdd1_consignes!$C$50:$D$54,2,FALSE) -> 1900 | J27: 2090

Sheet FiltresElabDonnées
A1: Bdd à filtrer par un filtre élaboré
A3: Les filtres élaborés permettent à l'utilisateur de filtrer vers un autre emplacement (autre feuille par exemple).
A4: Les données à utiliser sont les suivantes. Consignes, critères et résultats se trouveront sur les feuilles qui suivent.
A6: Nom | B6: Prénom | C6: Sexe | D6: Etat civil | E6: Date de naissance | F6: Age | G6: Tranches | H6: Services | I6: Salaires Minimum | J6: Salaires
A7: Bistrot | B7: Alonso | C7: m | D7: Marié(e) | E7: 1966-01-17 | F7: =DATEDIF(E7,TODAY(),"y") -> 57 | G7: =IF(F7<25,0,IF(F7<35,1,IF(F7<45,2,IF(F7<55,3,4)))) -> 4 | H7: Informatique | I7: =VLOOKUP(H7,Bdd1_consignes!$C$50:$D$54,2,FALSE) -> 1900 | J7: =I7+5%*G7*I7 -> 2280
A8: Bijoba | B8: Jo | C8: m | D8: Marié(e) | E8: 1980-03-15 | F8: 43 | G8: 2 | H8: Direction | I8: =VLOOKUP(H8,Bdd1_consignes!$C$50:$D$54,2,FALSE) -> 2500 | J8: 2750
A9: Covert | B9: Harry | C9: m | D9: Divorcé(e) | E9: 1942-02-10 | F9: 81 | G9: 4 | H9: Personnel | I9: =VLOOKUP(H9,Bdd1_consignes!$C$50:$D$54,2,FALSE) -> 1600 | J9: 1920
A10: Culaire | B10: Laury | C10: m | D10: Marié(e) | E10: 1965-05-05 | F10: 58 | G10: 4 | H10: Personnel | I10: =VLOOKUP(H10,Bdd1_consignes!$C$50:$D$54,2,FALSE) -> 1600 | J10: 1920
A11: Deuf | B11: John | C11: m | D11: Célibataire | E11: 1963-09-08 | F11: 60 | G11: 4 | H11: Informatique | I11: =VLOOKUP(H11,Bdd1_consignes!$C$50:$D$54,2,FALSE) -> 1900 | J11: 2280
A12: Foupasune | B12: Jean | C12: m | D12: Célibataire | E12: 1975-08-07 | F12: 48 | G12: 3 | H12: Personnel | I12: =VLOOKUP(H12,Bdd1_consignes!$C$50:$D$54,2,FALSE) -> 1600 | J12: 1840
A13: Lairbon | B13: Oussama | C13: m | D13: Marié(e) | E13: 1983-02-08 | F13: 40 | G13: 2 | H13: Personnel | I13: =VLOOKUP(H13,Bdd1_consignes!$C$50:$D$54,2,FALSE) -> 1600 | J13: 1760
A14: Menvussa | B14: Gérard | C14: m | D14: Célibataire | E14: 1970-12-04 | F14: 52 | G14: 3 | H14: Informatique | I14: =VLOOKUP(H14,Bdd1_consignes!$C$50:$D$54,2,FALSE) -> 1900 | J14: 2185
A15: Lalalalalalala | B15: Starsky | C15: m | D15: Célibataire | E15: 1955-07-08 | F15: 68 | G15: 4 | H15: Personnel | I15: =VLOOKUP(H15,Bdd1_consignes!$C$50:$D$54,2,FALSE) -> 1600 | J15: 1920
A16: Lalalalalalala | B16: Hutch | C16: m | D16: Divorcé(e) | E16: 1952-10-07 | F16: 71 | G16: 4 | H16: Direction | I16: =VLOOKUP(H16,Bdd1_consignes!$C$50:$D$54,2,FALSE) -> 2500 | J16: 3000
A17: Cléssoulaporte | B17: Djamila | C17: f | D17: Marié(e) | E17: 1959-09-07 | F17: 64 | G17: 4 | H17: Personnel | I17: =VLOOKUP(H17,Bdd1_consignes!$C$50:$D$54,2,FALSE) -> 1600 | J17: 1920
A18: Noux | B18: Marion | C18: f | D18: Divorcé(e) | E18: 1978-12-30 | F18: 44 | G18: 2 | H18: Secrétariat | I18: =VLOOKUP(H18,Bdd1_consignes!$C$50:$D$54,2,FALSE) -> 1700 | J18: 1870
A19: Ouzi | B19: Jacques | C19: m | D19: Célibataire | E19: 1969-02-28 | F19: 54 | G19: 3 | H19: Personnel | I19: =VLOOKUP(H19,Bdd1_consignes!$C$50:$D$54,2,FALSE) -> 1600 | J19: 1840
A20: Stiké | B20: Sophie | C20: f | D20: Divorcé(e) | E20: 1959-04-04 | F20: 64 | G20: 4 | H20: Secrétariat | I20: =VLOOKUP(H20,Bdd1_consignes!$C$50:$D$54,2,FALSE) -> 1700 | J20: 2040
A21: Tare | B21: Guy | C21: m | D21: Divorcé(e) | E21: 1960-08-07 | F21: 63 | G21: 4 | H21: Informatique | I21: =VLOOKUP(H21,Bdd1_consignes!$C$50:$D$54,2,FALSE) -> 1900 | J21: 2280
A22: Vaisselle | B22: Aude | C22: f | D22: Marié(e) | E22: 1966-06-06 | F22: 57 | G22: 4 | H22: Secrétariat | I22: =VLOOKUP(H22,Bdd1_consignes!$C$50:$D$54,2,FALSE) -> 1700 | J22: 2040
A23: Zetofrais | B23: Mélanie | C23: f | D23: Célibataire | E23: 1978-11-25 | F23: 44 | G23: 2 | H23: Direction | I23: =VLOOKUP(H23,Bdd1_consignes!$C$50:$D$54,2,FALSE) -> 2500 | J23: 2750
A24: Touille | B24: Sasha | C24: m | D24: Célibataire | E24: 1982-10-30 | F24: 40 | G24: 2 | H24: Personnel | I24: =VLOOKUP(H24,Bdd1_consignes!$C$50:$D$54,2,FALSE) -> 1600 | J24: 1760
A25: Proviste | B25: Alain | C25: m | D25: Marié(e) | E25: 1959-09-09 | F25: 64 | G25: 4 | H25: Personnel | I25: =VLOOKUP(H25,Bdd1_consignes!$C$50:$D$54,2,FALSE) -> 1600 | J25: 1920
A26: Peulaporte | B26: Firmin | C26: m | D26: Divorcé(e) | E26: 1965-07-01 | F26: 58 | G26: 4 | H26: Informatique | I26: =VLOOKUP(H26,Bdd1_consignes!$C$50:$D$54,2,FALSE) -> 1900 | J26: 2280
A27: Unetitlaine | B27: Jérémy | C27: m | D27: Marié(e) | E27: 1983-06-09 | F27: 40 | G27: 2 | H27: Informatique | I27: =VLOOKUP(H27,Bdd1_consignes!$C$50:$D$54,2,FALSE) -> 1900 | J27: 2090
A28: Ouzi | B28: Jacques | C28: m | D28: Célibataire | E28: 1969-02-28 | F28: 54 | G28: 3 | H28: Personnel | I28: =VLOOKUP(H28,Bdd1_consignes!$C$50:$D$54,2,FALSE) -> 1600 | J28: =I28+5%*G28*I28 -> 1840

Sheet FiltreElab1
M1: Retour sommaire
A3: A l'aide des filtres avancés, afficher les employés dont le nom commence par un 'p'

Sheet FiltreElab1_corrigé (hidden)
A3: A l'aide des filtres avancés, afficher les employés dont le nom commence par un 'p'
B6: Nom
B7: p
B10: Nom | C10: Prénom | D10: Sexe | E10: Etat civil | F10: Date de naissance | G10: Age | H10: Tranches | I10: Services | J10: Salaires Minimum | K10: Salaires
B11: Proviste | C11: Alain | D11: m | E11: Marié(e) | F11: 1959-09-09 | G11: 64 | H11: 4 | I11: Personnel | J11: 1600 | K11: 1920
B12: Peulaporte | C12: Firmin | D12: m | E12: Divorcé(e) | F12: 1965-07-01 | G12: 58 | H12: 4 | I12: Informatique | J12: 1900 | K12: 2280

Sheet FiltreElab2
M1: Retour sommaire
A3: A l'aide des filtres avancés, afficher les nom, prénom et service des employés du secrétariat et de la direction

Sheet FiltreElab2_corrigé (hidden)
A3: A l'aide des filtres avancés, afficher les nom, prénom et service des employés du secrétariat et de la direction
B5: Services
B6: Secrétariat
B7: Direction
B10: Nom | C10: Prénom | D10: Services
B11: Bijoba | C11: Jo | D11: Direction
B12: Lalalalalalala | C12: Hutch | D12: Direction
B13: Noux | C13: Marion | D13: Secrétariat
B14: Stiké | C14: Sophie | D14: Secrétariat
B15: Vaisselle | C15: Aude | D15: Secrétariat
B16: Zetofrais | C16: Mélanie | D16: Direction

Sheet FiltreElab3
M1: Retour sommaire
A3: A l'aide des filtres avancés, afficher les employés nés entre 1965 et 1975

Sheet FiltreElab3_corrigé (hidden)
A3: A l'aide des filtres avancés, afficher les employés nés entre 1965 et 1975
B7: Date de naissance | C7: Date de naissance
B8: >=1/1/1965 | C8: <1/1/1976
B11: Nom | C11: Prénom | D11: Sexe | E11: Etat civil | F11: Date de naissance | G11: Age | H11: Tranches | I11: Services | J11: Salaires Minimum | K11: Salaires
B12: Bistrot | C12: Alonso | D12: m | E12: Marié(e) | F12: 1966-01-17 | G12: 57 | H12: 4 | I12: Informatique | J12: 1900 | K12: 2280
B13: Culaire | C13: Laury | D13: m | E13: Marié(e) | F13: 1965-05-05 | G13: 58 | H13: 4 | I13: Personnel | J13: 1600 | K13: 1920
B14: Foupasune | C14: Jean | D14: m | E14: Célibataire | F14: 1975-08-07 | G14: 48 | H14: 3 | I14: Personnel | J14: 1600 | K14: 1840
B15: Menvussa | C15: Gérard | D15: m | E15: Célibataire | F15: 1970-12-04 | G15: 52 | H15: 3 | I15: Informatique | J15: 1900 | K15: 2185
B16: Ouzi | C16: Jacques | D16: m | E16: Célibataire | F16: 1969-02-28 | G16: 54 | H16: 3 | I16: Personnel | J16: 1600 | K16: 1840
B17: Vaisselle | C17: Aude | D17: f | E17: Marié(e) | F17: 1966-06-06 | G17: 57 | H17: 4 | I17: Secrétariat | J17: 1700 | K17: 2040
B18: Peulaporte | C18: Firmin | D18: m | E18: Divorcé(e) | F18: 1965-07-01 | G18: 58 | H18: 4 | I18: Informatique | J18: 1900 | K18: 2280
B19: Ouzi | C19: Jacques | D19: m | E19: Célibataire | F19: 1969-02-28 | G19: 54 | H19: 3 | I19: Personnel | J19: 1600 | K19: 1840

Sheet FiltreElab4
M1: Retour sommaire
A3: A l'aide des filtres avancés, afficher les employés de l'informatique et de la direction nés entre 1965 et 1975

Sheet FiltreElab4_corrigé (hidden)
A3: A l'aide des filtres avancés, afficher les employés de l'informatique et de la direction nés entre 1965 et 1975
B6: Date de naissance | C6: Date de naissance | D6: Services
B7: >=1/1/1965 | C7: <1/1/1976 | D7: informatique
B8: >=1/1/1965 | C8: <1/1/1976 | D8: direction
B11: Nom | C11: Prénom | D11: Sexe | E11: Etat civil | F11: Date de naissance | G11: Age | H11: Tranches | I11: Services | J11: Salaires Minimum | K11: Salaires
B12: Bistrot | C12: Alonso | D12: m | E12: Marié(e) | F12: 1966-01-17 | G12: 57 | H12: 4 | I12: Informatique | J12: 1900 | K12: 2280
B13: Menvussa | C13: Gérard | D13: m | E13: Célibataire | F13: 1970-12-04 | G13: 52 | H13: 3 | I13: Informatique | J13: 1900 | K13: 2185
B14: Peulaporte | C14: Firmin | D14: m | E14: Divorcé(e) | F14: 1965-07-01 | G14: 58 | H14: 4 | I14: Informatique | J14: 1900 | K14: 2280

Sheet FiltreElab5
M1: Retour sommaire
A3: A l'aide des filtres avancés, faites une extraction des données sans recopier les doublons

Sheet FiltreElab5_corrigé (hidden)
A3: A l'aide des filtres élaborés, faites une extraction des données sans recopier les doublons
A6: Nom | B6: Prénom | C6: Sexe | D6: Etat civil | E6: Date de naissance | F6: Age | G6: Tranches | H6: Services | I6: Salaires Minimum | J6: Salaires
A7: Bistrot | B7: Alonso | C7: m | D7: Marié(e) | E7: 1966-01-17 | F7: 42 | G7: 2 | H7: Informatique | I7: 1900 | J7: 2090
A8: Bijoba | B8: Jo | C8: m | D8: Marié(e) | E8: 1980-03-15 | F8: 28 | G8: 1 | H8: Direction | I8: 2500 | J8: 2625
A9: Covert | B9: Harry | C9: m | D9: Divorcé(e) | E9: 1942-02-10 | F9: 66 | G9: 4 | H9: Personnel | I9: 1600 | J9: 1920
A10: Culaire | B10: Laury | C10: m | D10: Marié(e) | E10: 1965-05-05 | F10: 42 | G10: 2 | H10: Personnel | I10: 1600 | J10: 1760
A11: Deuf | B11: John | C11: m | D11: Célibataire | E11: 1963-09-08 | F11: 44 | G11: 2 | H11: Informatique | I11: 1900 | J11: 2090
A12: Foupasune | B12: Jean | C12: m | D12: Célibataire | E12: 1975-08-07 | F12: 32 | G12: 1 | H12: Personnel | I12: 1600 | J12: 1680
A13: Lairbon | B13: Oussama | C13: m | D13: Marié(e) | E13: 1983-02-08 | F13: 25 | G13: 1 | H13: Personnel | I13: 1600 | J13: 1680
A14: Menvussa | B14: Gérard | C14: m | D14: Célibataire | E14: 1970-12-04 | F14: 37 | G14: 2 | H14: Informatique | I14: 1900 | J14: 2090
A15: Lalalalalalala | B15: Starsky | C15: m | D15: Célibataire | E15: 1955-07-08 | F15: 52 | G15: 3 | H15: Personnel | I15: 1600 | J15: 1840
A16: Lalalalalalala | B16: Hutch | C16: m | D16: Divorcé(e) | E16: 1952-10-07 | F16: 55 | G16: 4 | H16: Direction | I16: 2500 | J16: 3000
A17: Cléssoulaporte | B17: Djamila | C17: f | D17: Marié(e) | E17: 1959-09-07 | F17: 48 | G17: 3 | H17: Personnel | I17: 1600 | J17: 1840
A18: Noux | B18: Marion | C18: f | D18: Divorcé(e) | E18: 1978-12-30 | F18: 29 | G18: 1 | H18: Secrétariat | I18: 1700 | J18: 1785
A19: Ouzi | B19: Jacques | C19: m | D19: Célibataire | E19: 1969-02-28 | F19: 39 | G19: 2 | H19: Personnel | I19: 1600 | J19: 1760
A20: Stiké | B20: Sophie | C20: f | D20: Divorcé(e) | E20: 1959-04-04 | F20: 49 | G20: 3 | H20: Secrétariat | I20: 1700 | J20: 1955
A21: Tare | B21: Guy | C21: m | D21: Divorcé(e) | E21: 1960-08-07 | F21: 47 | G21: 3 | H21: Informatique | I21: 1900 | J21: 2185
A22: Vaisselle | B22: Aude | C22: f | D22: Marié(e) | E22: 1966-06-06 | F22: 41 | G22: 2 | H22: Secrétariat | I22: 1700 | J22: 1870
A23: Zetofrais | B23: Mélanie | C23: f | D23: Célibataire | E23: 1978-11-25 | F23: 29 | G23: 1 | H23: Direction | I23: 2500 | J23: 2625
A24: Touille | B24: Sasha | C24: m | D24: Célibataire | E24: 1982-10-30 | F24: 25 | G24: 1 | H24: Personnel | I24: 1600 | J24: 1680
A25: Proviste | B25: Alain | C25: m | D25: Marié(e) | E25: 1959-09-09 | F25: 48 | G25: 3 | H25: Personnel | I25: 1600 | J25: 1840
A26: Peulaporte | B26: Firmin | C26: m | D26: Divorcé(e) | E26: 1965-07-01 | F26: 42 | G26: 2 | H26: Informatique | I26: 1900 | J26: 2090
A27: Unetitlaine | B27: Jérémy | C27: m | D27: Marié(e) | E27: 1983-06-09 | F27: 24 | G27: 0 | H27: Informatique | I27: 1900 | J27: 1900

Sheet FiltreElab6
M1: Retour sommaire
A3: A l'aide des filtres avancés, afficher les employés dont l'âge est supérieur à la moyenne des âges

Sheet FiltreElab6_corrigé (hidden)
A3: A l'aide des filtres avancés, afficher les employés dont l'âge est supérieur à la moyenne des âges
B5: Condition
B6: =FiltresElabDonnées!F7>AVERAGE(Tableau25[Age]) -> TRUE
B9: Nom | C9: Prénom | D9: Sexe | E9: Etat civil | F9: Date de naissance | G9: Age | H9: Tranches | I9: Services | J9: Salaires Minimum | K9: Salaires
B10: Bistrot | C10: Alonso | D10: m | E10: Marié(e) | F10: 1966-01-17 | G10: 57 | H10: 4 | I10: Informatique | J10: 1900 | K10: 2280
B11: Covert | C11: Harry | D11: m | E11: Divorcé(e) | F11: 1942-02-10 | G11: 81 | H11: 4 | I11: Personnel | J11: 1600 | K11: 1920
B12: Culaire | C12: Laury | D12: m | E12: Marié(e) | F12: 1965-05-05 | G12: 58 | H12: 4 | I12: Personnel | J12: 1600 | K12: 1920
B13: Deuf | C13: John | D13: m | E13: Célibataire | F13: 1963-09-08 | G13: 60 | H13: 4 | I13: Informatique | J13: 1900 | K13: 2280
B14: Lalalalalalala | C14: Starsky | D14: m | E14: Célibataire | F14: 1955-07-08 | G14: 68 | H14: 4 | I14: Personnel | J14: 1600 | K14: 1920
B15: Lalalalalalala | C15: Hutch | D15: m | E15: Divorcé(e) | F15: 1952-10-07 | G15: 71 | H15: 4 | I15: Direction | J15: 2500 | K15: 3000
B16: Cléssoulaporte | C16: Djamila | D16: f | E16: Marié(e) | F16: 1959-09-07 | G16: 64 | H16: 4 | I16: Personnel | J16: 1600 | K16: 1920
B17: Stiké | C17: Sophie | D17: f | E17: Divorcé(e) | F17: 1959-04-04 | G17: 64 | H17: 4 | I17: Secrétariat | J17: 1700 | K17: 2040
B18: Tare | C18: Guy | D18: m | E18: Divorcé(e) | F18: 1960-08-07 | G18: 63 | H18: 4 | I18: Informatique | J18: 1900 | K18: 2280
B19: Vaisselle | C19: Aude | D19: f | E19: Marié(e) | F19: 1966-06-06 | G19: 57 | H19: 4 | I19: Secrétariat | J19: 1700 | K19: 2040
B20: Proviste | C20: Alain | D20: m | E20: Marié(e) | F20: 1959-09-09 | G20: 64 | H20: 4 | I20: Personnel | J20: 1600 | K20: 1920
B21: Peulaporte | C21: Firmin | D21: m | E21: Divorcé(e) | F21: 1965-07-01 | G21: 58 | H21: 4 | I21: Informatique | J21: 1900 | K21: 2280

Sheet Fonctions classiques
A1: Utilisation des fonctions classiques | M1: Retour sommaire
A3: Utilisez les fonctions classiques de façon à afficher le nombre d'employés par service.
A4: Utilisez les fonctions classiques de façon à afficher le nombre d'employés et la moyenne des âges par sexe et par état civil.
A6: Nom | B6: Prénom | C6: Sexe | D6: Etat civil | E6: Date de naissance | F6: Age | G6: Tranches | H6: Services | I6: Salaires Minimum | J6: Salaires
A7: Bistrot | B7: Alonso | C7: m | D7: Marié(e) | E7: 1966-01-17 | F7: =DATEDIF(E7,TODAY(),"y") -> 57 | G7: =IF(F7<25,0,IF(F7<35,1,IF(F7<45,2,IF(F7<55,3,4)))) -> 4 | H7: Informatique | I7: =VLOOKUP(H7,Bdd1_consignes!$C$50:$D$54,2,FALSE) -> 1900 | J7: =I7+5%*G7*I7 -> 2280 | M7: Nombre d'employés par service
A8: Bijoba | B8: Jo | C8: m | D8: Marié(e) | E8: 1980-03-15 | F8: 43 | G8: 2 | H8: Direction | I8: =VLOOKUP(H8,Bdd1_consignes!$C$50:$D$54,2,FALSE) -> 2500 | J8: 2750
A9: Covert | B9: Harry | C9: m | D9: Divorcé(e) | E9: 1942-02-10 | F9: 81 | G9: 4 | H9: Personnel | I9: =VLOOKUP(H9,Bdd1_consignes!$C$50:$D$54,2,FALSE) -> 1600 | J9: 1920 | M9: Direction
A10: Culaire | B10: Laury | C10: m | D10: Marié(e) | E10: 1965-05-05 | F10: 58 | G10: 4 | H10: Personnel | I10: =VLOOKUP(H10,Bdd1_consignes!$C$50:$D$54,2,FALSE) -> 1600 | J10: 1920 | M10: Informatique
A11: Deuf | B11: John | C11: m | D11: Célibataire | E11: 1963-09-08 | F11: 60 | G11: 4 | H11: Informatique | I11: =VLOOKUP(H11,Bdd1_consignes!$C$50:$D$54,2,FALSE) -> 1900 | J11: 2280 | M11: Personnel
A12: Foupasune | B12: Jean | C12: m | D12: Célibataire | E12: 1975-08-07 | F12: 48 | G12: 3 | H12: Personnel | I12: =VLOOKUP(H12,Bdd1_consignes!$C$50:$D$54,2,FALSE) -> 1600 | J12: 1840 | M12: Secrétariat
A13: Lairbon | B13: Oussama | C13: m | D13: Marié(e) | E13: 1983-02-08 | F13: 40 | G13: 2 | H13: Personnel | I13: =VLOOKUP(H13,Bdd1_consignes!$C$50:$D$54,2,FALSE) -> 1600 | J13: 1760
A14: Menvussa | B14: Gérard | C14: m | D14: Célibataire | E14: 1970-12-04 | F14: 52 | G14: 3 | H14: Informatique | I14: =VLOOKUP(H14,Bdd1_consignes!$C$50:$D$54,2,FALSE) -> 1900 | J14: 2185 | M14: Nombre d'employés par sexe et état civil
A15: Lalalalalalala | B15: Starsky | C15: m | D15: Célibataire | E15: 1955-07-08 | F15: 68 | G15: 4 | H15: Personnel | I15: =VLOOKUP(H15,Bdd1_consignes!$C$50:$D$54,2,FALSE) -> 1600 | J15: 1920
A16: Lalalalalalala | B16: Hutch | C16: m | D16: Divorcé(e) | E16: 1952-10-07 | F16: 71 | G16: 4 | H16: Direction | I16: =VLOOKUP(H16,Bdd1_consignes!$C$50:$D$54,2,FALSE) -> 2500 | J16: 3000 | N16: f | O16: m
A17: Cléssoulaporte | B17: Djamila | C17: f | D17: Marié(e) | E17: 1959-09-07 | F17: 64 | G17: 4 | H17: Personnel | I17: =VLOOKUP(H17,Bdd1_consignes!$C$50:$D$54,2,FALSE) -> 1600 | J17: 1920 | M17: Célibataire
A18: Noux | B18: Marion | C18: f | D18: Divorcé(e) | E18: 1978-12-30 | F18: 44 | G18: 2 | H18: Secrétariat | I18: =VLOOKUP(H18,Bdd1_consignes!$C$50:$D$54,2,FALSE) -> 1700 | J18: 1870 | M18: Divorcé(e)
A19: Ouzi | B19: Jacques | C19: m | D19: Célibataire | E19: 1969-02-28 | F19: 54 | G19: 3 | H19: Personnel | I19: =VLOOKUP(H19,Bdd1_consignes!$C$50:$D$54,2,FALSE) -> 1600 | J19: 1840 | M19: Marié(e)
A20: Stiké | B20: Sophie | C20: f | D20: Divorcé(e) | E20: 1959-04-04 | F20: 64 | G20: 4 | H20: Secrétariat | I20: =VLOOKUP(H20,Bdd1_consignes!$C$50:$D$54,2,FALSE) -> 1700 | J20: 2040
A21: Tare | B21: Guy | C21: m | D21: Divorcé(e) | E21: 1960-08-07 | F21: 63 | G21: 4 | H21: Informatique | I21: =VLOOKUP(H21,Bdd1_consignes!$C$50:$D$54,2,FALSE) -> 1900 | J21: 2280 | M21: Salaire moyen par sexe et état civil
A22: Vaisselle | B22: Aude | C22: f | D22: Marié(e) | E22: 1966-06-06 | F22: 57 | G22: 4 | H22: Secrétariat | I22: =VLOOKUP(H22,Bdd1_consignes!$C$50:$D$54,2,FALSE) -> 1700 | J22: 2040
A23: Zetofrais | B23: Mélanie | C23: f | D23: Célibataire | E23: 1978-11-25 | F23: 44 | G23: 2 | H23: Direction | I23: =VLOOKUP(H23,Bdd1_consignes!$C$50:$D$54,2,FALSE) -> 2500 | J23: 2750 | N23: f | O23: m
A24: Touille | B24: Sasha | C24: m | D24: Célibataire | E24: 1982-10-30 | F24: 40 | G24: 2 | H24: Personnel | I24: =VLOOKUP(H24,Bdd1_consignes!$C$50:$D$54,2,FALSE) -> 1600 | J24: 1760 | M24: Célibataire
A25: Proviste | B25: Alain | C25: m | D25: Marié(e) | E25: 1959-09-09 | F25: 64 | G25: 4 | H25: Personnel | I25: =VLOOKUP(H25,Bdd1_consignes!$C$50:$D$54,2,FALSE) -> 1600 | J25: 1920 | M25: Divorcé(e)
A26: Peulaporte | B26: Firmin | C26: m | D26: Divorcé(e) | E26: 1965-07-01 | F26: 58 | G26: 4 | H26: Informatique | I26: =VLOOKUP(H26,Bdd1_consignes!$C$50:$D$54,2,FALSE) -> 1900 | J26: 2280 | M26: Marié(e)
A27: Unetitlaine | B27: Jérémy | C27: m | D27: Marié(e) | E27: 1983-06-09 | F27: 40 | G27: 2 | H27: Informatique | I27: =VLOOKUP(H27,Bdd1_consignes!$C$50:$D$54,2,FALSE) -> 1900 | J27: 2090
A28: Ouzi | B28: Jacques | C28: m | D28: Célibataire | E28: 1969-02-28 | F28: 54 | G28: 3 | H28: Personnel | I28: =VLOOKUP(H28,Bdd1_consignes!$C$50:$D$54,2,FALSE) -> 1600 | J28: 1840

Sheet Fonctions classiques_corrigé (hidden)
A1: Utilisation des fonctions classiques | M1: Retour sommaire
A3: Utilisez les fonctions classiques de façon à afficher le nombre d'employés par service.
A4: Utilisez les fonctions classiques de façon à afficher le nombre d'employés et la moyenne des âges par sexe et par état civil.
A6: Nom | B6: Prénom | C6: Sexe | D6: Etat civil | E6: Date de naissance | F6: Age | G6: Tranches | H6: Services | I6: Salaires Minimum | J6: Salaires
A7: Bistrot | B7: Alonso | C7: m | D7: Marié(e) | E7: 1966-01-17 | F7: =DATEDIF(E7,TODAY(),"y") -> 57 | G7: =IF(F7<25,0,IF(F7<35,1,IF(F7<45,2,IF(F7<55,3,4)))) -> 4 | H7: Informatique | I7: =VLOOKUP(H7,Bdd1_consignes!$C$50:$D$54,2,FALSE) -> 1900 | J7: =I7+5%*G7*I7 -> 2280 | M7: Nombre d'employés par service
A8: Bijoba | B8: Jo | C8: m | D8: Marié(e) | E8: 1980-03-15 | F8: 43 | G8: 2 | H8: Direction | I8: =VLOOKUP(H8,Bdd1_consignes!$C$50:$D$54,2,FALSE) -> 2500 | J8: 2750
A9: Covert | B9: Harry | C9: m | D9: Divorcé(e) | E9: 1942-02-10 | F9: 81 | G9: 4 | H9: Personnel | I9: =VLOOKUP(H9,Bdd1_consignes!$C$50:$D$54,2,FALSE) -> 1600 | J9: 1920 | M9: Direction | N9: =COUNTIF($H$7:$H$28,M9) -> 3
A10: Culaire | B10: Laury | C10: m | D10: Marié(e) | E10: 1965-05-05 | F10: 58 | G10: 4 | H10: Personnel | I10: =VLOOKUP(H10,Bdd1_consignes!$C$50:$D$54,2,FALSE) -> 1600 | J10: 1920 | M10: Informatique | N10: =COUNTIF($H$7:$H$28,M10) -> 6
A11: Deuf | B11: John | C11: m | D11: Célibataire | E11: 1963-09-08 | F11: 60 | G11: 4 | H11: Informatique | I11: =VLOOKUP(H11,Bdd1_consignes!$C$50:$D$54,2,FALSE) -> 1900 | J11: 2280 | M11: Personnel | N11: =COUNTIF($H$7:$H$28,M11) -> 10
A12: Foupasune | B12: Jean | C12: m | D12: Célibataire | E12: 1975-08-07 | F12: 48 | G12: 3 | H12: Personnel | I12: =VLOOKUP(H12,Bdd1_consignes!$C$50:$D$54,2,FALSE) -> 1600 | J12: 1840 | M12: Secrétariat | N12: =COUNTIF($H$7:$H$28,M12) -> 3
A13: Lairbon | B13: Oussama | C13: m | D13: Marié(e) | E13: 1983-02-08 | F13: 40 | G13: 2 | H13: Personnel | I13: =VLOOKUP(H13,Bdd1_consignes!$C$50:$D$54,2,FALSE) -> 1600 | J13: 1760
A14: Menvussa | B14: Gérard | C14: m | D14: Célibataire | E14: 1970-12-04 | F14: 52 | G14: 3 | H14: Informatique | I14: =VLOOKUP(H14,Bdd1_consignes!$C$50:$D$54,2,FALSE) -> 1900 | J14: 2185 | M14: Nombre d'employés par sexe et état civil
A15: Lalalalalalala | B15: Starsky | C15: m | D15: Célibataire | E15: 1955-07-08 | F15: 68 | G15: 4 | H15: Personnel | I15: =VLOOKUP(H15,Bdd1_consignes!$C$50:$D$54,2,FALSE) -> 1600 | J15: 1920
A16: Lalalalalalala | B16: Hutch | C16: m | D16: Divorcé(e) | E16: 1952-10-07 | F16: 71 | G16: 4 | H16: Direction | I16: =VLOOKUP(H16,Bdd1_consignes!$C$50:$D$54,2,FALSE) -> 2500 | J16: 3000 | N16: f | O16: m
A17: Cléssoulaporte | B17: Djamila | C17: f | D17: Marié(e) | E17: 1959-09-07 | F17: 64 | G17: 4 | H17: Personnel | I17: =VLOOKUP(H17,Bdd1_consignes!$C$50:$D$54,2,FALSE) -> 1600 | J17: 1920 | M17: Célibataire | N17: =COUNTIFS($C$7:$C$28,N$16,$D$7:$D$28,$M17) -> 1 | O17: 7
A18: Noux | B18: Marion | C18: f | D18: Divorcé(e) | E18: 1978-12-30 | F18: 44 | G18: 2 | H18: Secrétariat | I18: =VLOOKUP(H18,Bdd1_consignes!$C$50:$D$54,2,FALSE) -> 1700 | J18: 1870 | M18: Divorcé(e) | N18: 2 | O18: 4
A19: Ouzi | B19: Jacques | C19: m | D19: Célibataire | E19: 1969-02-28 | F19: 54 | G19: 3 | H19: Personnel | I19: =VLOOKUP(H19,Bdd1_consignes!$C$50:$D$54,2,FALSE) -> 1600 | J19: 1840 | M19: Marié(e) | N19: 2 | O19: 6
A20: Stiké | B20: Sophie | C20: f | D20: Divorcé(e) | E20: 1959-04-04 | F20: 64 | G20: 4 | H20: Secrétariat | I20: =VLOOKUP(H20,Bdd1_consignes!$C$50:$D$54,2,FALSE) -> 1700 | J20: 2040
A21: Tare | B21: Guy | C21: m | D21: Divorcé(e) | E21: 1960-08-07 | F21: 63 | G21: 4 | H21: Informatique | I21: =VLOOKUP(H21,Bdd1_consignes!$C$50:$D$54,2,FALSE) -> 1900 | J21: 2280 | M21: Salaire moyen par sexe et état civil
A22: Vaisselle | B22: Aude | C22: f | D22: Marié(e) | E22: 1966-06-06 | F22: 57 | G22: 4 | H22: Secrétariat | I22: =VLOOKUP(H22,Bdd1_consignes!$C$50:$D$54,2,FALSE) -> 1700 | J22: 2040
A23: Zetofrais | B23: Mélanie | C23: f | D23: Célibataire | E23: 1978-11-25 | F23: 44 | G23: 2 | H23: Direction | I23: =VLOOKUP(H23,Bdd1_consignes!$C$50:$D$54,2,FALSE) -> 2500 | J23: 2750 | N23: f | O23: m
A24: Touille | B24: Sasha | C24: m | D24: Célibataire | E24: 1982-10-30 | F24: 40 | G24: 2 | H24: Personnel | I24: =VLOOKUP(H24,Bdd1_consignes!$C$50:$D$54,2,FALSE) -> 1600 | J24: 1760 | M24: Célibataire | N24: =AVERAGEIFS($J$7:$J$28,$C$7:$C$28,N$23,$D$7:$D$28,$M24) -> 2750 | O24: =AVERAGEIFS($J$7:$J$28,$C$7:$C$28,O$23,$D$7:$D$28,$M24) -> 1952.142857
A25: Proviste | B25: Alain | C25: m | D25: Marié(e) | E25: 1959-09-09 | F25: 64 | G25: 4 | H25: Personnel | I25: =VLOOKUP(H25,Bdd1_consignes!$C$50:$D$54,2,FALSE) -> 1600 | J25: 1920 | M25: Divorcé(e) | N25: =AVERAGEIFS($J$7:$J$28,$C$7:$C$28,N$23,$D$7:$D$28,$M25) -> 1955 | O25: 2370
A26: Peulaporte | B26: Firmin | C26: m | D26: Divorcé(e) | E26: 1965-07-01 | F26: 58 | G26: 4 | H26: Informatique | I26: =VLOOKUP(H26,Bdd1_consignes!$C$50:$D$54,2,FALSE) -> 1900 | J26: 2280 | M26: Marié(e) | N26: 1980 | O26: 2120
A27: Unetitlaine | B27: Jérémy | C27: m | D27: Marié(e) | E27: 1983-06-09 | F27: 40 | G27: 2 | H27: Informatique | I27: =VLOOKUP(H27,Bdd1_consignes!$C$50:$D$54,2,FALSE) -> 1900 | J27: 2090
A28: Ouzi | B28: Jacques | C28: m | D28: Célibataire | E28: 1969-02-28 | F28: 54 | G28: 3 | H28: Personnel | I28: =VLOOKUP(H28,Bdd1_consignes!$C$50:$D$54,2,FALSE) -> 1600 | J28: 1840

Sheet Sous-Totaux1
A1: Sous-Totaux | M1: Retour sommaire
A3: Utilisez les sous-totaux de façon à afficher le nombre d'employés par service.
A6: Nom | B6: Prénom | C6: Sexe | D6: Etat civil | E6: Date de naissance | F6: Age | G6: Tranches | H6: Services | I6: Salaires Minimum | J6: Salaires
A7: Bijoba | B7: Jo | C7: m | D7: Marié(e) | E7: 1980-03-15 | F7: =DATEDIF(E7,TODAY(),"y") -> 43 | G7: =IF(F7<25,0,IF(F7<35,1,IF(F7<45,2,IF(F7<55,3,4)))) -> 2 | H7: Direction | I7: =VLOOKUP(H7,Bdd1_consignes!$C$50:$D$54,2,FALSE) -> 2500 | J7: =I7+5%*G7*I7 -> 2750
A8: Bistrot | B8: Alonso | C8: m | D8: Marié(e) | E8: 1966-01-17 | F8: 57 | G8: 4 | H8: Informatique | I8: =VLOOKUP(H8,Bdd1_consignes!$C$50:$D$54,2,FALSE) -> 1900 | J8: 2280
A9: Cléssoulaporte | B9: Djamila | C9: f | D9: Marié(e) | E9: 1959-09-07 | F9: 64 | G9: 4 | H9: Personnel | I9: =VLOOKUP(H9,Bdd1_consignes!$C$50:$D$54,2,FALSE) -> 1600 | J9: 1920
A10: Covert | B10: Harry | C10: m | D10: Divorcé(e) | E10: 1942-02-10 | F10: 81 | G10: 4 | H10: Personnel | I10: =VLOOKUP(H10,Bdd1_consignes!$C$50:$D$54,2,FALSE) -> 1600 | J10: 1920
A11: Culaire | B11: Laury | C11: m | D11: Marié(e) | E11: 1965-05-05 | F11: 58 | G11: 4 | H11: Personnel | I11: =VLOOKUP(H11,Bdd1_consignes!$C$50:$D$54,2,FALSE) -> 1600 | J11: 1920
A12: Deuf | B12: John | C12: m | D12: Célibataire | E12: 1963-09-08 | F12: 60 | G12: 4 | H12: Informatique | I12: =VLOOKUP(H12,Bdd1_consignes!$C$50:$D$54,2,FALSE) -> 1900 | J12: 2280
A13: Foupasune | B13: Jean | C13: m | D13: Célibataire | E13: 1975-08-07 | F13: 48 | G13: 3 | H13: Personnel | I13: =VLOOKUP(H13,Bdd1_consignes!$C$50:$D$54,2,FALSE) -> 1600 | J13: 1840
A14: Lairbon | B14: Oussama | C14: m | D14: Marié(e) | E14: 1983-02-08 | F14: 40 | G14: 2 | H14: Personnel | I14: =VLOOKUP(H14,Bdd1_consignes!$C$50:$D$54,2,FALSE) -> 1600 | J14: 1760
A15: Lalalalalalala | B15: Hutch | C15: m | D15: Divorcé(e) | E15: 1952-10-07 | F15: 71 | G15: 4 | H15: Direction | I15: =VLOOKUP(H15,Bdd1_consignes!$C$50:$D$54,2,FALSE) -> 2500 | J15: 3000
A16: Lalalalalalala | B16: Starsky | C16: m | D16: Célibataire | E16: 1955-07-08 | F16: 68 | G16: 4 | H16: Personnel | I16: =VLOOKUP(H16,Bdd1_consignes!$C$50:$D$54,2,FALSE) -> 1600 | J16: 1920
A17: Menvussa | B17: Gérard | C17: m | D17: Célibataire | E17: 1970-12-04 | F17: 52 | G17: 3 | H17: Informatique | I17: =VLOOKUP(H17,Bdd1_consignes!$C$50:$D$54,2,FALSE) -> 1900 | J17: 2185
A18: Noux | B18: Marion | C18: f | D18: Divorcé(e) | E18: 1978-12-30 | F18: 44 | G18: 2 | H18: Secrétariat | I18: =VLOOKUP(H18,Bdd1_consignes!$C$50:$D$54,2,FALSE) -> 1700 | J18: 1870
A19: Ouzi | B19: Jacques | C19: m | D19: Célibataire | E19: 1969-02-28 | F19: 54 | G19: 3 | H19: Personnel | I19: =VLOOKUP(H19,Bdd1_consignes!$C$50:$D$54,2,FALSE) -> 1600 | J19: 1840
A20: Ouzi | B20: Jacques | C20: m | D20: Célibataire | E20: 1969-02-28 | F20: 54 | G20: 3 | H20: Personnel | I20: =VLOOKUP(H20,Bdd1_consignes!$C$50:$D$54,2,FALSE) -> 1600 | J20: 1840
A21: Peulaporte | B21: Firmin | C21: m | D21: Divorcé(e) | E21: 1965-07-01 | F21: 58 | G21: 4 | H21: Informatique | I21: =VLOOKUP(H21,Bdd1_consignes!$C$50:$D$54,2,FALSE) -> 1900 | J21: 2280
A22: Proviste | B22: Alain | C22: m | D22: Marié(e) | E22: 1959-09-09 | F22: 64 | G22: 4 | H22: Personnel | I22: =VLOOKUP(H22,Bdd1_consignes!$C$50:$D$54,2,FALSE) -> 1600 | J22: 1920
A23: Stiké | B23: Sophie | C23: f | D23: Divorcé(e) | E23: 1959-04-04 | F23: 64 | G23: 4 | H23: Secrétariat | I23: =VLOOKUP(H23,Bdd1_consignes!$C$50:$D$54,2,FALSE) -> 1700 | J23: 2040
A24: Tare | B24: Guy | C24: m | D24: Divorcé(e) | E24: 1960-08-07 | F24: 63 | G24: 4 | H24: Informatique | I24: =VLOOKUP(H24,Bdd1_consignes!$C$50:$D$54,2,FALSE) -> 1900 | J24: 2280
A25: Touille | B25: Sasha | C25: m | D25: Célibataire | E25: 1982-10-30 | F25: 40 | G25: 2 | H25: Personnel | I25: =VLOOKUP(H25,Bdd1_consignes!$C$50:$D$54,2,FALSE) -> 1600 | J25: 1760
A26: Unetitlaine | B26: Jérémy | C26: m | D26: Marié(e) | E26: 1983-06-09 | F26: 40 | G26: 2 | H26: Informatique | I26: =VLOOKUP(H26,Bdd1_consignes!$C$50:$D$54,2,FALSE) -> 1900 | J26: 2090
A27: Vaisselle | B27: Aude | C27: f | D27: Marié(e) | E27: 1966-06-06 | F27: 57 | G27: 4 | H27: Secrétariat | I27: =VLOOKUP(H27,Bdd1_consignes!$C$50:$D$54,2,FALSE) -> 1700 | J27: 2040
A28: Zetofrais | B28: Mélanie | C28: f | D28: Célibataire | E28: 1978-11-25 | F28: 44 | G28: 2 | H28: Direction | I28: =VLOOKUP(H28,Bdd1_consignes!$C$50:$D$54,2,FALSE) -> 2500 | J28: 2750

Sheet Sous-Totaux1_corrigé (hidden)
A1: Sous-Totaux
A3: Utilisez les sous-totaux de façon à afficher le nombre d'employés par service.
A6: Nom | B6: Prénom | C6: Sexe | D6: Etat civil | E6: Date de naissance | F6: Age | G6: Tranches | H6: Services | I6: Salaires Minimum | J6: Salaires
A7: Bijoba | B7: Jo | C7: m | D7: Marié(e) | E7: 1980-03-15 | F7: =DATEDIF(E7,TODAY(),"y") -> 43 | G7: =IF(F7<25,0,IF(F7<35,1,IF(F7<45,2,IF(F7<55,3,4)))) -> 2 | H7: Direction | I7: =VLOOKUP(H7,Bdd1_consignes!$C$50:$D$54,2,FALSE) -> 2500 | J7: =I7+5%*G7*I7 -> 2750
A8: Lalalalalalala | B8: Hutch | C8: m | D8: Divorcé(e) | E8: 1952-10-07 | F8: =DATEDIF(E8,TODAY(),"y") -> 71 | G8: =IF(F8<25,0,IF(F8<35,1,IF(F8<45,2,IF(F8<55,3,4)))) -> 4 | H8: Direction | I8: =VLOOKUP(H8,Bdd1_consignes!$C$50:$D$54,2,FALSE) -> 2500 | J8: =I8+5%*G8*I8 -> 3000
A9: Zetofrais | B9: Mélanie | C9: f | D9: Célibataire | E9: 1978-11-25 | F9: =DATEDIF(E9,TODAY(),"y") -> 44 | G9: =IF(F9<25,0,IF(F9<35,1,IF(F9<45,2,IF(F9<55,3,4)))) -> 2 | H9: Direction | I9: =VLOOKUP(H9,Bdd1_consignes!$C$50:$D$54,2,FALSE) -> 2500 | J9: =I9+5%*G9*I9 -> 2750
A10: =SUBTOTAL(3,A7:A9) -> 3 | H10: Nombre Direction
A11: Bistrot | B11: Alonso | C11: m | D11: Marié(e) | E11: 1966-01-17 | F11: =DATEDIF(E11,TODAY(),"y") -> 57 | G11: =IF(F11<25,0,IF(F11<35,1,IF(F11<45,2,IF(F11<55,3,4)))) -> 4 | H11: Informatique | I11: =VLOOKUP(H11,Bdd1_consignes!$C$50:$D$54,2,FALSE) -> 1900 | J11: =I11+5%*G11*I11 -> 2280
A12: Deuf | B12: John | C12: m | D12: Célibataire | E12: 1963-09-08 | F12: 60 | G12: 4 | H12: Informatique | I12: =VLOOKUP(H12,Bdd1_consignes!$C$50:$D$54,2,FALSE) -> 1900 | J12: 2280
A13: Menvussa | B13: Gérard | C13: m | D13: Célibataire | E13: 1970-12-04 | F13: 52 | G13: 3 | H13: Informatique | I13: =VLOOKUP(H13,Bdd1_consignes!$C$50:$D$54,2,FALSE) -> 1900 | J13: 2185
A14: Peulaporte | B14: Firmin | C14: m | D14: Divorcé(e) | E14: 1965-07-01 | F14: 58 | G14: 4 | H14: Informatique | I14: =VLOOKUP(H14,Bdd1_consignes!$C$50:$D$54,2,FALSE) -> 1900 | J14: 2280
A15: Tare | B15: Guy | C15: m | D15: Divorcé(e) | E15: 1960-08-07 | F15: 63 | G15: 4 | H15: Informatique | I15: =VLOOKUP(H15,Bdd1_consignes!$C$50:$D$54,2,FALSE) -> 1900 | J15: 2280
A16: Unetitlaine | B16: Jérémy | C16: m | D16: Marié(e) | E16: 1983-06-09 | F16: 40 | G16: 2 | H16: Informatique | I16: =VLOOKUP(H16,Bdd1_consignes!$C$50:$D$54,2,FALSE) -> 1900 | J16: 2090
A17: =SUBTOTAL(3,A11:A16) -> 6 | H17: Nombre Informatique
A18: Cléssoulaporte | B18: Djamila | C18: f | D18: Marié(e) | E18: 1959-09-07 | F18: =DATEDIF(E18,TODAY(),"y") -> 64 | G18: =IF(F18<25,0,IF(F18<35,1,IF(F18<45,2,IF(F18<55,3,4)))) -> 4 | H18: Personnel | I18: =VLOOKUP(H18,Bdd1_consignes!$C$50:$D$54,2,FALSE) -> 1600 | J18: =I18+5%*G18*I18 -> 1920
A19: Covert | B19: Harry | C19: m | D19: Divorcé(e) | E19: 1942-02-10 | F19: 81 | G19: 4 | H19: Personnel | I19: =VLOOKUP(H19,Bdd1_consignes!$C$50:$D$54,2,FALSE) -> 1600 | J19: 1920
A20: Culaire | B20: Laury | C20: m | D20: Marié(e) | E20: 1965-05-05 | F20: 58 | G20: 4 | H20: Personnel | I20: =VLOOKUP(H20,Bdd1_consignes!$C$50:$D$54,2,FALSE) -> 1600 | J20: 1920
A21: Foupasune | B21: Jean | C21: m | D21: Célibataire | E21: 1975-08-07 | F21: 48 | G21: 3 | H21: Personnel | I21: =VLOOKUP(H21,Bdd1_consignes!$C$50:$D$54,2,FALSE) -> 1600 | J21: 1840
A22: Lairbon | B22: Oussama | C22: m | D22: Marié(e) | E22: 1983-02-08 | F22: 40 | G22: 2 | H22: Personnel | I22: =VLOOKUP(H22,Bdd1_consignes!$C$50:$D$54,2,FALSE) -> 1600 | J22: 1760
A23: Lalalalalalala | B23: Starsky | C23: m | D23: Célibataire | E23: 1955-07-08 | F23: 68 | G23: 4 | H23: Personnel | I23: =VLOOKUP(H23,Bdd1_consignes!$C$50:$D$54,2,FALSE) -> 1600 | J23: 1920
A24: Ouzi | B24: Jacques | C24: m | D24: Célibataire | E24: 1969-02-28 | F24: 54 | G24: 3 | H24: Personnel | I24: =VLOOKUP(H24,Bdd1_consignes!$C$50:$D$54,2,FALSE) -> 1600 | J24: 1840
A25: Ouzi | B25: Jacques | C25: m | D25: Célibataire | E25: 1969-02-28 | F25: 54 | G25: 3 | H25: Personnel | I25: =VLOOKUP(H25,Bdd1_consignes!$C$50:$D$54,2,FALSE) -> 1600 | J25: 1840
A26: Proviste | B26: Alain | C26: m | D26: Marié(e) | E26: 1959-09-09 | F26: 64 | G26: 4 | H26: Personnel | I26: =VLOOKUP(H26,Bdd1_consignes!$C$50:$D$54,2,FALSE) -> 1600 | J26: 1920
A27: Touille | B27: Sasha | C27: m | D27: Célibataire | E27: 1982-10-30 | F27: 40 | G27: 2 | H27: Personnel | I27: =VLOOKUP(H27,Bdd1_consignes!$C$50:$D$54,2,FALSE) -> 1600 | J27: 1760
A28: =SUBTOTAL(3,A18:A27) -> 10 | H28: Nombre Personnel
A29: Noux | B29: Marion | C29: f | D29: Divorcé(e) | E29: 1978-12-30 | F29: =DATEDIF(E29,TODAY(),"y") -> 44 | G29: =IF(F29<25,0,IF(F29<35,1,IF(F29<45,2,IF(F29<55,3,4)))) -> 2 | H29: Secrétariat | I29: =VLOOKUP(H29,Bdd1_consignes!$C$50:$D$54,2,FALSE) -> 1700 | J29: =I29+5%*G29*I29 -> 1870
A30: Stiké | B30: Sophie | C30: f | D30: Divorcé(e) | E30: 1959-04-04 | F30: =DATEDIF(E30,TODAY(),"y") -> 64 | G30: =IF(F30<25,0,IF(F30<35,1,IF(F30<45,2,IF(F30<55,3,4)))) -> 4 | H30: Secrétariat | I30: =VLOOKUP(H30,Bdd1_consignes!$C$50:$D$54,2,FALSE) -> 1700 | J30: =I30+5%*G30*I30 -> 2040
A31: Vaisselle | B31: Aude | C31: f | D31: Marié(e) | E31: 1966-06-06 | F31: =DATEDIF(E31,TODAY(),"y") -> 57 | G31: =IF(F31<25,0,IF(F31<35,1,IF(F31<45,2,IF(F31<55,3,4)))) -> 4 | H31: Secrétariat | I31: =VLOOKUP(H31,Bdd1_consignes!$C$50:$D$54,2,FALSE) -> 1700 | J31: =I31+5%*G31*I31 -> 2040
A32: =SUBTOTAL(3,A29:A31) -> 3 | H32: Nombre Secrétariat
A33: =SUBTOTAL(3,A7:A31) -> 22 | H33: Nbval

Sheet Sous-Totaux2
A1: Sous-Totaux | M1: Retour sommaire
A3: Utilisez les sous-totaux de façon à afficher le salaire moyen par service et par sexe.
A6: Nom | B6: Prénom | C6: Sexe | D6: Etat civil | E6: Date de naissance | F6: Age | G6: Tranches | H6: Services | I6: Salaires Minimum | J6: Salaires
A7: Bistrot | B7: Alonso | C7: m | D7: Marié(e) | E7: 1966-01-17 | F7: =DATEDIF(E7,TODAY(),"y") -> 57 | G7: =IF(F7<25,0,IF(F7<35,1,IF(F7<45,2,IF(F7<55,3,4)))) -> 4 | H7: Informatique | I7: =VLOOKUP(H7,Bdd1_consignes!$C$50:$D$54,2,FALSE) -> 1900 | J7: =I7+5%*G7*I7 -> 2280
A8: Bijoba | B8: Jo | C8: m | D8: Marié(e) | E8: 1980-03-15 | F8: 43 | G8: 2 | H8: Direction | I8: =VLOOKUP(H8,Bdd1_consignes!$C$50:$D$54,2,FALSE) -> 2500 | J8: 2750
A9: Covert | B9: Harry | C9: m | D9: Divorcé(e) | E9: 1942-02-10 | F9: 81 | G9: 4 | H9: Personnel | I9: =VLOOKUP(H9,Bdd1_consignes!$C$50:$D$54,2,FALSE) -> 1600 | J9: 1920
A10: Culaire | B10: Laury | C10: m | D10: Marié(e) | E10: 1965-05-05 | F10: 58 | G10: 4 | H10: Personnel | I10: =VLOOKUP(H10,Bdd1_consignes!$C$50:$D$54,2,FALSE) -> 1600 | J10: 1920
A11: Deuf | B11: John | C11: m | D11: Célibataire | E11: 1963-09-08 | F11: 60 | G11: 4 | H11: Informatique | I11: =VLOOKUP(H11,Bdd1_consignes!$C$50:$D$54,2,FALSE) -> 1900 | J11: 2280
A12: Foupasune | B12: Jean | C12: m | D12: Célibataire | E12: 1975-08-07 | F12: 48 | G12: 3 | H12: Personnel | I12: =VLOOKUP(H12,Bdd1_consignes!$C$50:$D$54,2,FALSE) -> 1600 | J12: 1840
A13: Lairbon | B13: Oussama | C13: m | D13: Marié(e) | E13: 1983-02-08 | F13: 40 | G13: 2 | H13: Personnel | I13: =VLOOKUP(H13,Bdd1_consignes!$C$50:$D$54,2,FALSE) -> 1600 | J13: 1760
A14: Menvussa | B14: Gérard | C14: m | D14: Célibataire | E14: 1970-12-04 | F14: 52 | G14: 3 | H14: Informatique | I14: =VLOOKUP(H14,Bdd1_consignes!$C$50:$D$54,2,FALSE) -> 1900 | J14: 2185
A15: Lalalalalalala | B15: Starsky | C15: m | D15: Célibataire | E15: 1955-07-08 | F15: 68 | G15: 4 | H15: Personnel | I15: =VLOOKUP(H15,Bdd1_consignes!$C$50:$D$54,2,FALSE) -> 1600 | J15: 1920
A16: Lalalalalalala | B16: Hutch | C16: m | D16: Divorcé(e) | E16: 1952-10-07 | F16: 71 | G16: 4 | H16: Direction | I16: =VLOOKUP(H16,Bdd1_consignes!$C$50:$D$54,2,FALSE) -> 2500 | J16: 3000
A17: Cléssoulaporte | B17: Djamila | C17: f | D17: Marié(e) | E17: 1959-09-07 | F17: 64 | G17: 4 | H17: Personnel | I17: =VLOOKUP(H17,Bdd1_consignes!$C$50:$D$54,2,FALSE) -> 1600 | J17: 1920
A18: Noux | B18: Marion | C18: f | D18: Divorcé(e) | E18: 1978-12-30 | F18: 44 | G18: 2 | H18: Secrétariat | I18: =VLOOKUP(H18,Bdd1_consignes!$C$50:$D$54,2,FALSE) -> 1700 | J18: 1870
A19: Ouzi | B19: Jacques | C19: m | D19: Célibataire | E19: 1969-02-28 | F19: 54 | G19: 3 | H19: Personnel | I19: =VLOOKUP(H19,Bdd1_consignes!$C$50:$D$54,2,FALSE) -> 1600 | J19: 1840
A20: Stiké | B20: Sophie | C20: f | D20: Divorcé(e) | E20: 1959-04-04 | F20: 64 | G20: 4 | H20: Secrétariat | I20: =VLOOKUP(H20,Bdd1_consignes!$C$50:$D$54,2,FALSE) -> 1700 | J20: 2040
A21: Tare | B21: Guy | C21: m | D21: Divorcé(e) | E21: 1960-08-07 | F21: 63 | G21: 4 | H21: Informatique | I21: =VLOOKUP(H21,Bdd1_consignes!$C$50:$D$54,2,FALSE) -> 1900 | J21: 2280
A22: Vaisselle | B22: Aude | C22: f | D22: Marié(e) | E22: 1966-06-06 | F22: 57 | G22: 4 | H22: Secrétariat | I22: =VLOOKUP(H22,Bdd1_consignes!$C$50:$D$54,2,FALSE) -> 1700 | J22: 2040
A23: Zetofrais | B23: Mélanie | C23: f | D23: Célibataire | E23: 1978-11-25 | F23: 44 | G23: 2 | H23: Direction | I23: =VLOOKUP(H23,Bdd1_consignes!$C$50:$D$54,2,FALSE) -> 2500 | J23: 2750
A24: Touille | B24: Sasha | C24: m | D24: Célibataire | E24: 1982-10-30 | F24: 40 | G24: 2 | H24: Personnel | I24: =VLOOKUP(H24,Bdd1_consignes!$C$50:$D$54,2,FALSE) -> 1600 | J24: 1760
A25: Proviste | B25: Alain | C25: m | D25: Marié(e) | E25: 1959-09-09 | F25: 64 | G25: 4 | H25: Personnel | I25: =VLOOKUP(H25,Bdd1_consignes!$C$50:$D$54,2,FALSE) -> 1600 | J25: 1920
A26: Peulaporte | B26: Firmin | C26: m | D26: Divorcé(e) | E26: 1965-07-01 | F26: 58 | G26: 4 | H26: Informatique | I26: =VLOOKUP(H26,Bdd1_consignes!$C$50:$D$54,2,FALSE) -> 1900 | J26: 2280
A27: Unetitlaine | B27: Jérémy | C27: m | D27: Marié(e) | E27: 1983-06-09 | F27: 40 | G27: 2 | H27: Informatique | I27: =VLOOKUP(H27,Bdd1_consignes!$C$50:$D$54,2,FALSE) -> 1900 | J27: 2090
A28: Ouzi | B28: Jacques | C28: m | D28: Célibataire | E28: 1969-02-28 | F28: 54 | G28: 3 | H28: Personnel | I28: =VLOOKUP(H28,Bdd1_consignes!$C$50:$D$54,2,FALSE) -> 1600 | J28: 1840

Sheet Sous-Totaux2_corrigé (hidden)
A1: Sous-Totaux
A3: Utilisez les sous-totaux de façon à afficher le salaire moyen par service et par sexe.
A6: Nom | B6: Prénom | C6: Sexe | D6: Etat civil | E6: Date de naissance | F6: Age | G6: Tranches | H6: Services | I6: Salaires Minimum | J6: Salaires
A7: Zetofrais | B7: Mélanie | C7: f | D7: Célibataire | E7: 1978-11-25 | F7: =DATEDIF(E7,TODAY(),"y") -> 44 | G7: =IF(F7<25,0,IF(F7<35,1,IF(F7<45,2,IF(F7<55,3,4)))) -> 2 | H7: Direction | I7: =VLOOKUP(H7,Bdd1_consignes!$C$50:$D$54,2,FALSE) -> 2500 | J7: =I7+5%*G7*I7 -> 2750
C8: Moyenne f | J8: =SUBTOTAL(1,J7:J7) -> 2750
A9: Bijoba | B9: Jo | C9: m | D9: Marié(e) | E9: 1980-03-15 | F9: =DATEDIF(E9,TODAY(),"y") -> 43 | G9: =IF(F9<25,0,IF(F9<35,1,IF(F9<45,2,IF(F9<55,3,4)))) -> 2 | H9: Direction | I9: =VLOOKUP(H9,Bdd1_consignes!$C$50:$D$54,2,FALSE) -> 2500 | J9: =I9+5%*G9*I9 -> 2750
A10: Lalalalalalala | B10: Hutch | C10: m | D10: Divorcé(e) | E10: 1952-10-07 | F10: =DATEDIF(E10,TODAY(),"y") -> 71 | G10: =IF(F10<25,0,IF(F10<35,1,IF(F10<45,2,IF(F10<55,3,4)))) -> 4 | H10: Direction | I10: =VLOOKUP(H10,Bdd1_consignes!$C$50:$D$54,2,FALSE) -> 2500 | J10: =I10+5%*G10*I10 -> 3000
C11: Moyenne m | J11: =SUBTOTAL(1,J9:J10) -> 2875
H12: Moyenne Direction | J12: =SUBTOTAL(1,J7:J10) -> 2833.333333
A13: Bistrot | B13: Alonso | C13: m | D13: Marié(e) | E13: 1966-01-17 | F13: =DATEDIF(E13,TODAY(),"y") -> 57 | G13: =IF(F13<25,0,IF(F13<35,1,IF(F13<45,2,IF(F13<55,3,4)))) -> 4 | H13: Informatique | I13: =VLOOKUP(H13,Bdd1_consignes!$C$50:$D$54,2,FALSE) -> 1900 | J13: =I13+5%*G13*I13 -> 2280
A14: Deuf | B14: John | C14: m | D14: Célibataire | E14: 1963-09-08 | F14: 60 | G14: 4 | H14: Informatique | I14: =VLOOKUP(H14,Bdd1_consignes!$C$50:$D$54,2,FALSE) -> 1900 | J14: 2280
A15: Menvussa | B15: Gérard | C15: m | D15: Célibataire | E15: 1970-12-04 | F15: 52 | G15: 3 | H15: Informatique | I15: =VLOOKUP(H15,Bdd1_consignes!$C$50:$D$54,2,FALSE) -> 1900 | J15: 2185
A16: Tare | B16: Guy | C16: m | D16: Divorcé(e) | E16: 1960-08-07 | F16: 63 | G16: 4 | H16: Informatique | I16: =VLOOKUP(H16,Bdd1_consignes!$C$50:$D$54,2,FALSE) -> 1900 | J16: 2280
A17: Peulaporte | B17: Firmin | C17: m | D17: Divorcé(e) | E17: 1965-07-01 | F17: 58 | G17: 4 | H17: Informatique | I17: =VLOOKUP(H17,Bdd1_consignes!$C$50:$D$54,2,FALSE) -> 1900 | J17: 2280
A18: Unetitlaine | B18: Jérémy | C18: m | D18: Marié(e) | E18: 1983-06-09 | F18: 40 | G18: 2 | H18: Informatique | I18: =VLOOKUP(H18,Bdd1_consignes!$C$50:$D$54,2,FALSE) -> 1900 | J18: 2090
H19: Moyenne Informatique | J19: =SUBTOTAL(1,J13:J18) -> 2232.5
C20: Moyenne m | J20: =SUBTOTAL(1,J13:J18) -> 2232.5
A21: Cléssoulaporte | B21: Djamila | C21: f | D21: Marié(e) | E21: 1959-09-07 | F21: =DATEDIF(E21,TODAY(),"y") -> 64 | G21: =IF(F21<25,0,IF(F21<35,1,IF(F21<45,2,IF(F21<55,3,4)))) -> 4 | H21: Personnel | I21: =VLOOKUP(H21,Bdd1_consignes!$C$50:$D$54,2,FALSE) -> 1600 | J21: =I21+5%*G21*I21 -> 1920
C22: Moyenne f | J22: =SUBTOTAL(1,J21:J21) -> 1920
A23: Covert | B23: Harry | C23: m | D23: Divorcé(e) | E23: 1942-02-10 | F23: =DATEDIF(E23,TODAY(),"y") -> 81 | G23: =IF(F23<25,0,IF(F23<35,1,IF(F23<45,2,IF(F23<55,3,4)))) -> 4 | H23: Personnel | I23: =VLOOKUP(H23,Bdd1_consignes!$C$50:$D$54,2,FALSE) -> 1600 | J23: =I23+5%*G23*I23 -> 1920
A24: Culaire | B24: Laury | C24: m | D24: Marié(e) | E24: 1965-05-05 | F24: 58 | G24: 4 | H24: Personnel | I24: =VLOOKUP(H24,Bdd1_consignes!$C$50:$D$54,2,FALSE) -> 1600 | J24: 1920
A25: Foupasune | B25: Jean | C25: m | D25: Célibataire | E25: 1975-08-07 | F25: 48 | G25: 3 | H25: Personnel | I25: =VLOOKUP(H25,Bdd1_consignes!$C$50:$D$54,2,FALSE) -> 1600 | J25: 1840
A26: Lairbon | B26: Oussama | C26: m | D26: Marié(e) | E26: 1983-02-08 | F26: 40 | G26: 2 | H26: Personnel | I26: =VLOOKUP(H26,Bdd1_consignes!$C$50:$D$54,2,FALSE) -> 1600 | J26: 1760
A27: Lalalalalalala | B27: Starsky | C27: m | D27: Célibataire | E27: 1955-07-08 | F27: 68 | G27: 4 | H27: Personnel | I27: =VLOOKUP(H27,Bdd1_consignes!$C$50:$D$54,2,FALSE) -> 1600 | J27: 1920
A28: Ouzi | B28: Jacques | C28: m | D28: Célibataire | E28: 1969-02-28 | F28: 54 | G28: 3 | H28: Personnel | I28: =VLOOKUP(H28,Bdd1_consignes!$C$50:$D$54,2,FALSE) -> 1600 | J28: 1840
A29: Touille | B29: Sasha | C29: m | D29: Célibataire | E29: 1982-10-30 | F29: 40 | G29: 2 | H29: Personnel | I29: =VLOOKUP(H29,Bdd1_consignes!$C$50:$D$54,2,FALSE) -> 1600 | J29: 1760
A30: Proviste | B30: Alain | C30: m | D30: Marié(e) | E30: 1959-09-09 | F30: 64 | G30: 4 | H30: Personnel | I30: =VLOOKUP(H30,Bdd1_consignes!$C$50:$D$54,2,FALSE) -> 1600 | J30: 1920
A31: Ouzi | B31: Jacques | C31: m | D31: Célibataire | E31: 1969-02-28 | F31: 54 | G31: 3 | H31: Personnel | I31: =VLOOKUP(H31,Bdd1_consignes!$C$50:$D$54,2,FALSE) -> 1600 | J31: 1840
H32: Moyenne Personnel | J32: =SUBTOTAL(1,J21:J31) -> 1864
C33: Moyenne m | J33: =SUBTOTAL(1,J23:J31) -> 1857.777778
A34: Noux | B34: Marion | C34: f | D34: Divorcé(e) | E34: 1978-12-30 | F34: =DATEDIF(E34,TODAY(),"y") -> 44 | G34: =IF(F34<25,0,IF(F34<35,1,IF(F34<45,2,IF(F34<55,3,4)))) -> 2 | H34: Secrétariat | I34: =VLOOKUP(H34,Bdd1_consignes!$C$50:$D$54,2,FALSE) -> 1700 | J34: =I34+5%*G34*I34 -> 1870
A35: Stiké | B35: Sophie | C35: f | D35: Divorcé(e) | E35: 1959-04-04 | F35: =DATEDIF(E35,TODAY(),"y") -> 64 | G35: =IF(F35<25,0,IF(F35<35,1,IF(F35<45,2,IF(F35<55,3,4)))) -> 4 | H35: Secrétariat | I35: =VLOOKUP(H35,Bdd1_consignes!$C$50:$D$54,2,FALSE) -> 1700 | J35: =I35+5%*G35*I35 -> 2040
A36: Vaisselle | B36: Aude | C36: f | D36: Marié(e) | E36: 1966-06-06 | F36: =DATEDIF(E36,TODAY(),"y") -> 57 | G36: =IF(F36<25,0,IF(F36<35,1,IF(F36<45,2,IF(F36<55,3,4)))) -> 4 | H36: Secrétariat | I36: =VLOOKUP(H36,Bdd1_consignes!$C$50:$D$54,2,FALSE) -> 1700 | J36: =I36+5%*G36*I36 -> 2040
H37: Moyenne Secrétariat | J37: =SUBTOTAL(1,J34:J36) -> 1983.333333
C38: Moyenne f | J38: =SUBTOTAL(1,J34:J36) -> 1983.333333
H39: Moyenne | J39: =SUBTOTAL(1,J7:J36) -> 2112.954545

Sheet Sous-Totaux3
A1: Sous-Totaux | M1: Retour sommaire
A3: Utilisez les sous-totaux de façon à afficher le nombre d'employés et la moyenne des âges par sexe et par état civil.
A6: Nom | B6: Prénom | C6: Sexe | D6: Etat civil | E6: Date de naissance | F6: Age | G6: Tranches | H6: Services | I6: Salaires Minimum | J6: Salaires
A7: Bistrot | B7: Alonso | C7: m | D7: Marié(e) | E7: 1966-01-17 | F7: =DATEDIF(E7,TODAY(),"y") -> 57 | G7: =IF(F7<25,0,IF(F7<35,1,IF(F7<45,2,IF(F7<55,3,4)))) -> 4 | H7: Informatique | I7: =VLOOKUP(H7,Bdd1_consignes!$C$50:$D$54,2,FALSE) -> 1900 | J7: =I7+5%*G7*I7 -> 2280
A8: Bijoba | B8: Jo | C8: m | D8: Marié(e) | E8: 1980-03-15 | F8: 43 | G8: 2 | H8: Direction | I8: =VLOOKUP(H8,Bdd1_consignes!$C$50:$D$54,2,FALSE) -> 2500 | J8: 2750
A9: Covert | B9: Harry | C9: m | D9: Divorcé(e) | E9: 1942-02-10 | F9: 81 | G9: 4 | H9: Personnel | I9: =VLOOKUP(H9,Bdd1_consignes!$C$50:$D$54,2,FALSE) -> 1600 | J9: 1920
A10: Culaire | B10: Laury | C10: m | D10: Marié(e) | E10: 1965-05-05 | F10: 58 | G10: 4 | H10: Personnel | I10: =VLOOKUP(H10,Bdd1_consignes!$C$50:$D$54,2,FALSE) -> 1600 | J10: 1920
A11: Deuf | B11: John | C11: m | D11: Célibataire | E11: 1963-09-08 | F11: 60 | G11: 4 | H11: Informatique | I11: =VLOOKUP(H11,Bdd1_consignes!$C$50:$D$54,2,FALSE) -> 1900 | J11: 2280
A12: Foupasune | B12: Jean | C12: m | D12: Célibataire | E12: 1975-08-07 | F12: 48 | G12: 3 | H12: Personnel | I12: =VLOOKUP(H12,Bdd1_consignes!$C$50:$D$54,2,FALSE) -> 1600 | J12: 1840
A13: Lairbon | B13: Oussama | C13: m | D13: Marié(e) | E13: 1983-02-08 | F13: 40 | G13: 2 | H13: Personnel | I13: =VLOOKUP(H13,Bdd1_consignes!$C$50:$D$54,2,FALSE) -> 1600 | J13: 1760
A14: Menvussa | B14: Gérard | C14: m | D14: Célibataire | E14: 1970-12-04 | F14: 52 | G14: 3 | H14: Informatique | I14: =VLOOKUP(H14,Bdd1_consignes!$C$50:$D$54,2,FALSE) -> 1900 | J14: 2185
A15: Lalalalalalala | B15: Starsky | C15: m | D15: Célibataire | E15: 1955-07-08 | F15: 68 | G15: 4 | H15: Personnel | I15: =VLOOKUP(H15,Bdd1_consignes!$C$50:$D$54,2,FALSE) -> 1600 | J15: 1920
A16: Lalalalalalala | B16: Hutch | C16: m | D16: Divorcé(e) | E16: 1952-10-07 | F16: 71 | G16: 4 | H16: Direction | I16: =VLOOKUP(H16,Bdd1_consignes!$C$50:$D$54,2,FALSE) -> 2500 | J16: 3000
A17: Cléssoulaporte | B17: Djamila | C17: f | D17: Marié(e) | E17: 1959-09-07 | F17: 64 | G17: 4 | H17: Personnel | I17: =VLOOKUP(H17,Bdd1_consignes!$C$50:$D$54,2,FALSE) -> 1600 | J17: 1920
A18: Noux | B18: Marion | C18: f | D18: Divorcé(e) | E18: 1978-12-30 | F18: 44 | G18: 2 | H18: Secrétariat | I18: =VLOOKUP(H18,Bdd1_consignes!$C$50:$D$54,2,FALSE) -> 1700 | J18: 1870
A19: Ouzi | B19: Jacques | C19: m | D19: Célibataire | E19: 1969-02-28 | F19: 54 | G19: 3 | H19: Personnel | I19: =VLOOKUP(H19,Bdd1_consignes!$C$50:$D$54,2,FALSE) -> 1600 | J19: 1840
A20: Stiké | B20: Sophie | C20: f | D20: Divorcé(e) | E20: 1959-04-04 | F20: 64 | G20: 4 | H20: Secrétariat | I20: =VLOOKUP(H20,Bdd1_consignes!$C$50:$D$54,2,FALSE) -> 1700 | J20: 2040
A21: Tare | B21: Guy | C21: m | D21: Divorcé(e) | E21: 1960-08-07 | F21: 63 | G21: 4 | H21: Informatique | I21: =VLOOKUP(H21,Bdd1_consignes!$C$50:$D$54,2,FALSE) -> 1900 | J21: 2280
A22: Vaisselle | B22: Aude | C22: f | D22: Marié(e) | E22: 1966-06-06 | F22: 57 | G22: 4 | H22: Secrétariat | I22: =VLOOKUP(H22,Bdd1_consignes!$C$50:$D$54,2,FALSE) -> 1700 | J22: 2040
A23: Zetofrais | B23: Mélanie | C23: f | D23: Célibataire | E23: 1978-11-25 | F23: 44 | G23: 2 | H23: Direction | I23: =VLOOKUP(H23,Bdd1_consignes!$C$50:$D$54,2,FALSE) -> 2500 | J23: 2750
A24: Touille | B24: Sasha | C24: m | D24: Célibataire | E24: 1982-10-30 | F24: 40 | G24: 2 | H24: Personnel | I24: =VLOOKUP(H24,Bdd1_consignes!$C$50:$D$54,2,FALSE) -> 1600 | J24: 1760
A25: Proviste | B25: Alain | C25: m | D25: Marié(e) | E25: 1959-09-09 | F25: 64 | G25: 4 | H25: Personnel | I25: =VLOOKUP(H25,Bdd1_consignes!$C$50:$D$54,2,FALSE) -> 1600 | J25: 1920
A26: Peulaporte | B26: Firmin | C26: m | D26: Divorcé(e) | E26: 1965-07-01 | F26: 58 | G26: 4 | H26: Informatique | I26: =VLOOKUP(H26,Bdd1_consignes!$C$50:$D$54,2,FALSE) -> 1900 | J26: 2280
A27: Unetitlaine | B27: Jérémy | C27: m | D27: Marié(e) | E27: 1983-06-09 | F27: 40 | G27: 2 | H27: Informatique | I27: =VLOOKUP(H27,Bdd1_consignes!$C$50:$D$54,2,FALSE) -> 1900 | J27: 2090
A28: Ouzi | B28: Jacques | C28: m | D28: Célibataire | E28: 1969-02-28 | F28: 54 | G28: 3 | H28: Personnel | I28: =VLOOKUP(H28,Bdd1_consignes!$C$50:$D$54,2,FALSE) -> 1600 | J28: 1840

Sheet Sous-Totaux3_corrigé (hidden)
A1: Sous-Totaux
A3: Utilisez les sous-totaux de façon à afficher le nombre d'employés et la moyenne des âges par sexe et par état civil.
A6: Nom | B6: Prénom | C6: Sexe | D6: Etat civil | E6: Date de naissance | F6: Age | G6: Tranches | H6: Services | I6: Salaires Minimum | J6: Salaires
A7: Zetofrais | B7: Mélanie | C7: f | D7: Célibataire | E7: 1978-11-25 | F7: =DATEDIF(E7,TODAY(),"y") -> 44 | G7: =IF(F7<25,0,IF(F7<35,1,IF(F7<45,2,IF(F7<55,3,4)))) -> 2 | H7: Direction | I7: =VLOOKUP(H7,Bdd1_consignes!$C$50:$D$54,2,FALSE) -> 2500 | J7: =I7+5%*G7*I7 -> 2750
A8: =SUBTOTAL(3,A7:A7) -> 1 | D8: Nombre Célibataire
D9: Moyenne Célibataire | F9: =SUBTOTAL(1,F7:F7) -> 44
A10: Noux | B10: Marion | C10: f | D10: Divorcé(e) | E10: 1978-12-30 | F10: =DATEDIF(E10,TODAY(),"y") -> 44 | G10: =IF(F10<25,0,IF(F10<35,1,IF(F10<45,2,IF(F10<55,3,4)))) -> 2 | H10: Secrétariat | I10: =VLOOKUP(H10,Bdd1_consignes!$C$50:$D$54,2,FALSE) -> 1700 | J10: =I10+5%*G10*I10 -> 1870
A11: Stiké | B11: Sophie | C11: f | D11: Divorcé(e) | E11: 1959-04-04 | F11: =DATEDIF(E11,TODAY(),"y") -> 64 | G11: =IF(F11<25,0,IF(F11<35,1,IF(F11<45,2,IF(F11<55,3,4)))) -> 4 | H11: Secrétariat | I11: =VLOOKUP(H11,Bdd1_consignes!$C$50:$D$54,2,FALSE) -> 1700 | J11: =I11+5%*G11*I11 -> 2040
A12: =SUBTOTAL(3,A10:A11) -> 2 | D12: Nombre Divorcé(e)
D13: Moyenne Divorcé(e) | F13: =SUBTOTAL(1,F10:F11) -> 54
A14: Cléssoulaporte | B14: Djamila | C14: f | D14: Marié(e) | E14: 1959-09-07 | F14: =DATEDIF(E14,TODAY(),"y") -> 64 | G14: =IF(F14<25,0,IF(F14<35,1,IF(F14<45,2,IF(F14<55,3,4)))) -> 4 | H14: Personnel | I14: =VLOOKUP(H14,Bdd1_consignes!$C$50:$D$54,2,FALSE) -> 1600 | J14: =I14+5%*G14*I14 -> 1920
A15: Vaisselle | B15: Aude | C15: f | D15: Marié(e) | E15: 1966-06-06 | F15: =DATEDIF(E15,TODAY(),"y") -> 57 | G15: =IF(F15<25,0,IF(F15<35,1,IF(F15<45,2,IF(F15<55,3,4)))) -> 4 | H15: Secrétariat | I15: =VLOOKUP(H15,Bdd1_consignes!$C$50:$D$54,2,FALSE) -> 1700 | J15: =I15+5%*G15*I15 -> 2040
A16: =SUBTOTAL(3,A14:A15) -> 2 | D16: Nombre Marié(e)
D17: Moyenne Marié(e) | F17: =SUBTOTAL(1,F14:F15) -> 60.5
C18: Moyenne f | F18: =SUBTOTAL(1,F7:F15) -> 54.6
A19: =SUBTOTAL(3,A7:A15) -> 5 | C19: Nombre f
A20: Deuf | B20: John | C20: m | D20: Célibataire | E20: 1963-09-08 | F20: =DATEDIF(E20,TODAY(),"y") -> 60 | G20: =IF(F20<25,0,IF(F20<35,1,IF(F20<45,2,IF(F20<55,3,4)))) -> 4 | H20: Informatique | I20: =VLOOKUP(H20,Bdd1_consignes!$C$50:$D$54,2,FALSE) -> 1900 | J20: =I20+5%*G20*I20 -> 2280
A21: Foupasune | B21: Jean | C21: m | D21: Célibataire | E21: 1975-08-07 | F21: 48 | G21: 3 | H21: Personnel | I21: =VLOOKUP(H21,Bdd1_consignes!$C$50:$D$54,2,FALSE) -> 1600 | J21: 1840
A22: Menvussa | B22: Gérard | C22: m | D22: Célibataire | E22: 1970-12-04 | F22: 52 | G22: 3 | H22: Informatique | I22: =VLOOKUP(H22,Bdd1_consignes!$C$50:$D$54,2,FALSE) -> 1900 | J22: 2185
A23: Lalalalalalala | B23: Starsky | C23: m | D23: Célibataire | E23: 1955-07-08 | F23: 68 | G23: 4 | H23: Personnel | I23: =VLOOKUP(H23,Bdd1_consignes!$C$50:$D$54,2,FALSE) -> 1600 | J23: 1920
A24: Ouzi | B24: Jacques | C24: m | D24: Célibataire | E24: 1969-02-28 | F24: 54 | G24: 3 | H24: Personnel | I24: =VLOOKUP(H24,Bdd1_consignes!$C$50:$D$54,2,FALSE) -> 1600 | J24: 1840
A25: Touille | B25: Sasha | C25: m | D25: Célibataire | E25: 1982-10-30 | F25: 40 | G25: 2 | H25: Personnel | I25: =VLOOKUP(H25,Bdd1_consignes!$C$50:$D$54,2,FALSE) -> 1600 | J25: 1760
A26: Ouzi | B26: Jacques | C26: m | D26: Célibataire | E26: 1969-02-28 | F26: 54 | G26: 3 | H26: Personnel | I26: =VLOOKUP(H26,Bdd1_consignes!$C$50:$D$54,2,FALSE) -> 1600 | J26: 1840
A27: =SUBTOTAL(3,A20:A26) -> 7 | D27: Nombre Célibataire
D28: Moyenne Célibataire | F28: =SUBTOTAL(1,F20:F26) -> 53.71428571
A29: Covert | B29: Harry | C29: m | D29: Divorcé(e) | E29: 1942-02-10 | F29: =DATEDIF(E29,TODAY(),"y") -> 81 | G29: =IF(F29<25,0,IF(F29<35,1,IF(F29<45,2,IF(F29<55,3,4)))) -> 4 | H29: Personnel | I29: =VLOOKUP(H29,Bdd1_consignes!$C$50:$D$54,2,FALSE) -> 1600 | J29: =I29+5%*G29*I29 -> 1920
A30: Lalalalalalala | B30: Hutch | C30: m | D30: Divorcé(e) | E30: 1952-10-07 | F30: =DATEDIF(E30,TODAY(),"y") -> 71 | G30: =IF(F30<25,0,IF(F30<35,1,IF(F30<45,2,IF(F30<55,3,4)))) -> 4 | H30: Direction | I30: =VLOOKUP(H30,Bdd1_consignes!$C$50:$D$54,2,FALSE) -> 2500 | J30: =I30+5%*G30*I30 -> 3000
A31: Tare | B31: Guy | C31: m | D31: Divorcé(e) | E31: 1960-08-07 | F31: =DATEDIF(E31,TODAY(),"y") -> 63 | G31: =IF(F31<25,0,IF(F31<35,1,IF(F31<45,2,IF(F31<55,3,4)))) -> 4 | H31: Informatique | I31: =VLOOKUP(H31,Bdd1_consignes!$C$50:$D$54,2,FALSE) -> 1900 | J31: =I31+5%*G31*I31 -> 2280
A32: Peulaporte | B32: Firmin | C32: m | D32: Divorcé(e) | E32: 1965-07-01 | F32: =DATEDIF(E32,TODAY(),"y") -> 58 | G32: =IF(F32<25,0,IF(F32<35,1,IF(F32<45,2,IF(F32<55,3,4)))) -> 4 | H32: Informatique | I32: =VLOOKUP(H32,Bdd1_consignes!$C$50:$D$54,2,FALSE) -> 1900 | J32: =I32+5%*G32*I32 -> 2280
A33: =SUBTOTAL(3,A29:A32) -> 4 | D33: Nombre Divorcé(e)
D34: Moyenne Divorcé(e) | F34: =SUBTOTAL(1,F29:F32) -> 68.25
A35: Bistrot | B35: Alonso | C35: m | D35: Marié(e) | E35: 1966-01-17 | F35: =DATEDIF(E35,TODAY(),"y") -> 57 | G35: =IF(F35<25,0,IF(F35<35,1,IF(F35<45,2,IF(F35<55,3,4)))) -> 4 | H35: Informatique | I35: =VLOOKUP(H35,Bdd1_consignes!$C$50:$D$54,2,FALSE) -> 1900 | J35: =I35+5%*G35*I35 -> 2280
A36: Bijoba | B36: Jo | C36: m | D36: Marié(e) | E36: 1980-03-15 | F36: 43 | G36: 2 | H36: Direction | I36: =VLOOKUP(H36,Bdd1_consignes!$C$50:$D$54,2,FALSE) -> 2500 | J36: 2750
A37: Culaire | B37: Laury | C37: m | D37: Marié(e) | E37: 1965-05-05 | F37: 58 | G37: 4 | H37: Personnel | I37: =VLOOKUP(H37,Bdd1_consignes!$C$50:$D$54,2,FALSE) -> 1600 | J37: 1920
A38: Lairbon | B38: Oussama | C38: m | D38: Marié(e) | E38: 1983-02-08 | F38: 40 | G38: 2 | H38: Personnel | I38: =VLOOKUP(H38,Bdd1_consignes!$C$50:$D$54,2,FALSE) -> 1600 | J38: 1760
A39: Proviste | B39: Alain | C39: m | D39: Marié(e) | E39: 1959-09-09 | F39: 64 | G39: 4 | H39: Personnel | I39: =VLOOKUP(H39,Bdd1_consignes!$C$50:$D$54,2,FALSE) -> 1600 | J39: 1920
A40: Unetitlaine | B40: Jérémy | C40: m | D40: Marié(e) | E40: 1983-06-09 | F40: 40 | G40: 2 | H40: Informatique | I40: =VLOOKUP(H40,Bdd1_consignes!$C$50:$D$54,2,FALSE) -> 1900 | J40: 2090
A41: =SUBTOTAL(3,A35:A40) -> 6 | D41: Nombre Marié(e)
D42: Moyenne Marié(e) | F42: =SUBTOTAL(1,F35:F40) -> 50.33333333
C43: Moyenne m | F43: =SUBTOTAL(1,F20:F40) -> 55.94117647
A44: =SUBTOTAL(3,A20:A40) -> 17 | C44: Nombre m
D45: Nbval
C46: Moyenne | F46: =SUBTOTAL(1,F7:F40) -> 55.63636364
D47: Moyenne Nbval | F47: =SUBTOTAL(1,F45:F45) -> 
A48: =SUBTOTAL(3,A7:A40) -> 22 | C48: Nbval
D49: Moyenne | F49: =SUBTOTAL(1,F7:F45) -> 55.63636364

Sheet Sous-Totaux4 (Fonctions)
A1: Sous-Totaux | M1: Retour sommaire
A3: Utilisez la fonction sous-total de façon à afficher le nombre d'employés et la moyenne des âges des hommes célibataires
B6: Avec les fonctions classiques : | E6: Avec nbval et moyenne + filtres : | H6: Avec la fonction sous-total + filtres :
B8: Nombre : | E8: Nombre : | H8: Nombre :
B9: Âge moyen : | E9: Âge moyen : | H9: Âge moyen :
A12: Nom | B12: Prénom | C12: Sexe | D12: Etat civil | E12: Date de naissance | F12: Age | G12: Tranches | H12: Services | I12: Salaires Minimum | J12: Salaires
A13: Bistrot | B13: Alonso | C13: m | D13: Marié(e) | E13: 1966-01-17 | F13: =DATEDIF(E13,TODAY(),"y") -> 57 | G13: =IF(F13<25,0,IF(F13<35,1,IF(F13<45,2,IF(F13<55,3,4)))) -> 4 | H13: Informatique | I13: =VLOOKUP(H13,Bdd1_consignes!$C$50:$D$54,2,FALSE) -> 1900 | J13: =I13+5%*G13*I13 -> 2280
A14: Bijoba | B14: Jo | C14: m | D14: Marié(e) | E14: 1980-03-15 | F14: 43 | G14: 2 | H14: Direction | I14: =VLOOKUP(H14,Bdd1_consignes!$C$50:$D$54,2,FALSE) -> 2500 | J14: 2750
A15: Covert | B15: Harry | C15: m | D15: Divorcé(e) | E15: 1942-02-10 | F15: 81 | G15: 4 | H15: Personnel | I15: =VLOOKUP(H15,Bdd1_consignes!$C$50:$D$54,2,FALSE) -> 1600 | J15: 1920
A16: Culaire | B16: Laury | C16: m | D16: Marié(e) | E16: 1965-05-05 | F16: 58 | G16: 4 | H16: Personnel | I16: =VLOOKUP(H16,Bdd1_consignes!$C$50:$D$54,2,FALSE) -> 1600 | J16: 1920
A17: Deuf | B17: John | C17: m | D17: Célibataire | E17: 1963-09-08 | F17: 60 | G17: 4 | H17: Informatique | I17: =VLOOKUP(H17,Bdd1_consignes!$C$50:$D$54,2,FALSE) -> 1900 | J17: 2280
A18: Foupasune | B18: Jean | C18: m | D18: Célibataire | E18: 1975-08-07 | F18: 48 | G18: 3 | H18: Personnel | I18: =VLOOKUP(H18,Bdd1_consignes!$C$50:$D$54,2,FALSE) -> 1600 | J18: 1840
A19: Lairbon | B19: Oussama | C19: m | D19: Marié(e) | E19: 1983-02-08 | F19: 40 | G19: 2 | H19: Personnel | I19: =VLOOKUP(H19,Bdd1_consignes!$C$50:$D$54,2,FALSE) -> 1600 | J19: 1760
A20: Menvussa | B20: Gérard | C20: m | D20: Célibataire | E20: 1970-12-04 | F20: 52 | G20: 3 | H20: Informatique | I20: =VLOOKUP(H20,Bdd1_consignes!$C$50:$D$54,2,FALSE) -> 1900 | J20: 2185
A21: Lalalalalalala | B21: Starsky | C21: m | D21: Célibataire | E21: 1955-07-08 | F21: 68 | G21: 4 | H21: Personnel | I21: =VLOOKUP(H21,Bdd1_consignes!$C$50:$D$54,2,FALSE) -> 1600 | J21: 1920
A22: Lalalalalalala | B22: Hutch | C22: m | D22: Divorcé(e) | E22: 1952-10-07 | F22: 71 | G22: 4 | H22: Direction | I22: =VLOOKUP(H22,Bdd1_consignes!$C$50:$D$54,2,FALSE) -> 2500 | J22: 3000
A23: Cléssoulaporte | B23: Djamila | C23: f | D23: Marié(e) | E23: 1959-09-07 | F23: 64 | G23: 4 | H23: Personnel | I23: =VLOOKUP(H23,Bdd1_consignes!$C$50:$D$54,2,FALSE) -> 1600 | J23: 1920
A24: Noux | B24: Marion | C24: f | D24: Divorcé(e) | E24: 1978-12-30 | F24: 44 | G24: 2 | H24: Secrétariat | I24: =VLOOKUP(H24,Bdd1_consignes!$C$50:$D$54,2,FALSE) -> 1700 | J24: 1870
A25: Ouzi | B25: Jacques | C25: m | D25: Célibataire | E25: 1969-02-28 | F25: 54 | G25: 3 | H25: Personnel | I25: =VLOOKUP(H25,Bdd1_consignes!$C$50:$D$54,2,FALSE) -> 1600 | J25: 1840
A26: Stiké | B26: Sophie | C26: f | D26: Divorcé(e) | E26: 1959-04-04 | F26: 64 | G26: 4 | H26: Secrétariat | I26: =VLOOKUP(H26,Bdd1_consignes!$C$50:$D$54,2,FALSE) -> 1700 | J26: 2040
A27: Tare | B27: Guy | C27: m | D27: Divorcé(e) | E27: 1960-08-07 | F27: 63 | G27: 4 | H27: Informatique | I27: =VLOOKUP(H27,Bdd1_consignes!$C$50:$D$54,2,FALSE) -> 1900 | J27: 2280
A28: Vaisselle | B28: Aude | C28: f | D28: Marié(e) | E28: 1966-06-06 | F28: 57 | G28: 4 | H28: Secrétariat | I28: =VLOOKUP(H28,Bdd1_consignes!$C$50:$D$54,2,FALSE) -> 1700 | J28: 2040
A29: Zetofrais | B29: Mélanie | C29: f | D29: Célibataire | E29: 1978-11-25 | F29: 44 | G29: 2 | H29: Direction | I29: =VLOOKUP(H29,Bdd1_consignes!$C$50:$D$54,2,FALSE) -> 2500 | J29: 2750
A30: Touille | B30: Sasha | C30: m | D30: Célibataire | E30: 1982-10-30 | F30: 40 | G30: 2 | H30: Personnel | I30: =VLOOKUP(H30,Bdd1_consignes!$C$50:$D$54,2,FALSE) -> 1600 | J30: 1760
A31: Proviste | B31: Alain | C31: m | D31: Marié(e) | E31: 1959-09-09 | F31: 64 | G31: 4 | H31: Personnel | I31: =VLOOKUP(H31,Bdd1_consignes!$C$50:$D$54,2,FALSE) -> 1600 | J31: 1920
A32: Peulaporte | B32: Firmin | C32: m | D32: Divorcé(e) | E32: 1965-07-01 | F32: 58 | G32: 4 | H32: Informatique | I32: =VLOOKUP(H32,Bdd1_consignes!$C$50:$D$54,2,FALSE) -> 1900 | J32: 2280
A33: Unetitlaine | B33: Jérémy | C33: m | D33: Marié(e) | E33: 1983-06-09 | F33: 40 | G33: 2 | H33: Informatique | I33: =VLOOKUP(H33,Bdd1_consignes!$C$50:$D$54,2,FALSE) -> 1900 | J33: 2090
A34: Ouzi | B34: Jacques | C34: m | D34: Célibataire | E34: 1969-02-28 | F34: 54 | G34: 3 | H34: Personnel | I34: =VLOOKUP(H34,Bdd1_consignes!$C$50:$D$54,2,FALSE) -> 1600 | J34: 1840

Sheet Sous-Totaux4 (Fcts)_corrigé (hidden)
A1: Sous-Totaux | M1: Retour sommaire
A3: Utilisez la fonction sous-total de façon à afficher le nombre d'employés et la moyenne des âges des hommes célibataires
B5: NB.SI.ENS / COUNTIFS | E5: NBVAL / COUNTA | H5: SOUS.TOTAL / SUBTOTAL
B6: MOYENNE.SI.ENS / AVERAGEIFS | E6: MOYENNE / AVERAGE
B8: Avec les fonctions classiques : | E8: Avec nbval et moyenne + filtres : | H8: Avec la fonction sous-total + filtres :
B10: Nombre : | C10: =COUNTIFS(Tableau27[Sexe],"m",Tableau27[Etat civil],"Célibataire") -> 7 | E10: Nombre : | F10: =COUNTA(Tableau27[Sexe]) -> 22 | H10: Nombre : | I10: =SUBTOTAL(3,Tableau27[Sexe]) -> 7
B11: Âge moyen : | C11: =AVERAGEIFS(Tableau27[Age],Tableau27[Sexe],"m",Tableau27[Etat civil],"célibataire") -> 53.71428571 | E11: Âge moyen : | F11: =AVERAGE(Tableau27[Age]) -> 55.63636364 | H11: Âge moyen : | I11: =SUBTOTAL(1,Tableau27[Age]) -> 53.71428571
A14: Nom | B14: Prénom | C14: Sexe | D14: Etat civil | E14: Date de naissance | F14: Age | G14: Tranches | H14: Services | I14: Salaires Minimum | J14: Salaires
A15: Bistrot | B15: Alonso | C15: m | D15: Marié(e) | E15: 1966-01-17 | F15: =DATEDIF(E15,TODAY(),"y") -> 57 | G15: =IF(F15<25,0,IF(F15<35,1,IF(F15<45,2,IF(F15<55,3,4)))) -> 4 | H15: Informatique | I15: =VLOOKUP(H15,Bdd1_consignes!$C$50:$D$54,2,FALSE) -> 1900 | J15: =I15+5%*G15*I15 -> 2280
A16: Bijoba | B16: Jo | C16: m | D16: Marié(e) | E16: 1980-03-15 | F16: 43 | G16: 2 | H16: Direction | I16: =VLOOKUP(H16,Bdd1_consignes!$C$50:$D$54,2,FALSE) -> 2500 | J16: 2750
A17: Covert | B17: Harry | C17: m | D17: Divorcé(e) | E17: 1942-02-10 | F17: 81 | G17: 4 | H17: Personnel | I17: =VLOOKUP(H17,Bdd1_consignes!$C$50:$D$54,2,FALSE) -> 1600 | J17: 1920
A18: Culaire | B18: Laury | C18: m | D18: Marié(e) | E18: 1965-05-05 | F18: 58 | G18: 4 | H18: Personnel | I18: =VLOOKUP(H18,Bdd1_consignes!$C$50:$D$54,2,FALSE) -> 1600 | J18: 1920
A19: Deuf | B19: John | C19: m | D19: Célibataire | E19: 1963-09-08 | F19: 60 | G19: 4 | H19: Informatique | I19: =VLOOKUP(H19,Bdd1_consignes!$C$50:$D$54,2,FALSE) -> 1900 | J19: 2280
A20: Foupasune | B20: Jean | C20: m | D20: Célibataire | E20: 1975-08-07 | F20: 48 | G20: 3 | H20: Personnel | I20: =VLOOKUP(H20,Bdd1_consignes!$C$50:$D$54,2,FALSE) -> 1600 | J20: 1840
A21: Lairbon | B21: Oussama | C21: m | D21: Marié(e) | E21: 1983-02-08 | F21: 40 | G21: 2 | H21: Personnel | I21: =VLOOKUP(H21,Bdd1_consignes!$C$50:$D$54,2,FALSE) -> 1600 | J21: 1760
A22: Menvussa | B22: Gérard | C22: m | D22: Célibataire | E22: 1970-12-04 | F22: 52 | G22: 3 | H22: Informatique | I22: =VLOOKUP(H22,Bdd1_consignes!$C$50:$D$54,2,FALSE) -> 1900 | J22: 2185
A23: Lalalalalalala | B23: Starsky | C23: m | D23: Célibataire | E23: 1955-07-08 | F23: 68 | G23: 4 | H23: Personnel | I23: =VLOOKUP(H23,Bdd1_consignes!$C$50:$D$54,2,FALSE) -> 1600 | J23: 1920
A24: Lalalalalalala | B24: Hutch | C24: m | D24: Divorcé(e) | E24: 1952-10-07 | F24: 71 | G24: 4 | H24: Direction | I24: =VLOOKUP(H24,Bdd1_consignes!$C$50:$D$54,2,FALSE) -> 2500 | J24: 3000
A25: Cléssoulaporte | B25: Djamila | C25: f | D25: Marié(e) | E25: 1959-09-07 | F25: 64 | G25: 4 | H25: Personnel | I25: =VLOOKUP(H25,Bdd1_consignes!$C$50:$D$54,2,FALSE) -> 1600 | J25: 1920
A26: Noux | B26: Marion | C26: f | D26: Divorcé(e) | E26: 1978-12-30 | F26: 44 | G26: 2 | H26: Secrétariat | I26: =VLOOKUP(H26,Bdd1_consignes!$C$50:$D$54,2,FALSE) -> 1700 | J26: 1870
A27: Ouzi | B27: Jacques | C27: m | D27: Célibataire | E27: 1969-02-28 | F27: 54 | G27: 3 | H27: Personnel | I27: =VLOOKUP(H27,Bdd1_consignes!$C$50:$D$54,2,FALSE) -> 1600 | J27: 1840
A28: Stiké | B28: Sophie | C28: f | D28: Divorcé(e) | E28: 1959-04-04 | F28: 64 | G28: 4 | H28: Secrétariat | I28: =VLOOKUP(H28,Bdd1_consignes!$C$50:$D$54,2,FALSE) -> 1700 | J28: 2040
A29: Tare | B29: Guy | C29: m | D29: Divorcé(e) | E29: 1960-08-07 | F29: 63 | G29: 4 | H29: Informatique | I29: =VLOOKUP(H29,Bdd1_consignes!$C$50:$D$54,2,FALSE) -> 1900 | J29: 2280
A30: Vaisselle | B30: Aude | C30: f | D30: Marié(e) | E30: 1966-06-06 | F30: 57 | G30: 4 | H30: Secrétariat | I30: =VLOOKUP(H30,Bdd1_consignes!$C$50:$D$54,2,FALSE) -> 1700 | J30: 2040
A31: Zetofrais | B31: Mélanie | C31: f | D31: Célibataire | E31: 1978-11-25 | F31: 44 | G31: 2 | H31: Direction | I31: =VLOOKUP(H31,Bdd1_consignes!$C$50:$D$54,2,FALSE) -> 2500 | J31: 2750
A32: Touille | B32: Sasha | C32: m | D32: Célibataire | E32: 1982-10-30 | F32: 40 | G32: 2 | H32: Personnel | I32: =VLOOKUP(H32,Bdd1_consignes!$C$50:$D$54,2,FALSE) -> 1600 | J32: 1760
A33: Proviste | B33: Alain | C33: m | D33: Marié(e) | E33: 1959-09-09 | F33: 64 | G33: 4 | H33: Personnel | I33: =VLOOKUP(H33,Bdd1_consignes!$C$50:$D$54,2,FALSE) -> 1600 | J33: 1920
A34: Peulaporte | B34: Firmin | C34: m | D34: Divorcé(e) | E34: 1965-07-01 | F34: 58 | G34: 4 | H34: Informatique | I34: =VLOOKUP(H34,Bdd1_consignes!$C$50:$D$54,2,FALSE) -> 1900 | J34: 2280
A35: Unetitlaine | B35: Jérémy | C35: m | D35: Marié(e) | E35: 1983-06-09 | F35: 40 | G35: 2 | H35: Informatique | I35: =VLOOKUP(H35,Bdd1_consignes!$C$50:$D$54,2,FALSE) -> 1900 | J35: 2090
A36: Ouzi | B36: Jacques | C36: m | D36: Célibataire | E36: 1969-02-28 | F36: 54 | G36: 3 | H36: Personnel | I36: =VLOOKUP(H36,Bdd1_consignes!$C$50:$D$54,2,FALSE) -> 1600 | J36: 1840

Sheet Fcts classiques - Tableaux
A1: Utilisation des fonctions classiques | M1: Retour sommaire
A3: En utilisant les tableaux de données.
A4: Utilisez les fonctions classiques de façon à afficher le nombre d'employés par service.
A5: Utilisez les fonctions classiques de façon à afficher le nombre d'employés et la moyenne des âges par sexe et par état civil.
A7: Nom | B7: Prénom | C7: Sexe | D7: Etat civil | E7: Date de naissance | F7: Age | G7: Tranches | H7: Services | I7: Salaires Minimum | J7: Salaires
A8: Bistrot | B8: Alonso | C8: m | D8: Marié(e) | E8: 1966-01-17 | F8: =DATEDIF(E8,TODAY(),"y") -> 57 | G8: =IF(F8<25,0,IF(F8<35,1,IF(F8<45,2,IF(F8<55,3,4)))) -> 4 | H8: Informatique | I8: =VLOOKUP(H8,Bdd1_consignes!$C$50:$D$54,2,FALSE) -> 1900 | J8: =I8+5%*G8*I8 -> 2280 | M8: Nombre d'employés par service
A9: Bijoba | B9: Jo | C9: m | D9: Marié(e) | E9: 1980-03-15 | F9: 43 | G9: 2 | H9: Direction | I9: =VLOOKUP(H9,Bdd1_consignes!$C$50:$D$54,2,FALSE) -> 2500 | J9: 2750
A10: Covert | B10: Harry | C10: m | D10: Divorcé(e) | E10: 1942-02-10 | F10: 81 | G10: 4 | H10: Personnel | I10: =VLOOKUP(H10,Bdd1_consignes!$C$50:$D$54,2,FALSE) -> 1600 | J10: 1920 | M10: Direction
A11: Culaire | B11: Laury | C11: m | D11: Marié(e) | E11: 1965-05-05 | F11: 58 | G11: 4 | H11: Personnel | I11: =VLOOKUP(H11,Bdd1_consignes!$C$50:$D$54,2,FALSE) -> 1600 | J11: 1920 | M11: Informatique
A12: Deuf | B12: John | C12: m | D12: Célibataire | E12: 1963-09-08 | F12: 60 | G12: 4 | H12: Informatique | I12: =VLOOKUP(H12,Bdd1_consignes!$C$50:$D$54,2,FALSE) -> 1900 | J12: 2280 | M12: Personnel
A13: Foupasune | B13: Jean | C13: m | D13: Célibataire | E13: 1975-08-07 | F13: 48 | G13: 3 | H13: Personnel | I13: =VLOOKUP(H13,Bdd1_consignes!$C$50:$D$54,2,FALSE) -> 1600 | J13: 1840 | M13: Secrétariat
A14: Lairbon | B14: Oussama | C14: m | D14: Marié(e) | E14: 1983-02-08 | F14: 40 | G14: 2 | H14: Personnel | I14: =VLOOKUP(H14,Bdd1_consignes!$C$50:$D$54,2,FALSE) -> 1600 | J14: 1760
A15: Menvussa | B15: Gérard | C15: m | D15: Célibataire | E15: 1970-12-04 | F15: 52 | G15: 3 | H15: Informatique | I15: =VLOOKUP(H15,Bdd1_consignes!$C$50:$D$54,2,FALSE) -> 1900 | J15: 2185 | M15: Nombre d'employés par sexe et état civil
A16: Lalalalalalala | B16: Starsky | C16: m | D16: Célibataire | E16: 1955-07-08 | F16: 68 | G16: 4 | H16: Personnel | I16: =VLOOKUP(H16,Bdd1_consignes!$C$50:$D$54,2,FALSE) -> 1600 | J16: 1920
A17: Lalalalalalala | B17: Hutch | C17: m | D17: Divorcé(e) | E17: 1952-10-07 | F17: 71 | G17: 4 | H17: Direction | I17: =VLOOKUP(H17,Bdd1_consignes!$C$50:$D$54,2,FALSE) -> 2500 | J17: 3000 | N17: f | O17: m
A18: Cléssoulaporte | B18: Djamila | C18: f | D18: Marié(e) | E18: 1959-09-07 | F18: 64 | G18: 4 | H18: Personnel | I18: =VLOOKUP(H18,Bdd1_consignes!$C$50:$D$54,2,FALSE) -> 1600 | J18: 1920 | M18: Célibataire
A19: Noux | B19: Marion | C19: f | D19: Divorcé(e) | E19: 1978-12-30 | F19: 44 | G19: 2 | H19: Secrétariat | I19: =VLOOKUP(H19,Bdd1_consignes!$C$50:$D$54,2,FALSE) -> 1700 | J19: 1870 | M19: Divorcé(e)
A20: Ouzi | B20: Jacques | C20: m | D20: Célibataire | E20: 1969-02-28 | F20: 54 | G20: 3 | H20: Personnel | I20: =VLOOKUP(H20,Bdd1_consignes!$C$50:$D$54,2,FALSE) -> 1600 | J20: 1840 | M20: Marié(e)
A21: Stiké | B21: Sophie | C21: f | D21: Divorcé(e) | E21: 1959-04-04 | F21: 64 | G21: 4 | H21: Secrétariat | I21: =VLOOKUP(H21,Bdd1_consignes!$C$50:$D$54,2,FALSE) -> 1700 | J21: 2040
A22: Tare | B22: Guy | C22: m | D22: Divorcé(e) | E22: 1960-08-07 | F22: 63 | G22: 4 | H22: Informatique | I22: =VLOOKUP(H22,Bdd1_consignes!$C$50:$D$54,2,FALSE) -> 1900 | J22: 2280 | M22: Salaire moyen par sexe et état civil
A23: Vaisselle | B23: Aude | C23: f | D23: Marié(e) | E23: 1966-06-06 | F23: 57 | G23: 4 | H23: Secrétariat | I23: =VLOOKUP(H23,Bdd1_consignes!$C$50:$D$54,2,FALSE) -> 1700 | J23: 2040
A24: Zetofrais | B24: Mélanie | C24: f | D24: Célibataire | E24: 1978-11-25 | F24: 44 | G24: 2 | H24: Direction | I24: =VLOOKUP(H24,Bdd1_consignes!$C$50:$D$54,2,FALSE) -> 2500 | J24: 2750 | N24: f | O24: m
A25: Touille | B25: Sasha | C25: m | D25: Célibataire | E25: 1982-10-30 | F25: 40 | G25: 2 | H25: Personnel | I25: =VLOOKUP(H25,Bdd1_consignes!$C$50:$D$54,2,FALSE) -> 1600 | J25: 1760 | M25: Célibataire
A26: Proviste | B26: Alain | C26: m | D26: Marié(e) | E26: 1959-09-09 | F26: 64 | G26: 4 | H26: Personnel | I26: =VLOOKUP(H26,Bdd1_consignes!$C$50:$D$54,2,FALSE) -> 1600 | J26: 1920 | M26: Divorcé(e)
A27: Peulaporte | B27: Firmin | C27: m | D27: Divorcé(e) | E27: 1965-07-01 | F27: 58 | G27: 4 | H27: Informatique | I27: =VLOOKUP(H27,Bdd1_consignes!$C$50:$D$54,2,FALSE) -> 1900 | J27: 2280 | M27: Marié(e)
A28: Unetitlaine | B28: Jérémy | C28: m | D28: Marié(e) | E28: 1983-06-09 | F28: 40 | G28: 2 | H28: Informatique | I28: =VLOOKUP(H28,Bdd1_consignes!$C$50:$D$54,2,FALSE) -> 1900 | J28: 2090
A29: Ouzi | B29: Jacques | C29: m | D29: Célibataire | E29: 1969-02-28 | F29: 54 | G29: 3 | H29: Personnel | I29: =VLOOKUP(H29,Bdd1_consignes!$C$50:$D$54,2,FALSE) -> 1600 | J29: 1840

Sheet Fcts classiques-Tbl_corrigé (hidden)
A1: Utilisation des fonctions classiques | M1: Retour sommaire
A3: En utilisant les tableaux de données
A4: Utilisez les fonctions classiques de façon à afficher le nombre d'employés par service.
A5: Utilisez les fonctions classiques de façon à afficher le nombre d'employés et la moyenne des âges par sexe et par état civil.
A7: Nom | B7: Prénom | C7: Sexe | D7: Etat civil | E7: Date de naissance | F7: Age | G7: Tranches | H7: Services | I7: Salaires Minimum | J7: Salaires
A8: Bistrot | B8: Alonso | C8: m | D8: Marié(e) | E8: 1966-01-17 | F8: =DATEDIF(E8,TODAY(),"y") -> 57 | G8: =IF(F8<25,0,IF(F8<35,1,IF(F8<45,2,IF(F8<55,3,4)))) -> 4 | H8: Informatique | I8: =VLOOKUP(H8,Bdd1_consignes!$C$50:$D$54,2,FALSE) -> 1900 | J8: =I8+5%*G8*I8 -> 2280 | M8: Nombre d'employés par service
A9: Bijoba | B9: Jo | C9: m | D9: Marié(e) | E9: 1980-03-15 | F9: 43 | G9: 2 | H9: Direction | I9: =VLOOKUP(H9,Bdd1_consignes!$C$50:$D$54,2,FALSE) -> 2500 | J9: 2750
A10: Covert | B10: Harry | C10: m | D10: Divorcé(e) | E10: 1942-02-10 | F10: 81 | G10: 4 | H10: Personnel | I10: =VLOOKUP(H10,Bdd1_consignes!$C$50:$D$54,2,FALSE) -> 1600 | J10: 1920 | M10: Service | N10: Colonne1
A11: Culaire | B11: Laury | C11: m | D11: Marié(e) | E11: 1965-05-05 | F11: 58 | G11: 4 | H11: Personnel | I11: =VLOOKUP(H11,Bdd1_consignes!$C$50:$D$54,2,FALSE) -> 1600 | J11: 1920 | M11: Direction | N11: =COUNTIF(Tableau16[Services],Tableau24[Service]) -> 3
A12: Deuf | B12: John | C12: m | D12: Célibataire | E12: 1963-09-08 | F12: 60 | G12: 4 | H12: Informatique | I12: =VLOOKUP(H12,Bdd1_consignes!$C$50:$D$54,2,FALSE) -> 1900 | J12: 2280 | M12: Informatique | N12: 6
A13: Foupasune | B13: Jean | C13: m | D13: Célibataire | E13: 1975-08-07 | F13: 48 | G13: 3 | H13: Personnel | I13: =VLOOKUP(H13,Bdd1_consignes!$C$50:$D$54,2,FALSE) -> 1600 | J13: 1840 | M13: Personnel | N13: 10
A14: Lairbon | B14: Oussama | C14: m | D14: Marié(e) | E14: 1983-02-08 | F14: 40 | G14: 2 | H14: Personnel | I14: =VLOOKUP(H14,Bdd1_consignes!$C$50:$D$54,2,FALSE) -> 1600 | J14: 1760 | M14: Secrétariat | N14: 3
A15: Menvussa | B15: Gérard | C15: m | D15: Célibataire | E15: 1970-12-04 | F15: 52 | G15: 3 | H15: Informatique | I15: =VLOOKUP(H15,Bdd1_consignes!$C$50:$D$54,2,FALSE) -> 1900 | J15: 2185
A16: Lalalalalalala | B16: Starsky | C16: m | D16: Célibataire | E16: 1955-07-08 | F16: 68 | G16: 4 | H16: Personnel | I16: =VLOOKUP(H16,Bdd1_consignes!$C$50:$D$54,2,FALSE) -> 1600 | J16: 1920 | M16: Nombre d'employés par sexe et état civil
A17: Lalalalalalala | B17: Hutch | C17: m | D17: Divorcé(e) | E17: 1952-10-07 | F17: 71 | G17: 4 | H17: Direction | I17: =VLOOKUP(H17,Bdd1_consignes!$C$50:$D$54,2,FALSE) -> 2500 | J17: 3000
A18: Cléssoulaporte | B18: Djamila | C18: f | D18: Marié(e) | E18: 1959-09-07 | F18: 64 | G18: 4 | H18: Personnel | I18: =VLOOKUP(H18,Bdd1_consignes!$C$50:$D$54,2,FALSE) -> 1600 | J18: 1920 | M18: EC | N18: f | O18: m
A19: Noux | B19: Marion | C19: f | D19: Divorcé(e) | E19: 1978-12-30 | F19: 44 | G19: 2 | H19: Secrétariat | I19: =VLOOKUP(H19,Bdd1_consignes!$C$50:$D$54,2,FALSE) -> 1700 | J19: 1870 | M19: Célibataire | N19: =COUNTIFS(Tableau16[Sexe],N18:O18,Tableau16[Etat civil],Tableau22[EC]) -> 1 | O19: 7
A20: Ouzi | B20: Jacques | C20: m | D20: Célibataire | E20: 1969-02-28 | F20: 54 | G20: 3 | H20: Personnel | I20: =VLOOKUP(H20,Bdd1_consignes!$C$50:$D$54,2,FALSE) -> 1600 | J20: 1840 | M20: Divorcé(e) | N20: 2 | O20: 4
A21: Stiké | B21: Sophie | C21: f | D21: Divorcé(e) | E21: 1959-04-04 | F21: 64 | G21: 4 | H21: Secrétariat | I21: =VLOOKUP(H21,Bdd1_consignes!$C$50:$D$54,2,FALSE) -> 1700 | J21: 2040 | M21: Marié(e) | N21: 2 | O21: 6
A22: Tare | B22: Guy | C22: m | D22: Divorcé(e) | E22: 1960-08-07 | F22: 63 | G22: 4 | H22: Informatique | I22: =VLOOKUP(H22,Bdd1_consignes!$C$50:$D$54,2,FALSE) -> 1900 | J22: 2280
A23: Vaisselle | B23: Aude | C23: f | D23: Marié(e) | E23: 1966-06-06 | F23: 57 | G23: 4 | H23: Secrétariat | I23: =VLOOKUP(H23,Bdd1_consignes!$C$50:$D$54,2,FALSE) -> 1700 | J23: 2040
A24: Zetofrais | B24: Mélanie | C24: f | D24: Célibataire | E24: 1978-11-25 | F24: 44 | G24: 2 | H24: Direction | I24: =VLOOKUP(H24,Bdd1_consignes!$C$50:$D$54,2,FALSE) -> 2500 | J24: 2750 | M24: Salaire moyen par sexe et état civil
A25: Touille | B25: Sasha | C25: m | D25: Célibataire | E25: 1982-10-30 | F25: 40 | G25: 2 | H25: Personnel | I25: =VLOOKUP(H25,Bdd1_consignes!$C$50:$D$54,2,FALSE) -> 1600 | J25: 1760
A26: Proviste | B26: Alain | C26: m | D26: Marié(e) | E26: 1959-09-09 | F26: 64 | G26: 4 | H26: Personnel | I26: =VLOOKUP(H26,Bdd1_consignes!$C$50:$D$54,2,FALSE) -> 1600 | J26: 1920 | M26: EC | N26: f | O26: m
A27: Peulaporte | B27: Firmin | C27: m | D27: Divorcé(e) | E27: 1965-07-01 | F27: 58 | G27: 4 | H27: Informatique | I27: =VLOOKUP(H27,Bdd1_consignes!$C$50:$D$54,2,FALSE) -> 1900 | J27: 2280 | M27: Célibataire | N27: =AVERAGEIFS(Tableau16[Salaires],Tableau16[Etat civil],Tableau23[EC],Tableau16[Sexe],N26:O26) -> 2750 | O27: 1952.142857
A28: Unetitlaine | B28: Jérémy | C28: m | D28: Marié(e) | E28: 1983-06-09 | F28: 40 | G28: 2 | H28: Informatique | I28: =VLOOKUP(H28,Bdd1_consignes!$C$50:$D$54,2,FALSE) -> 1900 | J28: 2090 | M28: Divorcé(e) | N28: 1955 | O28: 2370
A29: Ouzi | B29: Jacques | C29: m | D29: Célibataire | E29: 1969-02-28 | F29: 54 | G29: 3 | H29: Personnel | I29: =VLOOKUP(H29,Bdd1_consignes!$C$50:$D$54,2,FALSE) -> 1600 | J29: 1840 | M29: Marié(e) | N29: 1980 | O29: 2120

Sheet TCD_données
A1: Tableaux croisés dynamiques
A3: A partir des données ci-dessous, construisez des tableaux croisés dynamiques tels que ceux décrits sur les feuilles suivantes
A6: Nom | B6: Prénom | C6: Sexe | D6: Etat civil | E6: Date de naissance | F6: Age | G6: Tranches | H6: Services | I6: Salaires Minimum | J6: Salaires
A7: Bistrot | B7: Alonso | C7: m | D7: Marié(e) | E7: 1966-01-17 | F7: =DATEDIF(E7,TODAY(),"y") -> 57 | G7: =IF(F7<25,0,IF(F7<35,1,IF(F7<45,2,IF(F7<55,3,4)))) -> 4 | H7: Informatique | I7: =VLOOKUP(H7,Bdd1_consignes!$C$50:$D$54,2,FALSE) -> 1900 | J7: =I7+5%*G7*I7 -> 2280
A8: Bijoba | B8: Jo | C8: m | D8: Marié(e) | E8: 1980-03-15 | F8: 43 | G8: 2 | H8: Direction | I8: =VLOOKUP(H8,Bdd1_consignes!$C$50:$D$54,2,FALSE) -> 2500 | J8: 2750
A9: Covert | B9: Harry | C9: m | D9: Divorcé(e) | E9: 1942-02-10 | F9: 81 | G9: 4 | H9: Personnel | I9: =VLOOKUP(H9,Bdd1_consignes!$C$50:$D$54,2,FALSE) -> 1600 | J9: 1920
A10: Culaire | B10: Laury | C10: m | D10: Marié(e) | E10: 1965-05-05 | F10: 58 | G10: 4 | H10: Personnel | I10: =VLOOKUP(H10,Bdd1_consignes!$C$50:$D$54,2,FALSE) -> 1600 | J10: 1920
A11: Deuf | B11: John | C11: m | D11: Célibataire | E11: 1963-09-08 | F11: 60 | G11: 4 | H11: Informatique | I11: =VLOOKUP(H11,Bdd1_consignes!$C$50:$D$54,2,FALSE) -> 1900 | J11: 2280
A12: Foupasune | B12: Jean | C12: m | D12: Célibataire | E12: 1975-08-07 | F12: 48 | G12: 3 | H12: Personnel | I12: =VLOOKUP(H12,Bdd1_consignes!$C$50:$D$54,2,FALSE) -> 1600 | J12: 1840
A13: Lairbon | B13: Oussama | C13: m | D13: Marié(e) | E13: 1983-02-08 | F13: 40 | G13: 2 | H13: Personnel | I13: =VLOOKUP(H13,Bdd1_consignes!$C$50:$D$54,2,FALSE) -> 1600 | J13: 1760
A14: Menvussa | B14: Gérard | C14: m | D14: Célibataire | E14: 1970-12-04 | F14: 52 | G14: 3 | H14: Informatique | I14: =VLOOKUP(H14,Bdd1_consignes!$C$50:$D$54,2,FALSE) -> 1900 | J14: 2185
A15: Lalalalalalala | B15: Starsky | C15: m | D15: Célibataire | E15: 1955-07-08 | F15: 68 | G15: 4 | H15: Personnel | I15: =VLOOKUP(H15,Bdd1_consignes!$C$50:$D$54,2,FALSE) -> 1600 | J15: 1920
A16: Lalalalalalala | B16: Hutch | C16: m | D16: Divorcé(e) | E16: 1952-10-07 | F16: 71 | G16: 4 | H16: Direction | I16: =VLOOKUP(H16,Bdd1_consignes!$C$50:$D$54,2,FALSE) -> 2500 | J16: 3000
A17: Cléssoulaporte | B17: Djamila | C17: f | D17: Marié(e) | E17: 1959-09-07 | F17: 64 | G17: 4 | H17: Personnel | I17: =VLOOKUP(H17,Bdd1_consignes!$C$50:$D$54,2,FALSE) -> 1600 | J17: 1920
A18: Noux | B18: Marion | C18: f | D18: Divorcé(e) | E18: 1978-12-30 | F18: 44 | G18: 2 | H18: Secrétariat | I18: =VLOOKUP(H18,Bdd1_consignes!$C$50:$D$54,2,FALSE) -> 1700 | J18: 1870
A19: Ouzi | B19: Jacques | C19: m | D19: Célibataire | E19: 1969-02-28 | F19: 54 | G19: 3 | H19: Personnel | I19: =VLOOKUP(H19,Bdd1_consignes!$C$50:$D$54,2,FALSE) -> 1600 | J19: 1840
A20: Stiké | B20: Sophie | C20: f | D20: Divorcé(e) | E20: 1959-04-04 | F20: 64 | G20: 4 | H20: Secrétariat | I20: =VLOOKUP(H20,Bdd1_consignes!$C$50:$D$54,2,FALSE) -> 1700 | J20: 2040
A21: Tare | B21: Guy | C21: m | D21: Divorcé(e) | E21: 1960-08-07 | F21: 63 | G21: 4 | H21: Informatique | I21: =VLOOKUP(H21,Bdd1_consignes!$C$50:$D$54,2,FALSE) -> 1900 | J21: 2280
A22: Vaisselle | B22: Aude | C22: f | D22: Marié(e) | E22: 1966-06-06 | F22: 57 | G22: 4 | H22: Secrétariat | I22: =VLOOKUP(H22,Bdd1_consignes!$C$50:$D$54,2,FALSE) -> 1700 | J22: 2040
A23: Zetofrais | B23: Mélanie | C23: f | D23: Célibataire | E23: 1978-11-25 | F23: 44 | G23: 2 | H23: Direction | I23: =VLOOKUP(H23,Bdd1_consignes!$C$50:$D$54,2,FALSE) -> 2500 | J23: 2750
A24: Touille | B24: Sasha | C24: m | D24: Célibataire | E24: 1982-10-30 | F24: 40 | G24: 2 | H24: Personnel | I24: =VLOOKUP(H24,Bdd1_consignes!$C$50:$D$54,2,FALSE) -> 1600 | J24: 1760
A25: Proviste | B25: Alain | C25: m | D25: Marié(e) | E25: 1959-09-09 | F25: 64 | G25: 4 | H25: Personnel | I25: =VLOOKUP(H25,Bdd1_consignes!$C$50:$D$54,2,FALSE) -> 1600 | J25: 1920
A26: Peulaporte | B26: Firmin | C26: m | D26: Divorcé(e) | E26: 1965-07-01 | F26: 58 | G26: 4 | H26: Informatique | I26: =VLOOKUP(H26,Bdd1_consignes!$C$50:$D$54,2,FALSE) -> 1900 | J26: 2280
A27: Unetitlaine | B27: Jérémy | C27: m | D27: Marié(e) | E27: 1983-06-09 | F27: 40 | G27: 2 | H27: Informatique | I27: =VLOOKUP(H27,Bdd1_consignes!$C$50:$D$54,2,FALSE) -> 1900 | J27: 2090
A28: Ouzi | B28: Jacques | C28: m | D28: Célibataire | E28: 1969-02-28 | F28: 54 | G28: 3 | H28: Personnel | I28: =VLOOKUP(H28,Bdd1_consignes!$C$50:$D$54,2,FALSE) -> 1600 | J28: 1840

Sheet TCD1
M1: Retour sommaire
A3: Utilisez les tableaux croisés dynamiques de façon à afficher le nombre d'employés par service.

Sheet TCD1_corrigé (hidden)
A3: Utilisez les tableaux croisés dynamiques de façon à afficher le nombre d'employés par service.
B8: Nombre de Nom
B9: Services | C9: Total
B10: Direction | C10: 3
B11: Informatique | C11: 6
B12: Personnel | C12: 10
B13: Secrétariat | C13: 3
B14: Total général | C14: 22

Sheet TCD2
M1: Retour sommaire
A3: Utilisez les tableaux croisés dynamiques de façon à afficher le salaire moyen par service et par sexe.

Sheet TCD2_corrigé (hidden)
A3: Utilisez les tableaux croisés dynamiques de façon à afficher le salaire moyen par service et par sexe.
B7: Moyenne de Salaires | C7: Sexe
B8: Services | C8: f | D8: m | E8: Total général
B9: Direction | C9: 2750 | D9: 2875 | E9: 2833.333333
B10: Informatique | D10: 2200.833333 | E10: 2200.833333
B11: Personnel | C11: 1920 | D11: 1840 | E11: 1848
B12: Secrétariat | C12: 1955 | E12: 1955
B13: Total général | C13: 2107 | D13: 2089.117647 | E13: 2093.181818

Sheet TCD3
M1: Retour sommaire
A3: Utilisez les tableaux croisés dynamiqes de façon à afficher le nombre d'employés et la moyenne des âges par sexe et par état civil.

Sheet TCD3_corrigé (hidden)
A3: Utilisez les tableaux croisés dynamiqes de façon à afficher le nombre d'employés et la moyenne des âges par sexe et par état civil.
C8: Sexe | D8: Données
C9: f | E9: m
B10: Etat civil | C10: Nombre | D10: Moyenne des Ages | E10: Nombre | F10: Moyenne des Ages
B11: Célibataire | C11: 1 | D11: 40 | E11: 7 | F11: 49.85714286
B12: Divorcé(e) | C12: 2 | D12: 50 | E12: 4 | F12: 64.25
B13: Marié(e) | C13: 2 | D13: 56.5 | E13: 6 | F13: 46.33333333
B14: Total général | C14: 5 | D14: 50.6 | E14: 17 | F14: 52

Sheet TCD4
M1: Retour sommaire
A3: Utilisez les tableaux croisés dynamiques de façon à afficher le nombre d'employés ayant un salaire compris entre 1600 et 1800, entre 1800 et 2000 et ainsi de suite jusque 3000.

Sheet TCD4_corrigé (hidden)
A3: Utilisez les tableaux croisés dynamiques de façon à afficher le nombre d'employés ayant un salaire compris entre 1600 et 1800, entre 1800 et 2000 et ainsi de suite jusque 3000.
B8: Nombre de Nom
B9: Salaires | C9: Total
B10: 1600-1799 | C10: 3
B11: 1800-1999 | C11: 9
B12: 2000-2199 | C12: 5
B13: 2200-2399 | C13: 2
B14: 2600-2799 | C14: 2
B15: 2800-3000 | C15: 1
B16: Total général | C16: 22

Sheet TCD5
M1: Retour sommaire
A3: Afin d'établir un budget 'anniversaire', la société souhaite savoir quel est le nombre de personnes nées par mois.
A4: Etablir un TCD fournissant ces renseignements.

Sheet TCD5_corrigé (hidden)
A3: Afin d'établir un budget 'anniversaire', la société souhaite savoir quel est le nombre de personnes nées par mois.
A4: Etablir un TCD fournissant ces renseignements.
B8: Nombre de Nom
B9: Date de naissance | C9: Total
B10: janv | C10: 1
B11: févr | C11: 4
B12: mars | C12: 1
B13: avr | C13: 1
B14: mai | C14: 1
B15: juin | C15: 2
B16: juil | C16: 2
B17: août | C17: 2
B18: sept | C18: 3
B19: oct | C19: 2
B20: nov | C20: 1
B21: déc | C21: 2
B22: Total général | C22: 22

Sheet TCD6
M1: Retour sommaire
A3: Créez un TCD donnant le pourcentage de femmes et d'hommes par service.
A4: A partir de ça, créez un graphique croisé dynamique représentant ce pourcentage en 'histogramme'.

Sheet TCD6_corrigé (hidden)
A3: Créez un TCD donnant le pourcentage de femmes et d'hommes par service.
A4: A partir de ça, créez un graphique croisé dynamique représentant ce pourcentage en 'histogramme'.
B8: Nombre de Nom | C8: Sexe
B9: Services | C9: f | D9: m
B10: Direction | C10: 0.3333333333 | D10: 0.6666666667
B11: Informatique | C11: 0 | D11: 1
B12: Personnel | C12: 0.1 | D12: 0.9
B13: Secrétariat | C13: 1 | D13: 0
B14: Total général | C14: 0.2272727273 | D14: 0.7727272727
